Workbook

Sheet Calc
A5: Hitelösszeg | C5: 12000000 | E5: THM % | H5: ='THM-Calc'!F15 -> 0.07014912521
A6: Futamidő (hónap) | C6: 240
A7: Ügylet alapkamata | C7: =Árazás!$N$8 -> 0.0674
A8: HITEL PLUSZ (visszatérített költségek kamatfelára) | C8: 0
A9: Teljes kamat (éves) | C9: =C7+C8 -> 0.0674
A10: Folyósítási jutalék (egyszeri) | C10: 0 | E10: Törlesztőrészlet | H10: =VLOOKUP(C23+1,A35:G378,7,0) -> 91172
A11: min. | C11: 0
A12: max. | C12: =+IF(C10=0.15%,100000,0) -> 0 | E12: Hiteltörlesztés hitelfedezeti biztosítással A csomag esetén | H12: =$H$10+($C$5*0.0008366) -> 101211.2
A13: összege | C13: =MIN(IF(C5*C10<C11,C11,IF(OR(C12=0,C12="",C12=" "),C5*C10,IF(C5*C10>C12,C12,C5*C10))),100000) -> 0 | E13: Hiteltörlesztés hitelfedezeti biztosítással B csomag esetén | H13: =$H$10+($C$5*0.0005082) -> 97270.4
A14: fizetendő összege | C14: =IF(C5*C10<C11,C11,IF(OR(C12=0,C12="",C12=" "),C5*C10,IF(C5*C10>C12,C12,C5*C10))) -> 0 | E14: Hiteltörlesztés hitelfedezeti biztosítással C csomag esetén | H14: =$H$10+($C$5*0.0003738) -> 95657.6
A15: Értékbecslés díja | C15: 0
A16: Helyszíni szemle díja | C16: 0 | E16: Esemény | F16: =+Segéd!B8 -> Tájékoztatás
A17: Ingatlan-nyilvántartási eljárás díja | C17: 12600 | E17: Hitel célja: | F17: =+Segéd!B9 -> Piaci kamatozású lakáscélú hitel
A18: Tulajdoni lap lekérdezés díja | C18: 0 | E18: Hitel típusa: | F18: =+Segéd!B11 -> Minősített Fogyasztóbarát termék - vásárlásra
A19: Térképmásolat lekérdezés díja | C19: 0 | E19: Közszféra: | F19: =+Segéd!B13 -> nincs közszférás kedvezmény
A20: Hitelbírálati díj | C20: 0 | E20: Kedvezménykategória: | F20: =+Segéd!B14 -> 2. kedvezmény kategória
A21: Számlavezetés használati költség | C21: 325 | E21: Kamatperiódus: | F21: =+Segéd!B10 -> 10 ÉVES kamatperiódus
A23: Rendelkezésre tartási idő | C23: 0
A24: Rendelkezésre tartási jutalék | C24: 0.01
A25: Fizetési gyakoriság | C25: havi
A27: Hitel teljes díja | C27: =C14+C15+C16+C17+C18+C19+(C21*C6)+D456+F456 -> 9972056
A28: Teljes visszafizetendő összeg | C28: =C5+C27 -> 21972056
H29: Törlesztőrészlet alakulása kamatváltozás esetén
A30: A kedvezmény kategóriák részletes feltételei a Lakossági Hitel Hirdetményben és az Ügyféltájékoztatókban olvashatók.
D31: 1 | H31: Kamatváltozás: | I31: 0.02
E32: =IF(F31>C5*0.1,"Figyelem! A teljes visszatérített összeg nem haladhatja meg a hitelösszeg 10%-át! Kérem csökkentse valamely visszatérített összeget!"," ") ->  | H32: Új kamat | I32: =C9+I31 -> 0.0874
H33: Új THM | I33: ='THM-Calc'!L22 -> 0.09514912521
A34: Időszak | B34: Tőkeegyenleg | C34: Tőke törlesztés | D34: Kamat törlesztés | E34: Kamat + tőke összege | F34: Rendelkezésre tartási jutalék | G34: Teljes törlesztő-részlet | H34: Törlesztő-részlet kamatváltozás esetén | J34: Kamat törlesztés évente | K34: Törlesztőrészlet kamatváltozás esetén évente
A35: 0 | B35: =C5 -> 12000000
A36: 1 | B36: =B35-C36 -> 11976228 | C36: =E36-D36 -> 23772 | D36: =ROUND(IF(A36>$C$23,B35*$C$9*30/360,0),0) -> 67400 | E36: =ROUND(IF(A36>$C$23,(IF(A36>=$C$6,B35+D36,PMT($C$9/12,$C$6-$C$23,-$B$35))),D36),0) -> 91172 | F36: =ROUND(IF(A36>$C$23,0,$B$35*$C$24/360*30),0) -> 0 | G36: =E36+F36 -> 91172 | I36: =ROUND(IF(A36>$C$23,(IF(A36>$C$6,0,PMT($I$32/12,$C$6-$C$23,-$B$35))),G36),0) -> 105969
A37: 2 | B37: 11952322 | C37: =E37-D37 -> 23906 | D37: =ROUND(IF(A37>$C$23,B36*$C$9*30/360,0),0) -> 67266 | E37: 91172 | F37: =ROUND(IF(A37>$C$23,0,$B$35*$C$24/360*30),0) -> 0 | G37: =E37+F37 -> 91172 | I37: =ROUND(IF(A37>$C$23,(IF(A37>$C$6,0,PMT($I$32/12,$C$6-$C$23,-$B$35))),G37),0) -> 105969
A38: 3 | B38: 11928282 | C38: 24040 | D38: 67132 | E38: 91172 | F38: 0 | G38: 91172 | I38: 105969
A39: 4 | B39: 11904107 | C39: 24175 | D39: 66997 | E39: 91172 | F39: 0 | G39: 91172 | I39: 105969
A40: 5 | B40: 11879796 | C40: 24311 | D40: 66861 | E40: 91172 | F40: 0 | G40: 91172 | I40: 105969
A41: 6 | B41: 11855349 | C41: 24447 | D41: 66725 | E41: 91172 | F41: 0 | G41: 91172 | I41: 105969
A42: 7 | B42: 11830765 | C42: 24584 | D42: 66588 | E42: 91172 | F42: 0 | G42: 91172 | I42: 105969
A43: 8 | B43: 11806042 | C43: 24723 | D43: 66449 | E43: 91172 | F43: 0 | G43: 91172 | I43: 105969
A44: 9 | B44: 11781181 | C44: 24861 | D44: 66311 | E44: 91172 | F44: 0 | G44: 91172 | I44: 105969
A45: 10 | B45: 11756180 | C45: 25001 | D45: 66171 | E45: 91172 | F45: 0 | G45: 91172 | I45: 105969
A46: 11 | B46: 11731039 | C46: 25141 | D46: 66031 | E46: 91172 | F46: 0 | G46: 91172 | I46: 105969
A47: 12 | B47: 11705756 | C47: 25283 | D47: 65889 | E47: 91172 | F47: 0 | G47: 91172 | I47: 105969 | J47: =SUM(D36:D47) -> 799820 | K47: =SUM(I36:I47) -> 1271628
A48: 13 | B48: 11680331 | C48: 25425 | D48: 65747 | E48: 91172 | F48: 0 | G48: 91172 | I48: 105969
A49: 14 | B49: 11654764 | C49: 25567 | D49: 65605 | E49: 91172 | F49: 0 | G49: 91172 | I49: 105969
A50: 15 | B50: 11629053 | C50: 25711 | D50: 65461 | E50: 91172 | F50: 0 | G50: 91172 | I50: 105969
A51: 16 | B51: 11603198 | C51: 25855 | D51: 65317 | E51: 91172 | F51: 0 | G51: 91172 | I51: 105969
A52: 17 | B52: 11577197 | C52: 26001 | D52: 65171 | E52: 91172 | F52: 0 | G52: 91172 | I52: 105969
A53: 18 | B53: 11551050 | C53: 26147 | D53: 65025 | E53: 91172 | F53: 0 | G53: 91172 | I53: 105969
A54: 19 | B54: 11524756 | C54: 26294 | D54: 64878 | E54: 91172 | F54: 0 | G54: 91172 | I54: 105969
A55: 20 | B55: 11498315 | C55: 26441 | D55: 64731 | E55: 91172 | F55: 0 | G55: 91172 | I55: 105969
A56: 21 | B56: 11471725 | C56: 26590 | D56: 64582 | E56: 91172 | F56: 0 | G56: 91172 | I56: 105969
A57: 22 | B57: 11444986 | C57: 26739 | D57: 64433 | E57: 91172 | F57: 0 | G57: 91172 | I57: 105969
A58: 23 | B58: 11418097 | C58: 26889 | D58: 64283 | E58: 91172 | F58: 0 | G58: 91172 | I58: 105969
A59: 24 | B59: 11391057 | C59: 27040 | D59: 64132 | E59: 91172 | F59: 0 | G59: 91172 | I59: 105969 | J59: =SUM(D48:D59) -> 779365 | K59: =SUM(I48:I59) -> 1271628
A60: 25 | B60: 11363865 | C60: 27192 | D60: 63980 | E60: 91172 | F60: 0 | G60: 91172 | I60: 105969
A61: 26 | B61: 11336520 | C61: 27345 | D61: 63827 | E61: 91172 | F61: 0 | G61: 91172 | I61: 105969
A62: 27 | B62: 11309021 | C62: 27499 | D62: 63673 | E62: 91172 | F62: 0 | G62: 91172 | I62: 105969
A63: 28 | B63: 11281368 | C63: 27653 | D63: 63519 | E63: 91172 | F63: 0 | G63: 91172 | I63: 105969
A64: 29 | B64: 11253560 | C64: 27808 | D64: 63364 | E64: 91172 | F64: 0 | G64: 91172 | I64: 105969
A65: 30 | B65: 11225595 | C65: 27965 | D65: 63207 | E65: 91172 | F65: 0 | G65: 91172 | I65: 105969
A66: 31 | B66: 11197473 | C66: 28122 | D66: 63050 | E66: 91172 | F66: 0 | G66: 91172 | I66: 105969
A67: 32 | B67: 11169193 | C67: 28280 | D67: 62892 | E67: 91172 | F67: 0 | G67: 91172 | I67: 105969
A68: 33 | B68: 11140755 | C68: 28438 | D68: 62734 | E68: 91172 | F68: 0 | G68: 91172 | I68: 105969
A69: 34 | B69: 11112157 | C69: 28598 | D69: 62574 | E69: 91172 | F69: 0 | G69: 91172 | I69: 105969
A70: 35 | B70: 11083398 | C70: 28759 | D70: 62413 | E70: 91172 | F70: 0 | G70: 91172 | I70: 105969
A71: 36 | B71: 11054478 | C71: 28920 | D71: 62252 | E71: 91172 | F71: 0 | G71: 91172 | I71: 105969 | J71: =SUM(D60:D71) -> 757485 | K71: =SUM(I60:I71) -> 1271628
A72: 37 | B72: 11025395 | C72: 29083 | D72: 62089 | E72: 91172 | F72: 0 | G72: 91172 | I72: 105969
A73: 38 | B73: 10996149 | C73: 29246 | D73: 61926 | E73: 91172 | F73: 0 | G73: 91172 | I73: 105969
A74: 39 | B74: 10966739 | C74: 29410 | D74: 61762 | E74: 91172 | F74: 0 | G74: 91172 | I74: 105969
A75: 40 | B75: 10937164 | C75: 29575 | D75: 61597 | E75: 91172 | F75: 0 | G75: 91172 | I75: 105969
A76: 41 | B76: 10907422 | C76: 29742 | D76: 61430 | E76: 91172 | F76: 0 | G76: 91172 | I76: 105969
A77: 42 | B77: 10877513 | C77: 29909 | D77: 61263 | E77: 91172 | F77: 0 | G77: 91172 | I77: 105969
A78: 43 | B78: 10847436 | C78: 30077 | D78: 61095 | E78: 91172 | F78: 0 | G78: 91172 | I78: 105969
A79: 44 | B79: 10817190 | C79: 30246 | D79: 60926 | E79: 91172 | F79: 0 | G79: 91172 | I79: 105969
A80: 45 | B80: 10786775 | C80: 30415 | D80: 60757 | E80: 91172 | F80: 0 | G80: 91172 | I80: 105969
A81: 46 | B81: 10756189 | C81: 30586 | D81: 60586 | E81: 91172 | F81: 0 | G81: 91172 | I81: 105969
A82: 47 | B82: 10725431 | C82: 30758 | D82: 60414 | E82: 91172 | F82: 0 | G82: 91172 | I82: 105969
A83: 48 | B83: 10694500 | C83: 30931 | D83: 60241 | E83: 91172 | F83: 0 | G83: 91172 | I83: 105969 | J83: =SUM(D72:D83) -> 734086 | K83: =SUM(I72:I83) -> 1271628
A84: 49 | B84: 10663395 | C84: 31105 | D84: 60067 | E84: 91172 | F84: 0 | G84: 91172 | I84: 105969
A85: 50 | B85: 10632116 | C85: 31279 | D85: 59893 | E85: 91172 | F85: 0 | G85: 91172 | I85: 105969
A86: 51 | B86: 10600661 | C86: 31455 | D86: 59717 | E86: 91172 | F86: 0 | G86: 91172 | I86: 105969
A87: 52 | B87: 10569029 | C87: 31632 | D87: 59540 | E87: 91172 | F87: 0 | G87: 91172 | I87: 105969
A88: 53 | B88: 10537220 | C88: 31809 | D88: 59363 | E88: 91172 | F88: 0 | G88: 91172 | I88: 105969
A89: 54 | B89: 10505232 | C89: 31988 | D89: 59184 | E89: 91172 | F89: 0 | G89: 91172 | I89: 105969
A90: 55 | B90: 10473064 | C90: 32168 | D90: 59004 | E90: 91172 | F90: 0 | G90: 91172 | I90: 105969
A91: 56 | B91: 10440716 | C91: 32348 | D91: 58824 | E91: 91172 | F91: 0 | G91: 91172 | I91: 105969
A92: 57 | B92: 10408186 | C92: 32530 | D92: 58642 | E92: 91172 | F92: 0 | G92: 91172 | I92: 105969
A93: 58 | B93: 10375473 | C93: 32713 | D93: 58459 | E93: 91172 | F93: 0 | G93: 91172 | I93: 105969
A94: 59 | B94: 10342577 | C94: 32896 | D94: 58276 | E94: 91172 | F94: 0 | G94: 91172 | I94: 105969
A95: 60 | B95: 10309496 | C95: 33081 | D95: 58091 | E95: 91172 | F95: 0 | G95: 91172 | I95: 105969 | J95: =SUM(D84:D95) -> 709060 | K95: =SUM(I84:I95) -> 1271628
A96: 61 | B96: 10276229 | C96: 33267 | D96: 57905 | E96: 91172 | F96: 0 | G96: 91172 | I96: 105969
A97: 62 | B97: 10242775 | C97: 33454 | D97: 57718 | E97: 91172 | F97: 0 | G97: 91172 | I97: 105969
A98: 63 | B98: 10209133 | C98: 33642 | D98: 57530 | E98: 91172 | F98: 0 | G98: 91172 | I98: 105969
A99: 64 | B99: 10175302 | C99: 33831 | D99: 57341 | E99: 91172 | F99: 0 | G99: 91172 | I99: 105969
A100: 65 | B100: =B99-C100 -> 10141281 | C100: 34021 | D100: 57151 | E100: =ROUND(IF(A100>$C$23,(IF(A100>=$C$6,B99+D100,PMT($C$9/12,$C$6-$C$23,-$B$35))),D100),0) -> 91172 | F100: 0 | G100: 91172 | I100: 105969
A101: 66 | B101: 10107069 | C101: =E101-D101 -> 34212 | D101: =ROUND(IF(A101>$C$23,B100*$C$9*30/360,0),0) -> 56960 | E101: 91172 | F101: =ROUND(IF(A101>$C$23,0,$B$35*$C$24/360*30),0) -> 0 | G101: =E101+F101 -> 91172 | I101: =ROUND(IF(A101>$C$23,(IF(A101>$C$6,0,PMT($I$32/12,$C$6-$C$23,-$B$35))),G101),0) -> 105969
A102: 67 | B102: 10072665 | C102: 34404 | D102: 56768 | E102: 91172 | F102: 0 | G102: 91172 | I102: 105969
A103: 68 | B103: 10038068 | C103: 34597 | D103: 56575 | E103: 91172 | F103: 0 | G103: 91172 | I103: 105969
A104: 69 | B104: 10003276 | C104: 34792 | D104: 56380 | E104: 91172 | F104: 0 | G104: 91172 | I104: 105969
A105: 70 | B105: 9968289 | C105: 34987 | D105: 56185 | E105: 91172 | F105: 0 | G105: 91172 | I105: 105969
A106: 71 | B106: 9933106 | C106: 35183 | D106: 55989 | E106: 91172 | F106: 0 | G106: 91172 | I106: 105969
A107: 72 | B107: 9897725 | C107: 35381 | D107: 55791 | E107: 91172 | F107: 0 | G107: 91172 | I107: 105969 | J107: =SUM(D96:D107) -> 682293 | K107: =SUM(I96:I107) -> 1271628
A108: 73 | B108: 9862145 | C108: 35580 | D108: 55592 | E108: 91172 | F108: 0 | G108: 91172 | I108: 105969
A109: 74 | B109: 9826365 | C109: 35780 | D109: 55392 | E109: 91172 | F109: 0 | G109: 91172 | I109: 105969
A110: 75 | B110: 9790384 | C110: 35981 | D110: 55191 | E110: 91172 | F110: 0 | G110: 91172 | I110: 105969
A111: 76 | B111: 9754201 | C111: 36183 | D111: 54989 | E111: 91172 | F111: 0 | G111: 91172 | I111: 105969
A112: 77 | B112: 9717815 | C112: 36386 | D112: 54786 | E112: 91172 | F112: 0 | G112: 91172 | I112: 105969
A113: 78 | B113: 9681225 | C113: 36590 | D113: 54582 | E113: 91172 | F113: 0 | G113: 91172 | I113: 105969
A114: 79 | B114: 9644429 | C114: 36796 | D114: 54376 | E114: 91172 | F114: 0 | G114: 91172 | I114: 105969
A115: 80 | B115: 9607427 | C115: 37002 | D115: 54170 | E115: 91172 | F115: 0 | G115: 91172 | I115: 105969
A116: 81 | B116: 9570217 | C116: 37210 | D116: 53962 | E116: 91172 | F116: 0 | G116: 91172 | I116: 105969
A117: 82 | B117: 9532798 | C117: 37419 | D117: 53753 | E117: 91172 | F117: 0 | G117: 91172 | I117: 105969
A118: 83 | B118: 9495169 | C118: 37629 | D118: 53543 | E118: 91172 | F118: 0 | G118: 91172 | I118: 105969
A119: 84 | B119: 9457328 | C119: 37841 | D119: 53331 | E119: 91172 | F119: 0 | G119: 91172 | I119: 105969 | J119: =SUM(D108:D119) -> 653667 | K119: =SUM(I108:I119) -> 1271628
A120: 85 | B120: 9419275 | C120: 38053 | D120: 53119 | E120: 91172 | F120: 0 | G120: 91172 | I120: 105969
A121: 86 | B121: 9381008 | C121: 38267 | D121: 52905 | E121: 91172 | F121: 0 | G121: 91172 | I121: 105969
A122: 87 | B122: 9342526 | C122: 38482 | D122: 52690 | E122: 91172 | F122: 0 | G122: 91172 | I122: 105969
A123: 88 | B123: 9303828 | C123: 38698 | D123: 52474 | E123: 91172 | F123: 0 | G123: 91172 | I123: 105969
A124: 89 | B124: 9264913 | C124: 38915 | D124: 52257 | E124: 91172 | F124: 0 | G124: 91172 | I124: 105969
A125: 90 | B125: 9225779 | C125: 39134 | D125: 52038 | E125: 91172 | F125: 0 | G125: 91172 | I125: 105969
A126: 91 | B126: 9186425 | C126: 39354 | D126: 51818 | E126: 91172 | F126: 0 | G126: 91172 | I126: 105969
A127: 92 | B127: 9146850 | C127: 39575 | D127: 51597 | E127: 91172 | F127: 0 | G127: 91172 | I127: 105969
A128: 93 | B128: 9107053 | C128: 39797 | D128: 51375 | E128: 91172 | F128: 0 | G128: 91172 | I128: 105969
A129: 94 | B129: 9067032 | C129: 40021 | D129: 51151 | E129: 91172 | F129: 0 | G129: 91172 | I129: 105969
A130: 95 | B130: 9026786 | C130: 40246 | D130: 50926 | E130: 91172 | F130: 0 | G130: 91172 | I130: 105969
A131: 96 | B131: 8986314 | C131: 40472 | D131: 50700 | E131: 91172 | F131: 0 | G131: 91172 | I131: 105969 | J131: =SUM(D120:D131) -> 623050 | K131: =SUM(I120:I131) -> 1271628
A132: 97 | B132: 8945615 | C132: 40699 | D132: 50473 | E132: 91172 | F132: 0 | G132: 91172 | I132: 105969
A133: 98 | B133: 8904688 | C133: 40927 | D133: 50245 | E133: 91172 | F133: 0 | G133: 91172 | I133: 105969
A134: 99 | B134: 8863531 | C134: 41157 | D134: 50015 | E134: 91172 | F134: 0 | G134: 91172 | I134: 105969
A135: 100 | B135: 8822142 | C135: 41389 | D135: 49783 | E135: 91172 | F135: 0 | G135: 91172 | I135: 105969
A136: 101 | B136: 8780521 | C136: 41621 | D136: 49551 | E136: 91172 | F136: 0 | G136: 91172 | I136: 105969
A137: 102 | B137: 8738666 | C137: 41855 | D137: 49317 | E137: 91172 | F137: 0 | G137: 91172 | I137: 105969
A138: 103 | B138: 8696576 | C138: 42090 | D138: 49082 | E138: 91172 | F138: 0 | G138: 91172 | I138: 105969
A139: 104 | B139: 8654250 | C139: 42326 | D139: 48846 | E139: 91172 | F139: 0 | G139: 91172 | I139: 105969
A140: 105 | B140: 8611686 | C140: 42564 | D140: 48608 | E140: 91172 | F140: 0 | G140: 91172 | I140: 105969
A141: 106 | B141: 8568883 | C141: 42803 | D141: 48369 | E141: 91172 | F141: 0 | G141: 91172 | I141: 105969
A142: 107 | B142: 8525840 | C142: 43043 | D142: 48129 | E142: 91172 | F142: 0 | G142: 91172 | I142: 105969
A143: 108 | B143: 8482555 | C143: 43285 | D143: 47887 | E143: 91172 | F143: 0 | G143: 91172 | I143: 105969 | J143: =SUM(D132:D143) -> 590305 | K143: =SUM(I132:I143) -> 1271628
A144: 109 | B144: 8439027 | C144: 43528 | D144: 47644 | E144: 91172 | F144: 0 | G144: 91172 | I144: 105969
A145: 110 | B145: 8395254 | C145: 43773 | D145: 47399 | E145: 91172 | F145: 0 | G145: 91172 | I145: 105969
A146: 111 | B146: 8351235 | C146: 44019 | D146: 47153 | E146: 91172 | F146: 0 | G146: 91172 | I146: 105969
A147: 112 | B147: 8306969 | C147: 44266 | D147: 46906 | E147: 91172 | F147: 0 | G147: 91172 | I147: 105969
A148: 113 | B148: 8262454 | C148: 44515 | D148: 46657 | E148: 91172 | F148: 0 | G148: 91172 | I148: 105969
A149: 114 | B149: 8217689 | C149: 44765 | D149: 46407 | E149: 91172 | F149: 0 | G149: 91172 | I149: 105969
A150: 115 | B150: 8172673 | C150: 45016 | D150: 46156 | E150: 91172 | F150: 0 | G150: 91172 | I150: 105969
A151: 116 | B151: 8127404 | C151: 45269 | D151: 45903 | E151: 91172 | F151: 0 | G151: 91172 | I151: 105969
A152: 117 | B152: 8081881 | C152: 45523 | D152: 45649 | E152: 91172 | F152: 0 | G152: 91172 | I152: 105969
A153: 118 | B153: 8036102 | C153: 45779 | D153: 45393 | E153: 91172 | F153: 0 | G153: 91172 | I153: 105969
A154: 119 | B154: 7990066 | C154: 46036 | D154: 45136 | E154: 91172 | F154: 0 | G154: 91172 | I154: 105969
A155: 120 | B155: 7943772 | C155: 46294 | D155: 44878 | E155: 91172 | F155: 0 | G155: 91172 | I155: 105969 | J155: =SUM(D144:D155) -> 555281 | K155: =SUM(I144:I155) -> 1271628
A156: 121 | B156: 7897218 | C156: 46554 | D156: 44618 | E156: 91172 | F156: 0 | G156: 91172 | I156: 105969
A157: 122 | B157: 7850402 | C157: 46816 | D157: 44356 | E157: 91172 | F157: 0 | G157: 91172 | I157: 105969
A158: 123 | B158: 7803323 | C158: 47079 | D158: 44093 | E158: 91172 | F158: 0 | G158: 91172 | I158: 105969
A159: 124 | B159: 7755980 | C159: 47343 | D159: 43829 | E159: 91172 | F159: 0 | G159: 91172 | I159: 105969
A160: 125 | B160: 7708371 | C160: 47609 | D160: 43563 | E160: 91172 | F160: 0 | G160: 91172 | I160: 105969
A161: 126 | B161: 7660494 | C161: 47877 | D161: 43295 | E161: 91172 | F161: 0 | G161: 91172 | I161: 105969
A162: 127 | B162: 7612348 | C162: 48146 | D162: 43026 | E162: 91172 | F162: 0 | G162: 91172 | I162: 105969
A163: 128 | B163: 7563932 | C163: 48416 | D163: 42756 | E163: 91172 | F163: 0 | G163: 91172 | I163: 105969
A164: 129 | B164: =B163-C164 -> 7515244 | C164: 48688 | D164: 42484 | E164: =ROUND(IF(A164>$C$23,(IF(A164>=$C$6,B163+D164,PMT($C$9/12,$C$6-$C$23,-$B$35))),D164),0) -> 91172 | F164: 0 | G164: 91172 | I164: 105969
A165: 130 | B165: 7466283 | C165: =E165-D165 -> 48961 | D165: =ROUND(IF(A165>$C$23,B164*$C$9*30/360,0),0) -> 42211 | E165: 91172 | F165: =ROUND(IF(A165>$C$23,0,$B$35*$C$24/360*30),0) -> 0 | G165: =E165+F165 -> 91172 | I165: =ROUND(IF(A165>$C$23,(IF(A165>$C$6,0,PMT($I$32/12,$C$6-$C$23,-$B$35))),G165),0) -> 105969
A166: 131 | B166: 7417047 | C166: 49236 | D166: 41936 | E166: 91172 | F166: 0 | G166: 91172 | I166: 105969
A167: 132 | B167: 7367534 | C167: 49513 | D167: 41659 | E167: 91172 | F167: 0 | G167: 91172 | I167: 105969 | J167: =SUM(D156:D167) -> 517826 | K167: =SUM(I156:I167) -> 1271628
A168: 133 | B168: 7317743 | C168: 49791 | D168: 41381 | E168: 91172 | F168: 0 | G168: 91172 | I168: 105969
A169: 134 | B169: 7267672 | C169: 50071 | D169: 41101 | E169: 91172 | F169: 0 | G169: 91172 | I169: 105969
A170: 135 | B170: 7217320 | C170: 50352 | D170: 40820 | E170: 91172 | F170: 0 | G170: 91172 | I170: 105969
A171: 136 | B171: 7166685 | C171: 50635 | D171: 40537 | E171: 91172 | F171: 0 | G171: 91172 | I171: 105969
A172: 137 | B172: 7115766 | C172: 50919 | D172: 40253 | E172: 91172 | F172: 0 | G172: 91172 | I172: 105969
A173: 138 | B173: 7064561 | C173: 51205 | D173: 39967 | E173: 91172 | F173: 0 | G173: 91172 | I173: 105969
A174: 139 | B174: 7013068 | C174: 51493 | D174: 39679 | E174: 91172 | F174: 0 | G174: 91172 | I174: 105969
A175: 140 | B175: 6961286 | C175: 51782 | D175: 39390 | E175: 91172 | F175: 0 | G175: 91172 | I175: 105969
A176: 141 | B176: 6909213 | C176: 52073 | D176: 39099 | E176: 91172 | F176: 0 | G176: 91172 | I176: 105969
A177: 142 | B177: 6856848 | C177: 52365 | D177: 38807 | E177: 91172 | F177: 0 | G177: 91172 | I177: 105969
A178: 143 | B178: 6804189 | C178: 52659 | D178: 38513 | E178: 91172 | F178: 0 | G178: 91172 | I178: 105969
A179: 144 | B179: 6751234 | C179: 52955 | D179: 38217 | E179: 91172 | F179: 0 | G179: 91172 | I179: 105969 | J179: =SUM(D168:D179) -> 477764 | K179: =SUM(I168:I179) -> 1271628
A180: 145 | B180: 6697981 | C180: 53253 | D180: 37919 | E180: 91172 | F180: 0 | G180: 91172 | I180: 105969
A181: 146 | B181: 6644429 | C181: 53552 | D181: 37620 | E181: 91172 | F181: 0 | G181: 91172 | I181: 105969
A182: 147 | B182: 6590577 | C182: 53852 | D182: 37320 | E182: 91172 | F182: 0 | G182: 91172 | I182: 105969
A183: 148 | B183: 6536422 | C183: 54155 | D183: 37017 | E183: 91172 | F183: 0 | G183: 91172 | I183: 105969
A184: 149 | B184: 6481963 | C184: 54459 | D184: 36713 | E184: 91172 | F184: 0 | G184: 91172 | I184: 105969
A185: 150 | B185: 6427198 | C185: 54765 | D185: 36407 | E185: 91172 | F185: 0 | G185: 91172 | I185: 105969
A186: 151 | B186: 6372125 | C186: 55073 | D186: 36099 | E186: 91172 | F186: 0 | G186: 91172 | I186: 105969
A187: 152 | B187: 6316743 | C187: 55382 | D187: 35790 | E187: 91172 | F187: 0 | G187: 91172 | I187: 105969
A188: 153 | B188: 6261050 | C188: 55693 | D188: 35479 | E188: 91172 | F188: 0 | G188: 91172 | I188: 105969
A189: 154 | B189: 6205044 | C189: 56006 | D189: 35166 | E189: 91172 | F189: 0 | G189: 91172 | I189: 105969
A190: 155 | B190: 6148724 | C190: 56320 | D190: 34852 | E190: 91172 | F190: 0 | G190: 91172 | I190: 105969
A191: 156 | B191: 6092087 | C191: 56637 | D191: 34535 | E191: 91172 | F191: 0 | G191: 91172 | I191: 105969 | J191: =SUM(D180:D191) -> 434917 | K191: =SUM(I180:I191) -> 1271628
A192: 157 | B192: 6035132 | C192: 56955 | D192: 34217 | E192: 91172 | F192: 0 | G192: 91172 | I192: 105969
A193: 158 | B193: 5977857 | C193: 57275 | D193: 33897 | E193: 91172 | F193: 0 | G193: 91172 | I193: 105969
A194: 159 | B194: 5920261 | C194: 57596 | D194: 33576 | E194: 91172 | F194: 0 | G194: 91172 | I194: 105969
A195: 160 | B195: 5862341 | C195: 57920 | D195: 33252 | E195: 91172 | F195: 0 | G195: 91172 | I195: 105969
A196: 161 | B196: 5804096 | C196: 58245 | D196: 32927 | E196: 91172 | F196: 0 | G196: 91172 | I196: 105969
A197: 162 | B197: 5745524 | C197: 58572 | D197: 32600 | E197: 91172 | F197: 0 | G197: 91172 | I197: 105969
A198: 163 | B198: 5686623 | C198: 58901 | D198: 32271 | E198: 91172 | F198: 0 | G198: 91172 | I198: 105969
A199: 164 | B199: 5627391 | C199: 59232 | D199: 31940 | E199: 91172 | F199: 0 | G199: 91172 | I199: 105969
A200: 165 | B200: 5567826 | C200: 59565 | D200: 31607 | E200: 91172 | F200: 0 | G200: 91172 | I200: 105969
A201: 166 | B201: 5507927 | C201: 59899 | D201: 31273 | E201: 91172 | F201: 0 | G201: 91172 | I201: 105969
A202: 167 | B202: 5447691 | C202: 60236 | D202: 30936 | E202: 91172 | F202: 0 | G202: 91172 | I202: 105969
A203: 168 | B203: 5387117 | C203: 60574 | D203: 30598 | E203: 91172 | F203: 0 | G203: 91172 | I203: 105969 | J203: =SUM(D192:D203) -> 389094 | K203: =SUM(I192:I203) -> 1271628
A204: 169 | B204: 5326203 | C204: 60914 | D204: 30258 | E204: 91172 | F204: 0 | G204: 91172 | I204: 105969
A205: 170 | B205: 5264947 | C205: 61256 | D205: 29916 | E205: 91172 | F205: 0 | G205: 91172 | I205: 105969
A206: 171 | B206: 5203346 | C206: 61601 | D206: 29571 | E206: 91172 | F206: 0 | G206: 91172 | I206: 105969
... 250 more rows

Sheet Tájékoztató
A1: Felhívjuk a figyelmet, hogy a következő dokumentációban feltüntetett adatok a készítés időpontjában érvényes adatok figyelembe vételével kerültek meghatározásra, azok a később megkötendő kölcsönszerződés adataitól eltérhetnek.
A2: I. Általános tájékoztatás a jelzáloghitelekről (A fogyasztónak nyújtott hitelről szóló 2009. évi CLXII. törvény és a jelzáloghitelre vonatkozó tájékoztatás szabályairól szóló 3/2016. (I. 7.) NGM rendelet alapján)
A4: Ügyfél neve:
A5: 1. | B5: A hitelezővel kapcsolatos adatok:
A6: 1.1 | B6: ERSTE BANK HUNGARY Zrt. (székhelye: 1138 Budapest, Népfürdő u. 24-26.)
A7: 1.2 | B7: Hitelközvetítő neve és székhelye:
B8: Hitelközvetítő telefonszáma:
B9: Hitelközvetítő levelezési címe:
B10: Közvetítői alvállalkozó neve (cégneve) és székhelye:
B11: Közvetítői alvállalkozó telefonszáma:
B12: Közvetítői alvállalkozó levelezési címe:
A13: 2. | B13: A jelzáloghitellel kapcsolatos adatok:
A14: 2.1 | B14: Felhasználási célok, amelyre a hitel fordítható:
B15: Lakásépítés (Minősített Fogyasztóbarát termék is): lakó- és üdülőingatlan építésének finanszírozása. Építési körbe tartozik a saját kivitelezésben, illetve a megbízás alapján történő lakásépítés is. Építési célnak minősül továbbá az emeletráépítés, tetőtér-beépítés, valamint a bővítés abban az esetben, ha a lakószobák száma legalább eggyel nő. A hitel iroda és üzlethelyiség építésére nem igényelhető. Lakásvásárlás (Minősített Fogyasztóbarát termék is): használt, valamint új építésű lakó- vagy üdülőingatlan, továbbá lakó-, vagy üdülőtelek megvásárlásának finanszírozása. A hitel iroda és üzlethelyiség megvásárlására nem igényelhető. Lakásfelújítás/korszerűsítés: lakó- és üdülőingatlan felújításának/ korszerűsítésének finanszírozása. Ezen tevékenységek lehetnek építési vagy szakhatósági engedélyhez / egyszerű bejelentéshez, vagy azokhoz nem kötött munkálatok. A lakásfelújítás fogalomkörbe tartozik a korszerűsítés is. A korszerűsítés része az ehhez közvetlenül kapcsolódó helyreállítási munka, a korszerűsítés közvetlen költségeinek 20%-áig. Lakásvásárlás előbírálattal (Minősített Fogyasztóbarát termék is): új- vagy használt lakásvásárlás esetén vehető igénybe. A kölcsönkérelem az aláírt ingatlan adásvételi szerződés nélkül nyújtható be a bankhoz. Az ügyfél minősítése az igazolt jövedelme és hitelképesség vizsgálata alapján történik ekkor, amely vizsgálat után a bank részéről kötelező érvényű, és szerződéskötési kötelezettséget jelentő ajánlatot kap a bank kockázati feltételeinek megfelelő ügyfél. Az ajánlat tartalmazza az ügyfélnek felajánlott kölcsönösszeget és az ehhez tartozó futamidőt. Az ajánlat érvényessége 4 hónap. A megkötött és a földhivatal által érkeztetett ingatlan adásvételi szerződést ezen 4 hónapos érvényességi időn belül kell benyújtani a bankhoz. Az ajánlatban szereplő hitelösszeg igénybevételéhez megfelelő forgalmi és hitelbiztosítéki értékű ingatlanfedezetre van szükség. A bank az ajánlatban felsorolt érvényességi feltételek teljesítése esetén köti meg az ügyféllel a lakásvásárlás finanszírozására a kölcsönszerződést. Hitelkiváltás (Minősített Fogyasztóbarát termék is): lakáshitel, egyéb ingatlan fedezetes hitel, ingatlan fedezet nélküli hitel vagy hitelek kiváltására nyújtott kölcsön. Szabad felhasználású jelzáloghitel: célja a természetes személyek olyan jellegű kiadásainak finanszírozása, melyekre célhitelt nem tud, vagy nem kíván igénybe venni.
B16: Zöld hitelcél kedvezményes finanszírozása Minősített Fogyasztóbarát Lakáshitellel / Piaci Kamatozású jelzáloghitellel: - új lakás építése vagy vásárlása, valamint az új lakáshoz kapcsolódó gépkocsitároló, tároló (új lakással egyidejű) építése vagy vásárlása o 2023. november 1. előtt kiállított építési engedéllyel rendelkező ingatlan, amennyiben az épületek energetikai jellemzőinek meghatározásáról szóló 7/2006 (V.24.) TNM rendelet szerint meghatározott összesített energetikai jellemző számított értéke (primer energiaigény) legfeljebb 76 kWh/m²/év, a Hiteles Energetikai Tanúsítvány (a továbbiakban: HET) vagy a 312/2012. (XI.8.) Korm. rendelet szerinti építészeti-műszaki dokumentációban meghatározott előzetes épületenergetikai számítások alapján; vagy o 2023. november 1. után kiállított építési engedéllyel rendelkező ingatlan, amennyiben az épületek energetikai jellemzőinek meghatározásáról szóló 9/2023. (V.25.) ÉKM rendelet szerint meghatározott összesített energetikai jellemző számított értéke (primer energiaigény) legfeljebb 76 kWh/m²/év, továbbá az épületek energetikai tanúsításáról szóló 176/2008 (VI.30.) Kormányrendelet szerinti „A” vagy annál jobb energetikai minőségi besorolással rendelkezik a Hiteles Energetikai Tanúsítvány (a továbbiakban: HET) vagy a 312/2012. (XI.8.) Korm. rendelet szerinti építészeti-műszaki dokumentációban meghatározott előzetes épületenergetikai számítások alapján;
B17: - használt lakóépület olyan felújítása, amely: o a hitelkérelem befogadásának időpontjában a HET alapján „A”-nál rosszabb energetikai minőség szerinti besorolású lakóépületet érint és a felújítás eredményeként újonnan kiállított HET alapján a lakóépület besorolása eléri vagy meghaladja az „A” minősítést, továbbá a felújított lakóépület összesített energetikai jellemzője nem haladja meg a 76 kWh/m²/év szintet; vagy o a hitelkérelem befogadásakor érvényes HET-ben szereplő összesített energetikai jellemzőhöz képest az újonnan kiállított HET-ben szereplő összesített energetikai jellemző alapján legalább 30 %-os primerenergia-igény csökkenést eredményezett; vagy - az alábbi (akár „BB”-nél rosszabb besorolású ) lakóépületen végzett korszerűsítési intézkedések közül egy vagy több végrehajtása: o Napelem vagy napkollektor telepítése, o Geotermikus, levegő-víz, levegő-levegő hőszivattyú telepítése, o Szélturbina telepítése, o Hő és elektromos tárolóegységek telepítése, o Épülethatároló szerkezetek hőszigetelése, o Homlokzati nyílászáró cseréje energiatakarékos nyílászáróra, o Árnyékolástechnika telepítése, o Fűtési, hűtési vagy szellőző rendszerek telepítése, cseréje vagy felújítása, beleértve a távhőrendszerre történő rácsatlakozást is, o Energiahatékony világítástechnika kialakítása, o Alacsony vízfelhasználású konyhai, WC vagy fürdőszobai szaniter rendszerek telepítése, o 3. generációs okosmérő rendszerek telepítése az áramfelhasználás nyomon követésére, o Zónákra osztott termosztátrendszerek, okos termosztátok és érzékelők telepítése (pl.: mozgás- és napszakérzékelő világítási rendszerek), o Épületautomatika (Building Management System) rendszerek telepítése o A Kölcsön összegéből a fent megnevezett zöld hitelcél mellett a korszerűsítési intézkedéseket lehetővé tevő valamely hiteles szakmai vagy technikai tevékenység elvégzése (pl. HET készítésének), valamint a korszerűsítési intézkedések végrehajtásához szükséges kiegészítő műszaki és egyéb berendezések, szolgáltatások beszerzése is finanszírozható, amennyiben ezek összege nem haladhatja meg a hitel összegének 30 %-át.
A18: 2.2. | B18: A jelzáloghitel biztosítékai:
B19: A fedezetül felajánlott ingatlan(ok)ra alapított, a hitelösszeg 130%-nak megfelelő összeg erejéig kiterjedő önálló zálogjog / jelzálogjog és elidegenítési és terhelési tilalom. A Bank jogosult az ügyletbe készfizető kezes bevonását előírni, amennyiben kockázati szempontok ezt indokolttá teszik.
A20: 2.3. | B20: A hitel lehetséges futamideje: Piaci kamatozású lakáshitel: - 10 éves kamatperiódussal: minimum 10 maximum 30 év - 20 éves, futamidő végéig fix kamatozással: kizárólag 20 év Szabad felhasználású jelzáloghitel (nem Minősített Fogyasztóbarát termék): - 5 éves kamatperiódussal: minimum 5 maximum 20 év - 10 éves kamatperiódussal: minimum 10 maximum 20 év Többgyermekes családok otthonteremtési kamattámogatott lakáshitele: minimum 5 maximum 25 év Erste Áthidaló hitel: 12-24 hónap
A21: 2.4. | B21: A Bank által kínált jelzáloghitelek típusai, fix kamatozású, referencia kamatlábhoz kötött, vagy kamatperiódusokban rögzített hitelek közötti különbségek rövid ismertetése, beleértve a fogyasztót érintő hatásokat:
B22: Az ERSTE BANK HUNGARY Zrt. referencia kamatlábhoz kötött, kamatperiódusokban rögzített kamatozású, valamint futamidő végéig fix kamatozású jelzáloghiteleket nyújt. Referencia kamatlábhoz kötött kamatozás esetén a hitelkamat = referencia-kamatláb + kamatfelár. A referencia-kamatláb: 6 havi Budapesti bankközi referencia-kamatláb (BUBOR). A referencia-kamatláb 6 havonta, a hónap utolsó banki munkanapját két munkanappal megelőző értékre változik, a kamatfelár a kamatfelár változtatási mutatóban rögzítettek szerint 5 évente módosulhat. Kamatperiódusokban rögzített kamatozás esetén a kamat kamatperiódusokon belül állandó, azzal hogy a kölcsön futamideje alatt változhat, kizárólag a kamatperiódus fordulónapján a kamatváltoztatási mutatóban rögzítettek szerint. A kamatperiódusok időtartama 10 év. Fix kamatozás esetén a kamat a teljes futamidő alatt rögzített, állandó azzal, hogy kizárólag lakáscélra 20 éves futamidővel érhető el.
B23: Kamatfelár: A referencia-kamatlábon felül - a hitelkamat részeként - fizetendő kamat, a hitelkamat és a referenciakamat különbségeként meghatározott kamatrész. Kamatfelár változtatási mutató: a kamatfelár módosításának alapjául szolgáló kamatváltoztatási mutató. A Bank által alkalmazott kamatfelárat, kamatváltoztatási mutatót, valamint kamatfelár változtatási mutatót a mindenkori Hirdetmény tartalmazza. Az ERSTE BANK HUNGARY Zrt. a H2F kamatfelár változtatási mutatót alkalmazza. Bővebb információk a kamatfelár változtatási mutatóról: http://www.mnb.hu/fair-bank/kamatfelar-valtoztatasi-mutato/forinthitel és https://www.erstebank.hu/hu/ebh-nyito/hitelek-es-otthon/otthonmegoldasok/kamatfelar-valtoztatasi-mutato. Kamatváltoztatási mutató kamatperiódusokban rögzített kamatozás esetén: a hitelezés refinanszírozási költségeihez és a hitel nyújtásához kapcsolódó, az üzleti kockázat körén kívül álló, a hitelezők által nem befolyásolható, tőlük független, valamint általuk el nem hárítható körülményekben bekövetkező változást objektív módon kifejező, a kamatmódosítás számításának alapjául szolgáló és a nyilvánosság számára hozzáférhető viszonyszám. Az ERSTE BANK HUNGARY Zrt. által alkalmazott kamatváltoztatási mutató: H3K10 10 éves kamatperiódus esetén. Bővebb információk a kamatváltoztatási mutatókról: http://www.mnb.hu/fair-bank/kamatvaltoztatasi-mutato/forinthitel és https://www.erstebank.hu/hu/ebh-nyito/hitelek-es-otthon/otthonmegoldasok/kamatvaltoztatasi-mutato. Kamatváltoztatási mutatót fix kamatozású termék esetén nem alkalmaz a bank figyelemmel arra, hogy a teljes 20 éves futamidő alatt fix kamatozású.
B24: A legfeljebb 3 éves futamidejű hitel annak teljes futamidejére a hitelszerződésben meghatározott: a) fix kamatozással, vagy b) a Magyar Nemzeti Bank honlapján közzétett referencia-kamatlábhoz kötött változó kamatozással és fix kamatfelárral nyújtható, és e hitel kamatfeltételei a fogyasztó számára hátrányosan és egyoldalúan nem módosíthatóak. A 3 évet meghaladó futamidejű hitel a szerződésben meghatározott, a) a Magyar Nemzeti Bank honlapján közzétett referencia-kamatlábhoz kötött változó kamatozással és annak teljes futamidejére vagy legalább 3 éves kamatperiódusokban rögzített kamatfelárral, b) legalább 3 éves kamatperiódusokban rögzített hitelkamattal, vagy c) fix kamatozással nyújtható a fentiek szerint.
A25: 2.5. | B25: Olyan hitelszerződés esetén, amely a 2016/1011/EU európai parlamenti és tanácsi rendelet 3. cikk (1) bekezdésének 3. pontjában meghatározott referenciamutatóra hivatkozik, a referenciamutatók és azok kezelőinek nevei, valamint következményei a fogyasztóra nézve:
B26: Bővebb információ a jelen tájékoztató 2.4. pontjában
A27: 2.6. | B27: Forinttól eltérő devizanem esetén annak törlesztésekor s adott esetben átváltáskor jelentkező következményei a fogyasztóra nézve: Az ERSTE BANK HUNGARY Zrt. Jelenleg csak forint devizanemben nyújt jelzáloghitelt.
A28: 2.7. | B28: Egy reprezentatív példával a hitel teljes összege, a hitel teljes díja, a fogyasztó által fizetendő teljes összeg és a teljes hiteldíjmutató:
B29: A hitel teljes összege: 12 000 000 Ft
B30: ="A hitel futamideje: " & IF(cellKamatPeriodus="15 ÉVES FIX",180,240) & " hónap" -> A hitel futamideje: 240 hónap
B31: ="A hitel típusa: " & cellTermekNevePiaciLakashitel & " " & cellKamatperiodusSzam & " éves " & IF(OR(cellKamatPeriodus="15 ÉVES FIX",cellKamatPeriodus="20 ÉVES FIX"), "fix kamatozással", "kamatperiódussal") & " 2. kedvezmény kategória" -> A hitel típusa: Piaci kamatozású lakáscélú hitel 10 éves kamatperiódussal 2. kedvezmény kategória
B32: A hitel teljes díja: | E32: =VLOOKUP(Segéd!$K$80,tblReprezentativPeldaTabla,2,FALSE) -> 9972056
B33: A fogyasztó által fizetendő teljes összeg: | E33: =VLOOKUP(Segéd!$K$80,tblReprezentativPeldaTabla,3,FALSE) -> 21972056
B34: THM: | E34: =VLOOKUP(Segéd!$K$80,tblReprezentativPeldaTabla,4,FALSE) -> 0.07014912521
B35: A hitel teljes összege: 12 000 000 Ft
B36: A hitel futamideje: 240 hónap
B37: ="A hitel típusa: " & cellTermekNeveSzabfel & " " & cellKamatperiodusSzam & " éves kamatperiódussal 2. kedvezmény kategória" -> A hitel típusa: Szabad felhasználású jelzáloghitel 10 éves kamatperiódussal 2. kedvezmény kategória
B38: A hitel teljes díja: | E38: =VLOOKUP(Segéd!$K$81,tblReprezentativPeldaTabla,2,FALSE) -> 15864200
B39: A fogyasztó által fizetendő teljes összeg: | E39: =VLOOKUP(Segéd!$K$81,tblReprezentativPeldaTabla,3,FALSE) -> 27864200
B40: THM: | E40: =VLOOKUP(Segéd!$K$81,tblReprezentativPeldaTabla,4,FALSE) -> 0.1052192388
A41: 2.8. | B41: A hitel teljes díjába bele nem számított további költségek és díjak: - a közjegyzői okirat becsült díja: 4 000 000 Ft - 5 000 000 Ft hitelösszeg esetén 35 000 Ft - 42 000 Ft; 5 000 001 Ft - 10 000 000 Ft hitelösszeg esetén 42 000 Ft - 58 000 Ft; 10 000 001 Ft - 15 000 000 Ft hitelösszeg esetén 58 000 Ft - 66 000 Ft; 15 000 001 Ft - 20 000 000 Ft hitelösszeg esetén 66 000 Ft - 74 000 Ft; 20 000 001 Ft - 30 000 000 Ft hitelösszeg esetén 74 000 Ft - 91 000 Ft; 30 000 001 Ft - 40 000 000 Ft hitelösszeg esetén 91 000 Ft - 108 000 Ft; 40 000 001 Ft - 50 000 000 Ft hitelösszeg esetén 108 000 Ft - 126 000 Ft; 50 000 001 Ft - 60 000 000 Ft hitelösszeg esetén 126 000 Ft - 142 000 Ft; 60 000 001 Ft - 70 000 000 Ft hitelösszeg esetén 142 000 Ft - 160 000 Ft; 70 000 001 Ft - 80 000 000 Ft hitelösszeg esetén 160 000 Ft - 176 000 Ft; 80 000 001 Ft - 90 000 000 Ft hitelösszeg esetén 176 000 Ft - 192 000 Ft; 90 000 001 Ft -100 000 000 Ft hitelösszeg esetén 192 000 Ft - 210 000 Ft; A fenti díjak feltüntetett összege becslésen alapul és egyoldalú kötelezettségvállaló nyilatkozatra vonatkozik; a díj pontos mértéke - közvetlenül a szerződéskötést megelőzően -a közjegyző által kerül meghatározásra. (közjegyzői okriat díjának összegét a Bank a Lakossági Hitel Hirdetményben meghirdetett akció és abban meghatározott feltételek teljesülése alapján előzetes megfizetés után visszatéríti legfeljebb 50 000 Ft-ig) - vagyonbiztosítás díja, mivel a hitelező számára annak mértéke nem ismert - opcionális hitelfedezeti életbiztosítás díja, mivel a hitelező számára annak mértéke nem ismert - Hiteles energetikai tanúsítvány díja (Minősített Fogyasztóbarát Lakáshitel és Piaci kamatozású lakáscélú jelzáloghitel kedvezményes zöld hitelcél esetén), mivel a hitelező számára annak mértéke nem ismert.
A42: 2.9. | B42: Az előtörlesztés lehetősége és annak feltételei: Az előtörlesztési szándékáról írásban értesítenie kell a Bankot. Ilyen esetben a Bank Önnel egyeztetve vagy a havi törlesztőrészletek összegét csökkenti vagy a kölcsön lejárati időpontját változtatja meg változatlan fizetési kötelezettség mellett. Az előtörleszteni kívánt összeg elszámolására a 2009. évi CLXII. törvény (Fhtv.) 25. §-a alapján az előtörlesztési nyilatkozat rendelkezésre bocsátását és az előtörlesztéshez szükséges pénzösszeg Bank által megjelölt számlán/lakossági bankszámlán történő biztosítását követően 5 banki munkanapon belül kerül sor. Amennyiben az esedékes törlesztőrészlet nem kerül megfizetésre, úgy a Bank jogosult az előtörlesztésre szánt összegből az esedékes törlesztőrészletet kiegyenlíteni. Ez esetben a Bank csak az esedékes törlesztőrészlet kiegyenlítése után fennmaradó összeget fordítja előtörlesztésre. Az előtörlesztés esetén a Bank kizárólag a Hirdetmény szerinti elő-/ végtörlesztési díjat számol fel.[if:JOTKPLS] A CSOK Plusz hitelprogram keretében kamattámogatott kölcsön esetén a kölcsönkérelem benyújtását követően született második és minden egyes további gyermek esetén gyerekenként 10 MFt gyermekvállalási támogatás jár, amit a Bank köteles a kölcsön nem lejárt tőke és kamatainak csökkentésére, azaz előtörlesztésre fordítani a teljes kérelmi dokumentáció benyújtását követő 3. munkanapon.[:if] Minősített Fogyasztóbarát hitel: A bármely lakástakarék-pénztári, a lakástakarék-pénztári szerződésben rögzített összegű havi betét befizetésével a teljes vagy részleges előtörlesztés időpontjáig szerződés szerint elérhető megtakarításból, a hozzá kapcsolódó állami támogatásból és az azokra jóváírt kamatból finanszírozott teljes vagy részleges előtörlesztés annak lejáratakor díjmentes.
A43: 2.10. | B43: A Bank által kínált törlesztési lehetőségek, beleértve a törlesztőrészletek számát, összegét és a törlesztés gyakoriságát: Szakaszos folyósítású (építési, bővítési, felújítási, korszerűsítési) hitelek esetében a rendelkezésre tartási időszak alatt a kifolyósított hitelrész után kizárólag kamat, a ki nem folyósított hitelrész után rendelkezésre tartási jutalék fizetése történik. A rendelkezésre tartási jutalék mértéke a rendelkezésre tartott összeg 1%-a. A teljes hitelrész folyósítását/ rendelkezésre tartási időszak leteltét követően kezdődik meg a tőke törlesztése az annuitás módszerével. A Bank annuitásos módszerrel határozza meg a törlesztő részletet, mely tartalmazza a tőkét és a kamatot.
B44: =CONCATENATE("A kölcsön törlesztése havi részletekben történik, a törlesztő részletek száma ",Calc!C6,", a törlesztő részletek összege: ",ROUND(Calc!G36,0)," Ft."," A törlesztő részletek minden hónap 15-én esedékesek. Ha az esedékesség napja munkaszüneti nap vagy bankszünnap, úgy a fizetési határidő napja a munkaszüneti napot vagy bankszünnapot közvetlenül követő munkanap.") -> A kölcsön törlesztése havi részletekben történik, a törlesztő részletek száma 240, a törlesztő részletek összege: 91172 Ft. A törlesztő részletek minden hónap 15-én esedékesek. Ha az esedékesség napja munkaszüneti nap vagy bankszünnap, úgy a fizetési határidő napja a munkaszüneti napot vagy bankszünnapot közvetlenül követő munkanap.
A45: 2.11. | B45: A fedezetül szolgáló ingatlan értékelésének szükségessége, ki végezteti el az értékelést, és a fogyasztót ezzel kapcsolatban milyen költség terheli:
B46: A Fogyasztót terhelő költségek: A fedezetül szolgáló ingatlant minden esetben értékelni kell. Az értékbecslést (építési jellegű hitelek esetén műszaki szakértést is) minden esetben az ERSTE BANK HUNGARY Zrt. kiemelt közvetítőjeként eljáró ERSTE Jelzálogbank Zrt. által kijelölt szakértő végzi el. Lakóingatlan, üres építési telek értékbecslése 46.000 Ft Értékbecslés felülvizsgálat 23.000 Ft Nem lakóingatlanok (kereskedelmi (üzletek, vendéglátó egységek), ipari, stb.) ingatlanok értékbecslése - 3000 m2 alatti felépítmény esetén 155.000 Ft - 3000 m2-t elérő/meghaladó felépítmény esetén - Egyedi értékmeghatározás - Szakértői árajánlatok alapján Szántó-földterületi ingatlanok értékbecslése (20 Ha alatti területek esetén) 46.000 Ft (az értékbecslési díjak egybefüggő, egymással fizikai kapcsolattal bíró területenként értendőek, nem HRSZ-ként) 20 Ha-t elérő és nagyobb területek esetén - Egyedi értékmeghatározás - Szakértői árajánlatok alapján Értékbecslés és műszaki szakértés 62.000 Ft Műszaki szakértés 29.000 Ft
A48: 2.12. | B48: Azok a kapcsolódó szolgáltatások, amelyeket a fogyasztónak igénybe kell vennie a hitel felvételéhez vagy a meghirdetett feltételek melletti felvételéhez, ha van rá lehetőség, annak feltüntetése, hogy a kapcsolódó szolgáltatásokat a hitelezőtől eltérő szolgáltatótól lehet megvenni, illetve a kapcsolódó szolgáltatás külön szerződéses jogviszony létrejöttéhez kötött-e: A hitel feltétele az ERSTE BANK HUNGARY Zrt-nél vezetett bankszámla (Lakossági Bankszámla vezetésére és kapcsolódó szolgáltatások nyújtására Számlavezetési Szolgáltatási Keretszerződés alapján), a fedezeti ingatlan(ok)ra vonatkozó, a bank zálogjogával terhelt vagyonbiztosítás (külön szerződés alapján) és egyedi bírálat alapján, a hitelkockázat csökkentése érdekében hitelfedezeti életbiztosításra vonatkozó külön szerződés megkötése. A fedezeti ingatlan(ok)ra vonatkozó vagyonbiztosításra és az esetileg előírható hitelfedezeti életbiztosításra vonatkozó szerződés ERSTE BANK HUNGARY Zrt-n kívüli szolgáltatóval is megköthető. Önnek lehetősége van díjmentes számla igénylésére, amely kizárólag a hitel törlesztőrészletének és az esetleges kapcsolódó díjak elszámolására szolgál. A hitelcél ingatlanra vonatkozó Hiteles energetikai tanúsítvány (Minősített Fogyasztóbarát Lakáshitel és Piaci kamatozású lakáscélú jelzáloghitel kedvezményes zöld hitelcél esetén) a zöld hitelcél teljesítésének igazolására.
A49: 2.13. | B49: Általános figyelmeztetés a hitelszerződés be nem tartásának lehetséges következményeire: Lejárt tartozás esetén késedelmi kamat kerül felszámításra. A Bank a késedelmes teljesítéshez kapcsolódó késedelmi kamatot, illetve a követelés érvényesítésével kapcsolatos díjat, költséget a mindenkori Lakossági Hitel Hirdetmény szerint számol fel. Amennyiben az adós a kölcsön visszafizetésével kapcsolatos kötelezettségének az erre való felszólítást követően sem tesz eleget, az szerződésszegésnek minősül, amelynek következtében a Bank azonnali hatállyal felmondhatja a kölcsönszerződést. A szerződés felmondásával a teljes tartozás lejárttá, egy összegben esedékessé válik, és a tartozás meg nem fizetése esetén a Bank a biztosítékok érvényesítésére jogosult. A tartozás érvényesítése céljából a Bank jogosult igényérvényesítési eljárást kezdeményezni az Adóssal, Kezessel, Zálogkötelezettel szemben. A felmondott szerződésből eredő tartozások érvényesítésének költségei az Adóst a Kezest és a hitelbiztosíték nyújtóját - azaz a Zálogkötelezettet - terhelik. A tartozások érvényesítése érdekében az Adós és Kezes jövedelme és más vagyontárgyai illetve az ügylet további biztosítékai egyaránt végrehajtás alá vonhatóak.
A50: 2.14. | B50: A lakáshitelek törlesztéséhez kapcsolódó adókedvezményre és egyéb állami támogatásra vonatkozó általános tájékoztatás, illetve tájékoztatás arról, hogy hol lehet további felvilágosítást kapni: Lakáshitelek törlesztéséhez munkáltatója adómentes támogatást nyújthat a 15/2014. (IV.3.) NGM rendeletben (az adómentes munkáltatói lakáscélú támogatás folyósításának szabályairól) foglaltak szerint. További részletekről itt tájékozódhat: https://www.nav.gov.hu/nav/ado/szja Használt lakás vásárlásához, bővítéséhez, új lakás vásárlásához, építéséhez vissza nem térítendő állami támogatást igényelhet a jogszabályi feltételeknek való megfelelés esetén. Három gyermekes, vagy három gyermeket vállaló családok, továbbá állami kamattámogatott hitelt is igényelhetnek. További részletek az ajánlatadás során átadott PM tájékoztatókban, illetve internetes oldalainkon (https://www.erstebank.hu/hu/ebh-nyito/hitelek-es-otthon/lakascelu-tamogatasok és https://www.erstebank.hu/hu/ebh-nyito/hitelek-es-otthon/lakascelu-tamogatasok/kamattamogatott-hitelek) A családok otthonteremtési kedvezménye és többgyermekes családok otthonteremtési kamattámogatott lakáshitele Magyarország Kormánya által nyújtott támogatás.
A51: 2.15. | B51: A hitelbírálat időtartama: A hitelbírálat várható időtartama 90 nap. Amennyiben a hitelbírálat során a Bank hiánypótlást rendel el, a hiánypótlásra való felszólítástól a hiánypótlás teljesítéséig eltelt idő nem számít bele a 90 napba. Minősített Fogyasztóbarát termék esetében: a hitelbírálat várható időtartama a befogadást követően az értékbecslés rendelkezésére állásától számított 15 munkanap.
A52: II. Személyes tájékoztatás a jelzáloghitelről (A fogyasztónak nyújtott hitelről szóló 2009. évi CLXII. törvény és a a jelzáloghitelre vonatkozó tájékoztatás szabályairól szóló 3/2016. (I. 7.) NGM rendelet alapján)
A54: Ez a dokumentum | B54: =+TODAY() -> 2024-04-22 | C54: =CONCATENATE("napján"," ",C4," ","részére készült") -> napján részére készült
A55: Ez a dokumentum az Ön által ezidáig megadott adatok és a jelenlegi pénzügyi piaci feltételek alapján készült.
A56: Az alábbi tájékoztatás | C56: =+B54+15 -> 2024-05-07 | D56: napjáig érvényes. Ezt követően a piaci feltételek függvényében változhat.
A57: Jelen tájékoztató nem minősül jogilag kötelező érvényű ajánlatnak. A tájékoztatóban szereplő adatokat a hitelező jóhiszeműen nyújtja és azon ajánlatát tükrözi, amelyet a rendelkezésre álló információk alapján a jelenlegi piaci feltételek mellett tenne. Az adatok a piaci feltételek változása esetén megváltozhatnak. Ez a tájékoztató nem kötelezi az ERSTE BANK HUNGARY Zrt.-t arra, hogy hitelt nyújtson Önnek.
A58: 1. Hitelező 1.1. A hitelező neve, telefonszáma és levelezési címe | B58: ERSTE BANK HUNGARY Zrt. (székhelye: 1138 Budapest, Népfürdő u. 24-26.) Telefonszám: +36 1 298 0222 Levelezési dím: ERSTE BANK HUNGARY ZRT. Budapest 1933
A59: 2. A hitelközvetítő 2.1. | B59: Hitelközvetítő / Közvetítői alvállalkozó neve és székhelye: | E59: =IF(AND(ISBLANK(tajAlvallalkozoNev),ISBLANK(tajHitelKozvetitoNev)),"",IF(ISBLANK(tajAlvallalkozoNev),tajHitelKozvetitoNev,tajAlvallalkozoNev)) -> 
B60: Hitelközvetítő / Közvetítői alvállalkozó telefonszáma: | E60: =IF(AND(ISBLANK(tajAlvallalkozoTel),ISBLANK(tajHitelKozvetitoTel)),"",IF(ISBLANK(tajAlvallalkozoTel),tajHitelKozvetitoTel,tajAlvallalkozoTel)) -> 
B61: Hitelközvetítő / Közvetítői alvállalkozó levelezési címe: | E61: =IF(AND(ISBLANK(tajAlvallalkozoCim),ISBLANK(tajHitelKozvetitoCim)),"",IF(ISBLANK(tajAlvallalkozoCim),tajHitelKozvetitoCim,tajAlvallalkozoCim)) -> 
A62: 2.2. A hitelközvetítő jutaléka | B62: A hitelközvetítő díjazásának módja: | E62: =IF(E59<>"",Segéd!A37,"") -> 
B63: A hitelközvetítő jutalékának összege: | E63: =IF(E59<>"",Calc!C5*1.6%,"") ->  | F63: =IF(E59<>"",Segéd!A38,"") -> 
E64: =IF(E59<>"",Calc!C5*0.4%,"") ->  | F64: =IF(E59<>"",Segéd!A39,"") -> 
B65: A hitelközvetítő jutalékának esedékessége: | F65: =IF(E59<>"",Segéd!A40,"") -> 
A66: 3. A hitel fő jellemzői 3.1. A hitel összege és pénzneme | B66: ="A hitel összege és pénzneme: " & TEXT(Calc!C5,"# ### ##0") & " forint" -> A hitel összege és pénzneme: 12 000 000 forint
A67: A hitelkamatlábbal összefüggő potenciális kockázatok | B67: =IF(OR(cellKamatPeriodus="15 ÉVES FIX",cellKamatPeriodus="20 ÉVES FIX"),Segéd!A45,Segéd!A42 & Segéd!A43 & Segéd!A44) -> A kölcsön kamatlábának emelkedése esetén a törlesztőrészlet megemelkedik. Minél hosszabb a hitel futamideje, annál nagyobb arányban emelkedik a törlesztőrészlet a kamatláb azonos mértékű emelkedése esetén. A kölcsön kamata 10 évente emelkedhet, legfeljebb öt alkalommal a hitel futamideje alatt, de csak a Magyar Nemzeti Bank által elfogadott módszertannak és kamatváltoztatási mutatónak megfelelően. A havi törlesztőrészlet emelkedését okozhatja, ha Ön nem teljesíti a szerződésben vállalt feltételeket, amelyek vállalása fejében a Bank kedvezményes kamatozású hitelt nyújt Önnek. A feltételek nem teljesítése miatt a kamat 6 hónap után emelkedhet, ezen kamatemelkedés nem minősül a Bank részéről egyoldalú szerződésmódosításnak. Felhívjuk figyelmét, hogy a gazdasági, pénzügyi környezet változása akár nagy mértékű emelkedést is okozhat az Ön által fizetendő kamat mértékében is. Az Erste Bank Hungary Zrt. által alkalmazott H3K kamatváltoztatási mutató képletében lévő ÁKK kamatok aktuális és historikus értékeit az Államadósság Kezelő Központ internetes oldalán érheti el: http://www.akk.hu/hu/statisztika/hozamok-indexek-forgalmi-adatok/referenciahozamok
A68: 3.2. A hitel futamideje | B68: =Calc!C6 & " hónap" -> 240 hónap
A69: 3.3. A hitel típusa | B69: ="A hitel típusa: " & IF(Segéd!B9="piaci kamatozású lakáscélú hitel",cellHitelCel," szabad felhasználású jelzáloghitel") & IF(Calc!C23=0," annuitásos törlesztéssel, ahol a havi törlesztőrészletek összege állandó, a törlesztőrészleten belül a kamat és tőke aránya változó."," türelmi idős, ahol a rendelkezésre tartási időszak alatt Ön a le nem hívott hitelrész után csak rendelkezésre tartási jutalékot, a folyósított hitelrész után csak kamatot fizet, a tőketörlesztés a rendelkezésre tartási időszakot követően kezdődik el.") -> A hitel típusa: Piaci kamatozású lakáscélú hitel annuitásos törlesztéssel, ahol a havi törlesztőrészletek összege állandó, a törlesztőrészleten belül a kamat és tőke aránya változó.
A70: 3.4. Az alkalmazandó kamatláb típusa | B70: =IF(OR(cellKamatPeriodus="15 ÉVES FIX",cellKamatPeriodus="20 ÉVES FIX"),Segéd!A51,Segéd!A47 & Segéd!A43 & Segéd!A48 & Segéd!A43 & Segéd!A49 & Segéd!A43& Segéd!A50) -> Rögzített kamatozás 10 éves kamatperiódusokra. A kamatperiódus időtartama alatt a kamat változatlan. A kamatláb 10 évente a kamatváltoztatási mutató alapján módosulhat, legfeljebb 5 alkalommal a futamidő alatt. A Bank által alkalmazott kamatváltoztatási mutatót a mindenkori hirdetmény tartalmazza. A kamatváltoztatási mutató alapján, a kamatperiódus fordulónapján történő egyoldalú módosításról a Bank 90 nappal megelőzően írásban tájékoztatja az Adósokat. A Bank által alkalmazott kamatváltoztatási mutató: H3K10. A képletben szereplő ÁKK kamatok aktuális és idősoros értékei elérhető az Államadósság Kezelő Központ internetes oldalán: http://www.akk.hu/hu/statisztika/hozamok-indexek-forgalmi-adatok/referenciahozamok. A Bank által alkalmazott kamatváltozatási mutatóról részletes információk az MNB honlapján: https://www.mnb.hu/fair-bank/kamatvaltoztatasi-mutato/forinthitel/h3k-3-szamu-kamatvaltoztatasi-mutato-forinthitelek-eseten valamint az Erste Bank Hungary Zrt. honlapján : https://www.erstebank.hu/hu/ebh-nyito/hitelek-es-otthon/otthonmegoldasok/kamatvaltoztatasi-mutato
A71: 3.5. A fizetendő teljes összeg | B71: =CONCATENATE("Az Ön által fizetendő teljes összeg: ", TEXT(Calc!C28,"# ### ###"), " Ft. ", "Ez azt jelenti, hogy ",TEXT(Calc!C5,"# ### ###")," Ft-ért, amelyet hitelként felvesz ", TEXT(Calc!C28,"# ### ###"), " Ft-ot kell visszafizetnie. Ez az összeg csupán szemléltető jellegű, és változhat, különösen a hitelkamatláb változása alapján. ") -> Az Ön által fizetendő teljes összeg: 21 972 056 Ft. Ez azt jelenti, hogy 12 000 000 Ft-ért, amelyet hitelként felvesz 21 972 056 Ft-ot kell visszafizetnie. Ez az összeg csupán szemléltető jellegű, és változhat, különösen a hitelkamatláb változása alapján.
B72: A fizetendő teljes összegből a hitel teljes díja: | F72: =Calc!C27 -> 9972056
B73: Ez az összeg csupán szemléltető jellegű, és változhat, különösen a hitelkamatláb változása alapján.
A74: 3.6. A hitel biztosítéka | B74: A fedezetül felajánlott ingatlan(ok)ra a Bank, mint jogosult javára a hitelösszeg 130%-nak megfelelő összeg erejéig kiterjedő önálló zálogjog (kamattámogatott hitelek esetén jelzálogjog) és elidegenítési és terhelési tilalom kerül bejegyzésre, illetve feljegyzésre.
A75: 3.7. Az igénybe vehető maximális hitelösszeg az ingatlan értékéhez viszonyítva | B75: A hatályos jogszabályok alapján (32/2014. MNB rendelet) a hitel fedezetéül felajánlott ingatlanra bejegyzett önálló zálogjoggal / jelzálogjoggal biztosított jelzáloghitel összege nem haladhatja meg az ingatlan Bank által elfogadott forgalmi értékének a 80%-t. A maximálisan igénybe vehető hitelösszeg így legfeljebb az ingatlan piaci értékének 80%-a lehet. Ettől a Bank szigorúbb irányba eltérhet, a fedezetül felajánlott ingatlan alapján adható hitelösszeg a hitelbírálat során, a Bank belső szabályzatainak, és a vonatkozó jogszabályoknak megfelelően kerül megállapításra. Amennyiben a fedezetül felajánlott ingatlan Bank által elfogadott forgalmi értéke 5.000.000 Ft, úgy annak a 80%-a 4.000.000 Ft, azaz a maximálisan igénybe vehető hitelösszeg jelen példa esetében: 4.000.000 Ft. Új és használt lakás vásárlása esetén speciális szabály, hogy a hitel összege nem haladhatja meg az ingatlan forgalmi értékének 90%-át, továbbá egy ingatlanfedezet esetén, ha ez megegyezik a hitelcéllal, úgy a vételár 90%-át, ha • a hitelkérelem benyújtásának napjáig az Igénylők még nem töltötték be a 41. életévüket, és • egyikük sem rendelkezett lakásban 50%-ot elérő tulajdoni hányaddal, vagy • kizárólag olyan lakástulajdonnal rendelkeztek, amely – a tulajdoni hányad mértékétől függetlenül – jogszabályon alapuló haszonélvezeti joggal terhelt.
A78: 4. Kamat és egyéb költségek | B78: A teljes hiteldíj mutató (THM) a hitel teljes éves díját mutatja meg százalékban kifejezve. A THM a különböző ajánlatok összehasonlítását szolgálja. Kérjük, tájékozódjon az ehhez a hitelhez kapcsolódó minden egyéb illetékről és költségről.
B79: Az Ön hitelére érvényes THM: | E79: =Calc!H5 -> 0.07014912521
B80: A THM az alábbiakat tartalmazza: Egyszeri költségek: A jelzálogjog bejegyzése, valamint a bejegyzés módosítása iránti eljárás díja - változással érintett ingatlanonként: 12.600 Ft.
B81: =IF(OR(cellKamatPeriodus="15 ÉVES FIX",cellKamatPeriodus="20 ÉVES FIX"),"Kamatláb végig a teljes " & cellKamatperiodusSzam & " éves futamidő alatt:","Kamatláb az első " & Segéd!A43 & " éves kamatperiódusra:") -> Kamatláb az első 10 éves kamatperiódusra: | E81: =Calc!C9 -> 0.0674
A82: 4.1. THM egyéb költségei | B82: Egyszeri fizetendő költségek: A jelzálogjog bejegyzéséért díjat kell fizetnie. A díj összege a változással érintett ingatlanonként 12 600 Ft.
B83: Értékbecslési díj: | D83: =Calc!C15+Calc!C16 -> 0 | E83: =IF(D83=0,Segéd!A3," ") -> A Bank a hitel folyósítását követően visszatéríti az értékbecslés végzésekor az értékbecslőnek számla ellenében kifizetett díjat. (1 db, a célingatlanra vonatkozó műszaki szakértés díja, valamint a célingatlanra vonatkozó záró értékbecslési és műszaki szakértői díj)
B84: Tulajdoni lap lekérési díja: | D84: =Calc!C18 -> 0 | E84: =IF(D84=0,Segéd!D4," ") -> A hitelügyletben szereplő ingatlan(ok)hoz tartozóan hitelügyletenként 2 darab tulajdoni lap másolat TAKARNET rendszerből történő lekérdezésének díját a Bank 0 Ft-ban állapítja meg.
B85: Térképmásolat lekérési díja: | D85: =Calc!C19 -> 0 | E85: =IF(D85=0,Segéd!D5," ") -> A hitelügyletben szereplő ingatlan(ok)hoz tartozóan hitelügyletenként 1 darab térképmásolat TAKARNET rendszerből történő lekérdezésének díját a Bank 0 Ft-ban állapítja meg.
B86: Folyósítási jutalék: | D86: =Calc!C14 -> 0 | E86: =IF(D86=0,Segéd!A4," ") -> Nem Minősített Fogyasztóbarát termék esetében a Bank akció keretében nem számítja fel a folyósításra kerül összeg 1%-a, de maximum 200 000 Ft folyósítási jutalékot. Minősített Fogyasztóbarát termék esetében a a Bank akció keretében nem számítja fel a folyósításra kerül összeg 0,15%-a, de maximum 100 000 Ft folyósítási jutalékot.
B87: Rendszeres költségek:
B88: Számlavezetés díj: | D88: =Calc!C21 -> 325 | E88: =IF(D88=234,Segéd!A5,"A standard kategóriához biztosított Standard számla díjmentes") -> A standard kategóriához biztosított Standard számla díjmentes
B89: =IF(OR(cellKamatPeriodus="15 ÉVES FIX",cellKamatPeriodus="20 ÉVES FIX"),"Mivel az Ön hitele nem változó (azaz fix) kamatlábú, a mindenkori THM nem térhet el kamatváltozásból adódódan az előbbiekben meghatározott THM mértékétől.","Mivel az Ön hitele változó kamatlábú, a mindenkori THM eltérhet az előbbiekben meghatározott THM mértékétől, ha a hitel kamatlába változik. Például amennyiben a kamatláb: " & TEXT(Calc!I32,"0,00%") & "-ra emelkedne, a THM " & TEXT(Calc!I33,"0,00%") & " -ra nőhet.") -> Mivel az Ön hitele változó kamatlábú, a mindenkori THM eltérhet az előbbiekben meghatározott THM mértékétől, ha a hitel kamatlába változik. Például amennyiben a kamatláb: 8,74%-ra emelkedne, a THM 9,51% -ra nőhet.
B90: Az alábbi költségek nem ismertek a hitelező számára, és így azokat a THM nem foglalja magában: - a fedezetül felajánlott ingatlanra kötött vagyonbiztosítás díja - a folyósított hitel átutalásának díja (Minősített Fogyasztóbarát Lakáshitel esetén a Bank átutalási díjat nem számol fel.) - szakaszos folyósítású (építési, bővítési, felújítási, korszerűsítési) hitel esetén a rendelkezésre tartási jutalék 1%-os mértéke a rendelkezésre tartott összegre számítva. - a Hiteles Energetikai Tanúsítvány díja (Minősített Fogyasztóbarát Lakáshitel zöld hitelcél esetén)
B91: =IF(cellJovedelemKategoria="Standard, kedvezmény nélkül"," ",Segéd!A18) -> A Bank a Kölcsönkérelemben kéri az ügyfél az irányú nyilatkozatát, hogy a hitel felvétele esetén mely kedvezmény kategória szerinti feltételek teljesítését vállalja a hitel teljes futamidejére. Ezen nyilatkozat alapján kerül meghatározásra a kamatkondíció. Az egyes kedvezmény kategóriák igénybevételének feltételei a következők:
B92: Kedvezmény kategória elnevezése | E92: Kedvezmény kategória feltétele
B93: =Segéd!B14 -> 2. kedvezmény kategória | E93: =VLOOKUP(Segéd!B14,Segéd!$A$23:$B$35,2,FALSE) -> 200.000 forintot elérő havi jóváírás vállalása
B94: =IF(ISNUMBER(FIND("Standard, kedvezmény nélkül",Segéd!B14))," ",IF(ISNUMBER(FIND("Diákhitel",Segéd!B14)),Segéd!A20,Segéd!A19)) -> A Bank a teljes futamidő alatt jogosult az ügyleti év kezdő napjától számított 6 havonta felülvizsgálni, hogy a vállalt kedvezmény kategória szerinti feltételek teljesülnek-e. Amennyiben 3 egymást követő hónapban nem teljesül a vállalt feltétel, akkor az ügylet vonatkozásában az ügyfél nem jogosult az ellenőrzést követő 6 hónapban igénybe venni egyik kedvezmény kategória szerinti kondíciót sem. Ebben az esetben a kamatkedvezmény mértékével növelt kamatot veszi fel az ügylet. Az ebből eredő kamatváltozás nem tekinthető a Bank részéről egyoldalú kamatmódosításnak. Amennyiben a következő felülvizsgálatkor megállapítást nyer, hogy az ügyfél ismét teljesíti a kölcsönkérelemben vállalt feltételt, akkor az ügylet vonatkozásában ismét jogosulttá válik a következő 6 hónapban a kölcsönkérelemben vállalt kedvezménykategória szerinti kamatkedvezmény igénybevételére.
A95: 5. A törlesztések gyakorisága és száma | B95: Törlesztések gyakorisága: havonta
B96: =CONCATENATE("Törlesztések száma:"," ",Calc!C6) -> Törlesztések száma: 240
A97: 6. Az egyes törlesztőrészletek összege | B97: =IF(OR(cellKamatPeriodus="15 ÉVES FIX",cellKamatPeriodus="20 ÉVES FIX"),"Törlesztőrészlet összege a teljes futamidő alatt változatlan, a hitel kamata végig rögzített: " & ROUND(Calc!H10, 0) & " Ft. Az Ön jövedelme változhat. Kérjük, gondolja át, hogy a jövedelme csökkenése esetén is képes lesz-e törleszteni a havi részleteket.",Segéd!A53 & TEXT(Calc!H10,"# ### ###") & Segéd!A54 & Segéd!A43 & Segéd!A55 & CHAR(10) & CHAR(10) & "Az Ön jövedelme változhat. Kérjük, gondolja át, hogy a jövedelme csökkenése esetén is képes lesz-e törleszteni a havi részleteket." & CHAR(10) & CHAR(10) & "E hitelnek a kamata változhat. Ez azt jelenti, hogy az Ön által fizetendő törlesztőrészletek összege nőhet vagy csökkenhet. ") -> Törlesztőrészlet összege az első kamatperiódus alatt, amely kamatperiódusra a kamat rögzített: 91 172Ft. A kamat 10 évente az egyes kamatperiódusok fordulónapján változhat, legfeljebb 5 alkalommal a futamidő alatt. A kamat változtatásának mértékét a kamatváltoztatási mutató tartalmazza. Az Ön jövedelme változhat. Kérjük, gondolja át, hogy a jövedelme csökkenése esetén is képes lesz-e törleszteni a havi részleteket. E hitelnek a kamata változhat. Ez azt jelenti, hogy az Ön által fizetendő törlesztőrészletek összege nőhet vagy csökkenhet.
B99: =Segéd!A56 & Segéd!A43 & Segéd!A57 -> Amennyiben azt feltételezzük, hogy az 10 éves ÁKK kamatok a kamatfordulót 120 nappal megelőzően az azt megelőző három hónapban a valaha volt legmagasabb számtani átlagot elérő mértékre változnak, akkor az első kamatfordulókor az Ön hitelének kamata így módosul a 121 hónaptól:
B100: =+IF(Calc!F21="5 ÉVES kamatperiódus",Segéd!A59,Segéd!A60) -> 0.1388
B101: =+IF(Calc!F21="10 ÉVES kamatperiódus","Ebben az esetben a törlesztőrészlete az első kamatfordulót követően a 11. üzleti évtől szerződésszerű teljesítés esetén:",+IF(Calc!F21="5 ÉVES kamatperiódus","Ebben az esetben a törlesztőrészlete az első kamatfordulót követően a 6. üzleti évtől szerződésszerű teljesítés esetén:;""")) -> Ebben az esetben a törlesztőrészlete az első kamatfordulót követően a 11. üzleti évtől szerződésszerű teljesítés esetén:
B102: =+IF(Calc!F21="10 ÉVES kamatperiódus",CONCATENATE(+Segéd!F62, " Ft"),+IF(Calc!F21="5 ÉVES kamatperiódus",CONCATENATE(+Segéd!A62," Ft"))) -> 122768 Ft
B103: =IF(Segéd!A16>0,Segéd!A65,"") -> Amennyiben azt feltételezzük, hogy Ön nem teljesíti a kedvezményes kamat nyújtásához vállalt feltételeket, akkor a hitelkamat így változna:
B104: =IF(Segéd!A16>0,VLOOKUP(Segéd!A64,tblArazas,3,FALSE),"") -> 0.0689
B105: =IF(Segéd!A16>0,Segéd!A66,"") -> Ebben az esetben az Ön törlesztőrészlete a 7. hónaptól:
B106: =IF(Segéd!A16>0,-PMT(B104/12,Calc!$C$6-Calc!$C$23,Calc!$B$41),"") -> 91133.24663
A107: 7. Szemléltető törlesztési táblázat | B107: Törlesztési táblázatok Ebben a táblázatban a havi fizetendő összeg látható. A törlesztőrészletek (G. oszlop) a fizetendő kamat (D. oszlop), adott esetben a fizetendő tőke ( C. oszlop) és adott esetben az egyéb költségek (F. oszlop) összegéből állnak. A fennmaradó tőke (B. oszlop) az egyes törlesztőrészletek után még törlesztendő hitelösszeg.
B108: =IF(OR(cellKamatPeriodus="15 ÉVES FIX",cellKamatPeriodus="20 ÉVES FIX"),"A Bank évente egyszer, illetve előtörlesztés esetén tájékoztatást ad a fogyasztónak a tartozásról törlesztési táblázat formájában díj-, költség- és egyéb fizetésikötelezettség-mentesen.",Segéd!A180 & IF(cellKamatPeriodus="5 ÉVES kamatperiódus", 60, 120) & Segéd!A181) -> Az éves bontású törlesztési táblázatban kiemelve, eltérő háttérrel jelenítettük meg az első kamatperiódust. A hitelkamat 120 hónapig - ide nem értve, a kedvezményes kamat érdekében vállalt jóváírás nem teljesítéséből eredő kamatmódosítást, mely nem egyoldalú szerződésmódosítás - változatlan, ezt követően az alkalmazott kamatváltoztatási-mutató alapján módosulhat. A havi bontású törlesztési táblázatban eltérő színnel jelöltük meg az első 6 hónapot, amely alatt a kamat - függetlenül a kedvezményes kamat érdekében vállalt feltételek teljesülésétől - változatlan. Az alkalmazott kamat-változtatási mutató H3K. Információk a H3K kamat-változtatási mutatóról a Hirdetményben, valamint az MNB és az Erste Bank Hungary Zrt. vonatkozó oldalán: http://www.mnb.hu/fair-bank/kamatvaltoztatasi-mutato/forinthitel/h3k-3-szamu-kamatvaltoztatasi-mutato-forinthitelek-eseten és http://www.erstebank.hu/hu/maganszemelyek/kamatvaltoztatasi-mutato Tekintettel arra, hogy a kölcsön változó kamatozású, kamatváltozás esetén a törlesztési táblázatok módosulhatnak. A Bank évente egyszer, illetve a kamatperiódus fordulónapján, továbbá előtörlesztés esetén tájékoztatást ad a fogyasztónak a tartozásról törlesztési táblázat formájában díj-, költség- és egyéb fizetésikötelezettség-mentesen."
B109: 1. A kölcsön első évi pénzáramlásai havi bontásban
B110: A oszlop | C110: B oszlop | D110: C oszlop | E110: D oszlop | F110: E oszlop | G110: F oszlop | H110: G oszlop | I110: H oszlop
B111: Időszak (hó) | C111: Tőkeegyenleg az adott időszak végén | D111: Tőke törlesztés | E111: Kamat törlesztés | F111: Kamat + tőke | G111: Rendelkezésre tartási jutalék | H111: Törlesztőrészlet Forintban | I111: =CONCATENATE("Törlesztőrészlet ",Calc!I31*100,"%-os kamatváltozás esetén.") -> Törlesztőrészlet 2%-os kamatváltozás esetén.
B112: Folyósítás (0) | C112: =+Calc2_tőkelefutáshoz!B35 -> 12000000
B113: 1 | C113: =+Calc2_tőkelefutáshoz!B36 -> 11976228 | D113: =Calc2_tőkelefutáshoz!C36 -> 23772 | E113: =Calc2_tőkelefutáshoz!D36 -> 67400 | F113: =D113+E113 -> 91172 | G113: =Calc2_tőkelefutáshoz!F36 -> 0 | H113: =Calc2_tőkelefutáshoz!G36 -> 91172 | I113: =Calc2_tőkelefutáshoz!I36 -> 105969
B114: 2 | C114: =+Calc2_tőkelefutáshoz!B37 -> 11952322 | D114: =Calc2_tőkelefutáshoz!C37 -> 23906 | E114: =Calc2_tőkelefutáshoz!D37 -> 67266 | F114: =D114+E114 -> 91172 | G114: =Calc2_tőkelefutáshoz!F37 -> 0 | H114: =Calc2_tőkelefutáshoz!G37 -> 91172 | I114: =Calc2_tőkelefutáshoz!I37 -> 105969
B115: 3 | C115: =+Calc2_tőkelefutáshoz!B38 -> 11928282 | D115: =Calc2_tőkelefutáshoz!C38 -> 24040 | E115: =Calc2_tőkelefutáshoz!D38 -> 67132 | F115: 91172 | G115: =Calc2_tőkelefutáshoz!F38 -> 0 | H115: =Calc2_tőkelefutáshoz!G38 -> 91172 | I115: =Calc2_tőkelefutáshoz!I38 -> 105969
B116: 4 | C116: =+Calc2_tőkelefutáshoz!B39 -> 11904107 | D116: =Calc2_tőkelefutáshoz!C39 -> 24175 | E116: =Calc2_tőkelefutáshoz!D39 -> 66997 | F116: 91172 | G116: =Calc2_tőkelefutáshoz!F39 -> 0 | H116: =Calc2_tőkelefutáshoz!G39 -> 91172 | I116: =Calc2_tőkelefutáshoz!I39 -> 105969
B117: 5 | C117: =+Calc2_tőkelefutáshoz!B40 -> 11879796 | D117: =Calc2_tőkelefutáshoz!C40 -> 24311 | E117: =Calc2_tőkelefutáshoz!D40 -> 66861 | F117: 91172 | G117: =Calc2_tőkelefutáshoz!F40 -> 0 | H117: =Calc2_tőkelefutáshoz!G40 -> 91172 | I117: =Calc2_tőkelefutáshoz!I40 -> 105969
B118: 6 | C118: =+Calc2_tőkelefutáshoz!B41 -> 11855349 | D118: =Calc2_tőkelefutáshoz!C41 -> 24447 | E118: =Calc2_tőkelefutáshoz!D41 -> 66725 | F118: 91172 | G118: =Calc2_tőkelefutáshoz!F41 -> 0 | H118: =Calc2_tőkelefutáshoz!G41 -> 91172 | I118: =Calc2_tőkelefutáshoz!I41 -> 105969
B119: 7 | C119: =+Calc2_tőkelefutáshoz!B42 -> 11830765 | D119: =Calc2_tőkelefutáshoz!C42 -> 24584 | E119: =Calc2_tőkelefutáshoz!D42 -> 66588 | F119: 91172 | G119: =Calc2_tőkelefutáshoz!F42 -> 0 | H119: =Calc2_tőkelefutáshoz!G42 -> 91172 | I119: =Calc2_tőkelefutáshoz!I42 -> 105969
B120: 8 | C120: =+Calc2_tőkelefutáshoz!B43 -> 11806042 | D120: =Calc2_tőkelefutáshoz!C43 -> 24723 | E120: =Calc2_tőkelefutáshoz!D43 -> 66449 | F120: 91172 | G120: =Calc2_tőkelefutáshoz!F43 -> 0 | H120: =Calc2_tőkelefutáshoz!G43 -> 91172 | I120: =Calc2_tőkelefutáshoz!I43 -> 105969
B121: 9 | C121: =+Calc2_tőkelefutáshoz!B44 -> 11781181 | D121: =Calc2_tőkelefutáshoz!C44 -> 24861 | E121: =Calc2_tőkelefutáshoz!D44 -> 66311 | F121: 91172 | G121: =Calc2_tőkelefutáshoz!F44 -> 0 | H121: =Calc2_tőkelefutáshoz!G44 -> 91172 | I121: =Calc2_tőkelefutáshoz!I44 -> 105969
B122: 10 | C122: =+Calc2_tőkelefutáshoz!B45 -> 11756180 | D122: =Calc2_tőkelefutáshoz!C45 -> 25001 | E122: =Calc2_tőkelefutáshoz!D45 -> 66171 | F122: 91172 | G122: =Calc2_tőkelefutáshoz!F45 -> 0 | H122: =Calc2_tőkelefutáshoz!G45 -> 91172 | I122: =Calc2_tőkelefutáshoz!I45 -> 105969
B123: 11 | C123: =+Calc2_tőkelefutáshoz!B46 -> 11731039 | D123: =Calc2_tőkelefutáshoz!C46 -> 25141 | E123: =Calc2_tőkelefutáshoz!D46 -> 66031 | F123: 91172 | G123: =Calc2_tőkelefutáshoz!F46 -> 0 | H123: =Calc2_tőkelefutáshoz!G46 -> 91172 | I123: =Calc2_tőkelefutáshoz!I46 -> 105969
B124: 12 | C124: =+Calc2_tőkelefutáshoz!B47 -> 11705756 | D124: =Calc2_tőkelefutáshoz!C47 -> 25283 | E124: =Calc2_tőkelefutáshoz!D47 -> 65889 | F124: 91172 | G124: =Calc2_tőkelefutáshoz!F47 -> 0 | H124: =Calc2_tőkelefutáshoz!G47 -> 91172 | I124: =Calc2_tőkelefutáshoz!I47 -> 105969
B125: Az első év összesítve | D125: =SUM(D113:D124) -> 294244 | E125: =SUM(E113:E124) -> 799820 | F125: 1094064 | G125: =SUM(G113:G124) -> 0 | H125: =+SUM(H113:H124) -> 1094064 | I125: =SUM(I113:I124) -> 1271628
B127: 2. A kölcsön pénzáramlásai éves bontásban
B128: Időszak (év) | C128: Tőkeegyenleg az adott időszak végén | D128: Tőke törlesztés | E128: Kamat törlesztés | F128: Kamat + tőke | G128: Rendelkezésre tartási jutalék | H128: Törlesztőrészlet Forintban | I128: =CONCATENATE("Törlesztőrészlet ",Calc!I31*100,"%-os kamatváltozás esetén.") -> Törlesztőrészlet 2%-os kamatváltozás esetén.
B129: Folyósítás (0) | C129: =Calc2_tőkelefutáshoz!B35 -> 12000000 | J129: 0
B130: 1 | C130: =VLOOKUP(B130*12,Calc2_tőkelefutáshoz!$A$34:$B$456,2,0) -> 11705756 | D130: =C129-C130 -> 294244 | E130: =VLOOKUP(B130*12,Calc2_tőkelefutáshoz!A34:J456,10,0) -> 799820 | F130: =D130+E130 -> 1094064 | G130: =+SUM(Calc2_tőkelefutáshoz!F36:F47) -> 0 | H130: =F130+G130 -> 1094064 | I130: =(ROUND(VLOOKUP(J130,Calc2_tőkelefutáshoz!$A$35:$K$455,11,FALSE),0)) -> 1271628 | J130: =B130*12 -> 12
B131: 2 | C131: =VLOOKUP(B131*12,Calc2_tőkelefutáshoz!$A$34:$B$456,2,0) -> 11391057 | D131: =C130-C131 -> 314699 | E131: =VLOOKUP(B131*12,Calc2_tőkelefutáshoz!A35:J457,10,0) -> 779365 | F131: =D131+E131 -> 1094064 | G131: =+SUM(Calc2_tőkelefutáshoz!F48:F59) -> 0 | H131: =F131+G131 -> 1094064 | I131: =(ROUND(VLOOKUP(J131,Calc2_tőkelefutáshoz!$A$35:$K$455,11,FALSE),0)) -> 1271628 | J131: 24
B132: 3 | C132: =VLOOKUP(B132*12,Calc2_tőkelefutáshoz!$A$34:$B$456,2,0) -> 11054478 | D132: 336579 | E132: =VLOOKUP(B132*12,Calc2_tőkelefutáshoz!A36:J458,10,0) -> 757485 | F132: 1094064 | G132: 0 | H132: =F132 -> 1094064 | I132: =(ROUND(VLOOKUP(J132,Calc2_tőkelefutáshoz!$A$35:$K$455,11,FALSE),0)) -> 1271628 | J132: 36
B133: 4 | C133: =VLOOKUP(B133*12,Calc2_tőkelefutáshoz!$A$34:$B$456,2,0) -> 10694500 | D133: 359978 | E133: =VLOOKUP(B133*12,Calc2_tőkelefutáshoz!A37:J459,10,0) -> 734086 | F133: 1094064 | G133: 0 | H133: 1094064 | I133: =(ROUND(VLOOKUP(J133,Calc2_tőkelefutáshoz!$A$35:$K$455,11,FALSE),0)) -> 1271628 | J133: 48
B134: 5 | C134: =VLOOKUP(B134*12,Calc2_tőkelefutáshoz!$A$34:$B$456,2,0) -> 10309496 | D134: 385004 | E134: =VLOOKUP(B134*12,Calc2_tőkelefutáshoz!A38:J460,10,0) -> 709060 | F134: 1094064 | G134: 0 | H134: 1094064 | I134: =(ROUND(VLOOKUP(J134,Calc2_tőkelefutáshoz!$A$35:$K$455,11,FALSE),0)) -> 1271628 | J134: 60
B135: 6 | C135: =VLOOKUP(B135*12,Calc2_tőkelefutáshoz!$A$34:$B$456,2,0) -> 9897725 | D135: 411771 | E135: =VLOOKUP(B135*12,Calc2_tőkelefutáshoz!A39:J461,10,0) -> 682293 | F135: 1094064 | G135: 0 | H135: 1094064 | I135: =(ROUND(VLOOKUP(J135,Calc2_tőkelefutáshoz!$A$35:$K$455,11,FALSE),0)) -> 1271628 | J135: 72
B136: 7 | C136: =VLOOKUP(B136*12,Calc2_tőkelefutáshoz!$A$34:$B$456,2,0) -> 9457328 | D136: 440397 | E136: =VLOOKUP(B136*12,Calc2_tőkelefutáshoz!A40:J462,10,0) -> 653667 | F136: 1094064 | G136: 0 | H136: 1094064 | I136: =(ROUND(VLOOKUP(J136,Calc2_tőkelefutáshoz!$A$35:$K$455,11,FALSE),0)) -> 1271628 | J136: 84
B137: 8 | C137: =VLOOKUP(B137*12,Calc2_tőkelefutáshoz!$A$34:$B$456,2,0) -> 8986314 | D137: 471014 | E137: =VLOOKUP(B137*12,Calc2_tőkelefutáshoz!A41:J463,10,0) -> 623050 | F137: 1094064 | G137: 0 | H137: 1094064 | I137: =(ROUND(VLOOKUP(J137,Calc2_tőkelefutáshoz!$A$35:$K$455,11,FALSE),0)) -> 1271628 | J137: 96
B138: 9 | C138: =VLOOKUP(B138*12,Calc2_tőkelefutáshoz!$A$34:$B$456,2,0) -> 8482555 | D138: 503759 | E138: =VLOOKUP(B138*12,Calc2_tőkelefutáshoz!A42:J464,10,0) -> 590305 | F138: 1094064 | G138: 0 | H138: 1094064 | I138: =(ROUND(VLOOKUP(J138,Calc2_tőkelefutáshoz!$A$35:$K$455,11,FALSE),0)) -> 1271628 | J138: 108
B139: 10 | C139: =VLOOKUP(B139*12,Calc2_tőkelefutáshoz!$A$34:$B$456,2,0) -> 7943772 | D139: 538783 | E139: =VLOOKUP(B139*12,Calc2_tőkelefutáshoz!A43:J465,10,0) -> 555281 | F139: 1094064 | G139: 0 | H139: 1094064 | I139: =(ROUND(VLOOKUP(J139,Calc2_tőkelefutáshoz!$A$35:$K$455,11,FALSE),0)) -> 1271628 | J139: 120
B140: 11 | C140: =VLOOKUP(B140*12,Calc2_tőkelefutáshoz!$A$34:$B$456,2,0) -> 7367534 | D140: 576238 | E140: =VLOOKUP(B140*12,Calc2_tőkelefutáshoz!A44:J466,10,0) -> 517826 | F140: 1094064 | G140: 0 | H140: 1094064 | I140: =(ROUND(VLOOKUP(J140,Calc2_tőkelefutáshoz!$A$35:$K$455,11,FALSE),0)) -> 1271628 | J140: 132
B141: 12 | C141: =VLOOKUP(B141*12,Calc2_tőkelefutáshoz!$A$34:$B$456,2,0) -> 6751234 | D141: 616300 | E141: =VLOOKUP(B141*12,Calc2_tőkelefutáshoz!A45:J467,10,0) -> 477764 | F141: 1094064 | G141: 0 | H141: 1094064 | I141: =(ROUND(VLOOKUP(J141,Calc2_tőkelefutáshoz!$A$35:$K$455,11,FALSE),0)) -> 1271628 | J141: 144
B142: 13 | C142: =VLOOKUP(B142*12,Calc2_tőkelefutáshoz!$A$34:$B$456,2,0) -> 6092087 | D142: 659147 | E142: =VLOOKUP(B142*12,Calc2_tőkelefutáshoz!A46:J468,10,0) -> 434917 | F142: 1094064 | G142: 0 | H142: 1094064 | I142: =(ROUND(VLOOKUP(J142,Calc2_tőkelefutáshoz!$A$35:$K$455,11,FALSE),0)) -> 1271628 | J142: 156
B143: 14 | C143: =VLOOKUP(B143*12,Calc2_tőkelefutáshoz!$A$34:$B$456,2,0) -> 5387117 | D143: 704970 | E143: =VLOOKUP(B143*12,Calc2_tőkelefutáshoz!A47:J469,10,0) -> 389094 | F143: 1094064 | G143: 0 | H143: 1094064 | I143: =(ROUND(VLOOKUP(J143,Calc2_tőkelefutáshoz!$A$35:$K$455,11,FALSE),0)) -> 1271628 | J143: 168
B144: 15 | C144: =VLOOKUP(B144*12,Calc2_tőkelefutáshoz!$A$34:$B$456,2,0) -> 4633137 | D144: 753980 | E144: =VLOOKUP(B144*12,Calc2_tőkelefutáshoz!A48:J470,10,0) -> 340084 | F144: 1094064 | G144: 0 | H144: 1094064 | I144: =(ROUND(VLOOKUP(J144,Calc2_tőkelefutáshoz!$A$35:$K$455,11,FALSE),0)) -> 1271628 | J144: 180
B145: 16 | C145: =VLOOKUP(B145*12,Calc2_tőkelefutáshoz!$A$34:$B$456,2,0) -> 3826740 | D145: 806397 | E145: =VLOOKUP(B145*12,Calc2_tőkelefutáshoz!A49:J471,10,0) -> 287667 | F145: 1094064 | G145: 0 | H145: 1094064 | I145: =(ROUND(VLOOKUP(J145,Calc2_tőkelefutáshoz!$A$35:$K$455,11,FALSE),0)) -> 1271628 | J145: 192
B146: 17 | C146: =VLOOKUP(B146*12,Calc2_tőkelefutáshoz!$A$34:$B$456,2,0) -> 2964280 | D146: 862460 | E146: =VLOOKUP(B146*12,Calc2_tőkelefutáshoz!A50:J472,10,0) -> 231604 | F146: 1094064 | G146: 0 | H146: 1094064 | I146: =(ROUND(VLOOKUP(J146,Calc2_tőkelefutáshoz!$A$35:$K$455,11,FALSE),0)) -> 1271628 | J146: 204
B147: 18 | C147: =VLOOKUP(B147*12,Calc2_tőkelefutáshoz!$A$34:$B$456,2,0) -> 2041860 | D147: 922420 | E147: =VLOOKUP(B147*12,Calc2_tőkelefutáshoz!A51:J473,10,0) -> 171644 | F147: 1094064 | G147: 0 | H147: 1094064 | I147: =(ROUND(VLOOKUP(J147,Calc2_tőkelefutáshoz!$A$35:$K$455,11,FALSE),0)) -> 1271628 | J147: 216
B148: 19 | C148: =VLOOKUP(B148*12,Calc2_tőkelefutáshoz!$A$34:$B$456,2,0) -> 1055311 | D148: 986549 | E148: =VLOOKUP(B148*12,Calc2_tőkelefutáshoz!A52:J474,10,0) -> 107515 | F148: 1094064 | G148: 0 | H148: 1094064 | I148: =(ROUND(VLOOKUP(J148,Calc2_tőkelefutáshoz!$A$35:$K$455,11,FALSE),0)) -> 1271628 | J148: 228
B149: 20 | C149: =VLOOKUP(B149*12,Calc2_tőkelefutáshoz!$A$34:$B$456,2,0) -> 0 | D149: 1055311 | E149: =VLOOKUP(B149*12,Calc2_tőkelefutáshoz!A53:J475,10,0) -> 38929 | F149: 1094240 | G149: 0 | H149: 1094240 | I149: =(ROUND(VLOOKUP(J149,Calc2_tőkelefutáshoz!$A$35:$K$455,11,FALSE),0)) -> 1271628 | J149: 240
B150: 21 | C150: =VLOOKUP(B150*12,Calc2_tőkelefutáshoz!$A$34:$B$456,2,0) -> 0 | D150: 0 | E150: =VLOOKUP(B150*12,Calc2_tőkelefutáshoz!A54:J476,10,0) -> 0 | F150: 0 | G150: 0 | H150: 0 | I150: =(ROUND(VLOOKUP(J150,Calc2_tőkelefutáshoz!$A$35:$K$455,11,FALSE),0)) -> 0 | J150: 252
B151: 22 | C151: =VLOOKUP(B151*12,Calc2_tőkelefutáshoz!$A$34:$B$456,2,0) -> 0 | D151: 0 | E151: =VLOOKUP(B151*12,Calc2_tőkelefutáshoz!A55:J477,10,0) -> 0 | F151: 0 | G151: 0 | H151: 0 | I151: =(ROUND(VLOOKUP(J151,Calc2_tőkelefutáshoz!$A$35:$K$455,11,FALSE),0)) -> 0 | J151: 264
B152: 23 | C152: =VLOOKUP(B152*12,Calc2_tőkelefutáshoz!$A$34:$B$456,2,0) -> 0 | D152: 0 | E152: =VLOOKUP(B152*12,Calc2_tőkelefutáshoz!A56:J478,10,0) -> 0 | F152: 0 | G152: 0 | H152: 0 | I152: =(ROUND(VLOOKUP(J152,Calc2_tőkelefutáshoz!$A$35:$K$455,11,FALSE),0)) -> 0 | J152: 276
B153: 24 | C153: =VLOOKUP(B153*12,Calc2_tőkelefutáshoz!$A$34:$B$456,2,0) -> 0 | D153: 0 | E153: =VLOOKUP(B153*12,Calc2_tőkelefutáshoz!A57:J479,10,0) -> 0 | F153: 0 | G153: 0 | H153: 0 | I153: =(ROUND(VLOOKUP(J153,Calc2_tőkelefutáshoz!$A$35:$K$455,11,FALSE),0)) -> 0 | J153: 288
B154: 25 | C154: =VLOOKUP(B154*12,Calc2_tőkelefutáshoz!$A$34:$B$456,2,0) -> 0 | D154: 0 | E154: =VLOOKUP(B154*12,Calc2_tőkelefutáshoz!A58:J480,10,0) -> 0 | F154: 0 | G154: 0 | H154: 0 | I154: =(ROUND(VLOOKUP(J154,Calc2_tőkelefutáshoz!$A$35:$K$455,11,FALSE),0)) -> 0 | J154: 300
B155: 26 | C155: =VLOOKUP(B155*12,Calc2_tőkelefutáshoz!$A$34:$B$456,2,0) -> 0 | D155: 0 | E155: =VLOOKUP(B155*12,Calc2_tőkelefutáshoz!A59:J481,10,0) -> 0 | F155: 0 | G155: 0 | H155: 0 | I155: =(ROUND(VLOOKUP(J155,Calc2_tőkelefutáshoz!$A$35:$K$455,11,FALSE),0)) -> 0 | J155: 312
B156: 27 | C156: =VLOOKUP(B156*12,Calc2_tőkelefutáshoz!$A$34:$B$456,2,0) -> 0 | D156: 0 | E156: =VLOOKUP(B156*12,Calc2_tőkelefutáshoz!A60:J482,10,0) -> 0 | F156: 0 | G156: 0 | H156: 0 | I156: =(ROUND(VLOOKUP(J156,Calc2_tőkelefutáshoz!$A$35:$K$455,11,FALSE),0)) -> 0 | J156: 324
B157: 28 | C157: =VLOOKUP(B157*12,Calc2_tőkelefutáshoz!$A$34:$B$456,2,0) -> 0 | D157: 0 | E157: =VLOOKUP(B157*12,Calc2_tőkelefutáshoz!A61:J483,10,0) -> 0 | F157: 0 | G157: 0 | H157: 0 | I157: =(ROUND(VLOOKUP(J157,Calc2_tőkelefutáshoz!$A$35:$K$455,11,FALSE),0)) -> 0 | J157: 336
B158: 29 | C158: =VLOOKUP(B158*12,Calc2_tőkelefutáshoz!$A$34:$B$456,2,0) -> 0 | D158: 0 | E158: =VLOOKUP(B158*12,Calc2_tőkelefutáshoz!A62:J484,10,0) -> 0 | F158: 0 | G158: 0 | H158: 0 | I158: =(ROUND(VLOOKUP(J158,Calc2_tőkelefutáshoz!$A$35:$K$455,11,FALSE),0)) -> 0 | J158: 348
B159: 30 | C159: =VLOOKUP(B159*12,Calc2_tőkelefutáshoz!$A$34:$B$456,2,0) -> 0 | D159: 0 | E159: =VLOOKUP(B159*12,Calc2_tőkelefutáshoz!A63:J485,10,0) -> 0 | F159: 0 | G159: 0 | H159: 0 | I159: =(ROUND(VLOOKUP(J159,Calc2_tőkelefutáshoz!$A$35:$K$455,11,FALSE),0)) -> 0 | J159: 360
B160: 31 | C160: =VLOOKUP(B160*12,Calc2_tőkelefutáshoz!$A$34:$B$456,2,0) -> 0 | D160: 0 | E160: =VLOOKUP(B160*12,Calc2_tőkelefutáshoz!A64:J486,10,0) -> 0 | F160: 0 | G160: 0 | H160: 0 | I160: =(ROUND(VLOOKUP(J160,Calc2_tőkelefutáshoz!$A$35:$K$455,11,FALSE),0)) -> 0 | J160: 372
B161: 32 | C161: =VLOOKUP(B161*12,Calc2_tőkelefutáshoz!$A$34:$B$456,2,0) -> 0 | D161: 0 | E161: =VLOOKUP(B161*12,Calc2_tőkelefutáshoz!A65:J487,10,0) -> 0 | F161: 0 | G161: 0 | H161: 0 | I161: =(ROUND(VLOOKUP(J161,Calc2_tőkelefutáshoz!$A$35:$K$455,11,FALSE),0)) -> 0 | J161: 384
B162: 33 | C162: =VLOOKUP(B162*12,Calc2_tőkelefutáshoz!$A$34:$B$456,2,0) -> 0 | D162: 0 | E162: =VLOOKUP(B162*12,Calc2_tőkelefutáshoz!A66:J488,10,0) -> 0 | F162: 0 | G162: 0 | H162: 0 | I162: =(ROUND(VLOOKUP(J162,Calc2_tőkelefutáshoz!$A$35:$K$455,11,FALSE),0)) -> 0 | J162: 396
B163: 34 | C163: =VLOOKUP(B163*12,Calc2_tőkelefutáshoz!$A$34:$B$456,2,0) -> 0 | D163: 0 | E163: =VLOOKUP(B163*12,Calc2_tőkelefutáshoz!A67:J489,10,0) -> 0 | F163: 0 | G163: 0 | H163: 0 | I163: =(ROUND(VLOOKUP(J163,Calc2_tőkelefutáshoz!$A$35:$K$455,11,FALSE),0)) -> 0 | J163: 408
B164: 35 | C164: =VLOOKUP(B164*12,Calc2_tőkelefutáshoz!$A$34:$B$456,2,0) -> 0 | D164: 0 | E164: =VLOOKUP(B164*12,Calc2_tőkelefutáshoz!A68:J490,10,0) -> 0 | F164: 0 | G164: 0 | H164: 0 | I164: =(ROUND(VLOOKUP(J164,Calc2_tőkelefutáshoz!$A$35:$K$455,11,FALSE),0)) -> 0 | J164: 420
B165: Összesítve | D165: =SUM(D130:D164) -> 12000000 | E165: =SUM(E130:E164) -> 9881456 | F165: =D165+E165 -> 21881456 | G165: =+SUM(G130:G164) -> 0 | H165: =+SUM(H130:H164) -> 21881456 | I165: =SUM(I130:I164)+G165 -> 25432560
A166: 8. További kötelezettségek | B166: A fogyasztónak a következő kötelezettségeket kell teljesítenie ahhoz, hogy az ebben a dokumentumban ismertetett feltételekkel juthasson hitelhez: - a fedezetül felajánlott ingatlan(ok)ra kötött, Bank zálogjogával terhelt vagyonbiztosítás és annak fenntartása a hitel lejáratáig. Bankon kívüli szolgáltató is igénybe vehető, de a vagyonbiztosítás díját az Erste Banknál vezetett számláról szükséges teljesíteni csoportos beszedési megbízással vagy társasházi biztosítás esetén állandó átutalással. A zöld hitelcél teljesülését a Hitelező által meghatározottak szerint, hitelt érdemlően, az alábbiak szerint szükséges igazolni: - új lakás vásárlása esetén a hitel folyósítását megelőzően, az elkészült hitelcél ingatlanra vonatkozó Hiteles Energetikai Tanúsítvány benyújtásával, valamint helyszíni szemlével; - új lakás építése és részletekben folyósított felújítási hitelcél esetén az utolsó rész folyósítását megelőzően, az elkészült hitelcél ingatlanra vonatkozó Hiteles Energetikai Tanúsítvány benyújtásával, valamint helyszíni szemlével; - egyösszegben folyósított felújítási hitelcél esetén a folyósítást követő 12 hónapon belül az elkészült hitelcél ingatlanra vonatkozó Hiteles Energetikai Tanúsítvány benyújtásával, valamint helyszíni szemlével. - egyösszegben folyósított korszerűsítési hitelcél esetén a folyósítást követő 12 hónapon belül az elkészült hitelcél ingatlanra vonatkozó helyszíni szemlével; - részletekben folyósított korszerűsítési hitelcél esetén az utolsó rész folyósítását megelőzően, az elkészült hitelcél ingatlanra vonatkozó helyszíni szemlével. - az ERSTE BANK HUNGARY Zrt.-nél vezetett számla a hitel lejáratáig. Felhívjuk szíves figyelmét, hogy amennyiben a fedezetül felajánlott ingatlanra kötött vagyonbiztosítást Ön a kölcsön futamideje alatt megszünteti, az a kölcsönszerződés felmondását vonhatja maga után. - a vagyonbiztosítás becsült díja kb. 3 500-8000 Ft-ig / hó terjedhet, mely függ az ingatlan földrajzi fekvésétől, típusától, méretétől stb. A zöld hitelcél teljesülését a Hitelező által meghatározottak szerint, hitelt érdemlően, az alábbiak szerint szükséges igazolni: - új lakás vásárlása esetén a hitel folyósítását megelőzően, az elkészült hitelcél ingatlanra vonatkozó, a Bank által megbízott értékbecslő által, helyszíni szemle útján elkészített ingatlan értékbecsléssel, valamint Hiteles Energetikai Tanúsítvány benyújtásával; - új lakás építése és részletekben folyósított felújítási hitelcél esetén az utolsó rész folyósítását megelőzően, az elkészült hitelcél ingatlanra vonatkozó, a Bank által megbízott értékbecslő által, helyszíni szemle útján elkészített ingatlan értékbecsléssel és műszaki szakértéssel, valamint Hiteles Energetikai Tanúsítvány benyújtásával; - egyösszegben folyósított felújítási hitelcél esetén a folyósítást követő 12 hónapon belül az elkészült hitelcél ingatlanra vonatkozó, a Bank által megbízott értékbecslő által, helyszíni szemle útján elkészített ingatlan értékbecsléssel, valamint Hiteles Energetikai Tanúsítvány benyújtásával. - egyösszegben folyósított korszerűsítési hitelcél esetén a folyósítást követő 12 hónapon belül az elkészült hitelcél ingatlanra vonatkozó a Bank által megbízott értékbecslő által, helyszíni szemle útján elkészített ingatlan értékbecsléssel, valamint a korszerűsítési intézkedések végrehajtásához szükséges kiegészítő műszaki és egyéb berendezések, szolgáltatások beszerzésének ellenőrzése tekintetében az adós büntetőjogi felelősség tudtatában a teljesülésről tett nyilatkozatával; - részletekben folyósított korszerűsítési hitelcél esetén az utolsó rész folyósítását megelőzően, az elkészült hitelcél ingatlanra vonatkozó, a Bank által megbízott értékbecslő által, helyszíni szemle útján elkészített ingatlan értékbecsléssel, valamint a korszerűsítési intézkedések végrehajtásához szükséges kiegészítő műszaki és egyéb berendezések, szolgáltatások beszerzésének ellenőrzése tekintetében az adós büntetőjogi felelősség tudtatában a teljesülésről tett nyilatkozatával
B167: =IF(Segéd!A16=0," ",Segéd!A68) -> - az Erste Bank Hungary Zrt.-nél vezetett számlára érkező havi jóváírás. Jelen tájékoztató a(z) 2. kedvezmény kategória igénybevételéhez szükséges havi jóváírás vállalása alapján készült
B168: Kedvezmény kategória elnevezése | F168: Kedvezmény kategória feltétele
B169: =B93 -> 2. kedvezmény kategória | F169: =E93 -> 200.000 forintot elérő havi jóváírás vállalása
B170: Jelen tájékoztató a Zöld kamatkedvezmény kategória feltételei alapján készült.
B171: Kedvezmény kategória elnevezése | F171: Kedvezmény kategória feltétele
B172: Zöld kamatkedvezmény | F172: A zöld hitelcél teljesülésének a jelen pontban Hitelező által meghatározottak szerinti hitelt érdemlő igazolása.
B173: =IF(Segéd!A16=0," ",Segéd!A69) -> A Bank a teljes futamidő alatt jogosult az ügyleti év kezdő napjától számított 6 havonta felülvizsgálni, hogy a vállalt kedvezmény kategória szerinti feltételek teljesülnek-e. Amennyiben a felülvizsgálat előtti 3 egymást követő hónapban nem teljesül a vállalt feltétel, akkor az ügylet vonatkozásában az ügyfél nem jogosult az ellenőrzést követő 6 hónapban igénybe venni egyik kedvezmény kategória szerinti kondíciót sem. Ebben az esetben a kamatkedvezmény mértékével növelt kamatot veszi fel az ügylet. Az ebből eredő kamatváltozás nem tekinthető a Bank részéről egyoldalú kamatmódosításnak. Amennyiben a következő felülvizsgálatkor megállapítást nyer, hogy az ügyfél ismét teljesíti a kölcsönkérelemben vállalt feltételt, akkor az ügylet vonatkozásában ismét jogosulttá válik a következő 6 hónapban a kölcsönkérelemben vállalt kedvezménykategória szerinti kamatkedvezmény igénybevételére.
A174: 9. Előtörlesztés | B174: Ön jogosult a hitel részleges vagy teljes előtörlesztésére. Az előtörlesztési szándékáról írásban, a Bank által erre a célra rendszeresített formanyomtatványon értesítenie kell a Bankot. Ilyen esetben a Bank Önnel egyeztetve vagy a havi törlesztőrészletek összegét csökkenti vagy a kölcsön lejárati időpontját változtatja meg változatlan fizetési kötelezettség mellett. Az előtörlesztés összegét a Bank a soron következő törlesztőrészlet esedékességgel együtt írja jóvá, amennyiben az esedékes törlesztőrészlet megfizetésre került. Amennyiben az esedékes törlesztőrészlet nem kerül megfizetésre, úgy a Bank jogosult az előtörlesztésre szánt összegből az esedékes törlesztőrészletet kiegyenlíteni. Ez esetben a Bank csak az esedékes törlesztőrészlet kiegyenlítése után fennmaradó összeget fordítja előtörlesztésre. Az előtörlesztés esetén a Bank kizárólag a Hirdetmény szerinti elő-/ végtörlesztési díjat számol fel.
B175: Előtörlesztési díj: Részleges előtörlesztés vagy végtörlesztés esetén az előtörlesztett / végtörlesztett összeg 2%, amennyiben jelzálog-hitelintézet által refinanszírozott szerződés és az elő / végtörlesztésre nem kamatfordulókor kerül sor, egyéb esetekben 1,5%. Minősített Fogyasztóbarát termék esetében az előtörlesztett / végtörlesztett összeg 1%- az előtörlesztési díj. Lásd.: Jelen tájékoztató 2.9. pont Amennyiben a hitel előtörlesztése mellett dönt, kérjük vegye fel a kapcsolatot a Bankkal, hogy pontosan megállapítsuk az előtörlesztés időpontjában esedékes előtörlesztési díjat.
A176: 10. Rugalmas elemek | B176: Amennyiben más hitelező által nyújtott kölcsönből (hitelkiváltás) végtörleszti a hitelét, a hitel lezárásának feltétele a Bank formanyomtatványán, személyesen benyújtott végtörlesztési kérelem és a végtörlesztéshez szükséges összeg Bank által megadott bankszámlán történő biztosítása a végtörlesztési kérelmen megjelölt időpontra. A fedezetcsere feltétele a Bank belső szabályzataiban rögzítetteknek megfelelő fedezeti ingatlan biztosítása és a Bank formanyomtatványán, személyesen átadott fedezetcsere kérelem. A kérelem elfogadásáról a Bank a mindenkor hatályos jogszabályoknak és belső szabályzatainak megfelelően dönt.
A177: 11. A fogyasztó egyéb jogai | B177: 15 nap gondolkodási idő áll a rendelkezésére a hitel felvételéről szóló döntéshez. Miután kézhez kapta a hitelszerződés tervezetét a hitelezőtől, csak 3 nap eltelte után fogadhatja el az ajánlatot. Önnek a szerződéskötést követően 14 napon belül a folyósítást megelőzően joga van elállni a megállapodástól. Önnek joga van ahhoz, hogy a hitelező a hitelszerződés-tervezetének egy példányát díj-, költség- és egyéb fizetési kötelezettség mentesen rendelkezésre bocsássa, nem terheli e kötelezettség a Bankot, ha a Bank nem kíván szerződést kötni.
A178: 12. Panaszok | B178: Amennyiben panasza van, kérjük, vegye fel a kapcsolatot: - ügyfélszolgálatunkkal a +36-1-298 0222 telefonszámon vagy az erste@erstebank.hu e-mail címen, - Bankunk bármely fiókjában a tanácsadóinkkal, - amennyiben Ön valamely elektronikus banki szolgáltatással rendelkezik, írásban az elektronikus banki rendszeren vagy felületen küldhető elektronikus levélben, - postai úton a Lakossági Panaszkezelésnek címezve az ERSTE BANK HUNGARY Zrt., 1138 Budapest Népfürdő u. 24-26. címen, - faxon a +36 1 219 4784 faxszámon A panasz kezelésére rendelkezésre álló idő legfeljebb 30 nap. Amennyiben a panasza helyben nem rendeződik az Ön számára kielégítően a Pénzügyi Békéltető Testülethez is fordulhat. Részletes információk a www.erstebank.hu/hu/panaszkezeles internetes oldalon. Egyedi jogvitának nem minősülő (fogyasztóvédelmi vagy egyéb hatósági eljárás alapjául szolgáló a Magyar Nemzeti Bankról szóló 2013. évi CXXXIX. törvényben foglalt kötelezettségszegéssel kapcsolatos) panasz esetén magánszemélyek a Magyar Nemzeti Bankhoz fordulhatnak. (Cím: Magyar Nemzeti Bank 1534 Budapest BKKP. Pf. 777; Telefon: +36-80-203-776; e-mail cím: ugyfelszolgalat@mnb.hu). A Magyar Nemzeti Bank tovább szélesítette pénzügyi fogyasztóvédelmi csatornáinak számát azzal, hogy 2014 április közepétől a fogyasztók immár a megyeszékhelyek kormányablakainál is beadhatják pénzügyi panasszal kapcsolatos beadványaikat. A hazai megyeszékhelyeken, illetve Pest megyében a Vácott található kormányablakok (a kormányhivatalok integrált ügyfélszolgálatai) is átveszik a pénzügyi fogyasztóvédelmi beadványokat, és továbbítják azokat az MNB-nek vagy – szerződéses jogvita esetén – a mellette működő Pénzügyi Békéltető Testületnek. További részletek a Felügyelet honlapján: http://www.mnb.hu/fogyasztovedelem/panaszom-van. Amennyiben Ön az Európai Unió másik tagállamában rendelkezik lakóhellyel, akkor pénzügyi jogvita / panasz esetén a FIN-NET hálózata lehet az Ön segítségére (http://ec.europa.eu/internal_market/fin-net/). A FIN-Net az Európai Gazdasági Térség területén működő rendszer, amely a fogyasztók és a pénzügyi szolgáltatók között kialakult határon átnyúló pénzügyi jogviták alternatív vitarendezésére létrejött hálózat.
A179: 13. A hitelhez kapcsolódó kötelezettségeknek való nem megfelelés következményei a fogyasztóra nézve | B179: Lejárt tartozás esetén késedelmi kamat kerül felszámításra. A Bank a késedelmes teljesítéshez kapcsolódó késedelmi kamatot, illetve a követelés érvényesítésével kapcsolatos díjat, költséget a mindenkori Lakossági Hitel Hirdetmény szerint számol fel. Amennyiben az adós a kölcsön visszafizetésével kapcsolatos kötelezettségének az erre való felszólításnak sem tesz eleget, az nem szerződésszerű teljesítésnek (szerződésszegésnek) minősül, melynek következtében a Bank azonnali hatállyal felmondhatja a kölcsönszerződést. A szerződés felmondásával a teljes tartozás lejárttá, egy összegben esedékessé válik, és a tartozás meg nem fizetése esetén a Bank a biztosítékok érvényesítésére jogosult. A tartozás érvényesítése céljából a Bank jogosult igényérvényesíteni eljárást kezdeményezni az Adóssal, Kezessel, Zálogkötelezettel szemben. A felmondott szerződésből eredő tartozások érvényesítésének költségei az Adóst, Kezest és a hitelbiztosíték nyújtóját - azaz a Zálogkötelezettet - terhelik. A tartozások érvényesítése érdekében az Adós és Kezes jövedelme és más vagyontárgyai, illetve az ügylet további biztosítékai egyaránt végrehajtás alá vonhatóak. A hitel fedezetéül felajánlott ingatlan(ok) megrongálódása, megsemmisülése esetén a Bank jogosult új ingatlan fedezet vonását előírni, amelynek elmaradása esetén a Bank azonnali hatállyal felmondhatja a kölcsönszerződést. Amennyiben nehézségei támadnak a havi törlesztőrészletek fizetésével kapcsolatban, kérjük, hogy mielőbb keressen meg minket a +36-1-298 0222-es telefonszámon, hogy megfelelő megoldást találjunk a problémájára. A részletfizetések elmaradása esetén otthona végső esetben végrehajtás alá kerülhet.
B180: Zöld hitelcélt szolgáló Kölcsön esetében: - a zöld hitelcél határidőn belül történő teljesítése igazolásának elmaradása esetén zöld kamatkedvezmény megszűnik és egyidejűleg a kölcsön a Hirdetmény szerinti zöld kamatkedvezmény nélküli kamatra árazódik át a folyósítás időpontjára visszamenőlegesen; - a Hitelező a Hiteles Energetikai Tanúsítvány (továbbiakban: HET) költségét egyszeri alkalommal a hitelfelvevőtől átvállalja, amennyiben a zöld hitelcél teljesítésének igazolásához HET elkészítése szükséges és annak költsége a hitelfelvevőt terheli. Amennyiben az adós nem teljesíti a zöld hitelcélt, a Hitelező a Hiteles Energetikai Tanúsítvány átvállalt költségét visszamenőlegesen érvényesítheti.
A181: 14. Felügyelet | B181: A hitelező a Magyar Nemzeti Bank felügyelete alá tartozik (http://www.mnb.hu/felugyelet) A hitelközvetítő a Magyar Nemzeti Bank felügyelete alá tartozik (http://www.mnb.hu/felugyelet)
A182: Amennyiben a hitelügyintézéssel kapcsolatos dokumentumok e-mailben történő kiküldését kérte, azokat az Ön adatainak védelme érdekében, minden esetben titkosítva, jelszóval ellátva juttatjuk el az Ön által megadott e-mail címre. A jelszó a kérelemben elsőként megjelölt Hiteligénylő ügyfél születési évéből és 6 jegyű ügyfélazonosítójából tevődik össze, ami folytatólagosan szóköz és írásjelek nélkül, 10 karakterből áll. Példa: Ha az ügyfél születési éve 1975, és az ügyfélazonosító pedig: P12345, akkor ezekből a jelszó: 1975P12345. Ha az ügyfélazonosító betűt tartalmaz, azt nagy betűvel kell megadni.
A183: Aláírásommal igazolom, hogy a kérelem tárgyát képező hiteltermékkel kapcsolatban a 2009. évi CLXII. Törvény és a 3/2016 (I.7.) NGM rendelet szerinti tájékoztatást a fentiek szerint teljes körűen megkaptam.
A184: Keltezés helye, dátuma:
A185: …………………………, | B185: =+TODAY() -> 2024-04-22
B186: ……………………………………………………….. | F186: ………………………………………………………..
B187: Adós aláírása | F187: Adóstárs aláírása
A188: Név: | B188: =IF($C$4<>"",$C$4,"") -> 
A189: Lakcím
F193: ………………………………………………………..
B194: Zálogkötelezett aláírása | F194: Zálogkötelezett aláírása
A195: Név:
A196: Lakcím
A199: A tájékoztatót átvettem. | C199: =TODAY() -> 2024-04-22
A201: ………………………………………………………..
A202: Tanácsadó/Közvetítő aláírása
A204: A törlesztőrészletek rendszeres jövedelemhez viszonyított arányának várható változása a rendszeres jövedelem, valamint a kamat változásának függvényében
A205: A hitel típusa: | B205: =cellHitelCel -> Piaci kamatozású lakáscélú hitel | E205: A hitel összege: | F205: 5000000 | G205: A hitel futamideje: | I205: =IF(cellKamatPeriodus="15 ÉVES FIX",180,240) -> 240
A206: A hitel kamata: | B206: =IF(AND(Calc!F17="Szabad felhasználású jelzáloghitel",Calc!F21="5 ÉVES kamatperiódus"),Árazás!H1359,IF(AND(Calc!F17="Szabad felhasználású jelzáloghitel",Calc!F21="10 ÉVES kamatperiódus"),Árazás!H1414,IF(AND(Calc!F17="Piaci kamatozású lakáscélú hitel",Calc!F21="5 ÉVES kamatperiódus"),Árazás!H764,IF(AND(Calc!F17="Piaci kamatozású lakáscélú hitel",Calc!F21="10 ÉVES kamatperiódus"),Árazás!H824,IF(AND(Calc!F17="Piaci kamatozású lakáscélú hitel",OR(Calc!F21="15 ÉVES FIX",Calc!F21="20 ÉVES FIX")),Árazás!H884,""))))) -> 0.0664 | C206: *
F207: Kamat emelkedése
A208: Rendszeres jövedelem** változása | F208: 0 | G208: =IF(OR(cellKamatPeriodus="15 ÉVES FIX",cellKamatPeriodus="20 ÉVES FIX"),0%,1%) -> 0.01 | H208: =IF(OR(cellKamatPeriodus="15 ÉVES FIX",cellKamatPeriodus="20 ÉVES FIX"),0%,2%) -> 0.02 | I208: =IF(OR(cellKamatPeriodus="15 ÉVES FIX",cellKamatPeriodus="20 ÉVES FIX"),0%,3%) -> 0.03
A209: -30% változás | E209: =$E$215*0.7 -> 265885.2 | F209: =F210/$E$209 -> 0.1417600839 | G209: =G210/$E$209 -> 0.1531065491 | H209: =H210/$E$209 -> 0.1648652035 | I209: =I210/$E$209 -> 0.1770110471
F210: =-PMT($B$206/12,$I$205,$F$205) -> 37691.90826 | G210: =-PMT(($B$206+G208)/12,$I$205,$F$205) -> 40708.76544 | H210: =-PMT(($B$206+H208)/12,$I$205,$F$205) -> 43835.21761 | I210: =-PMT(($B$206+I208)/12,$I$205,$F$205) -> 47064.61765
A211: -20% változás | E211: =$E$215*0.8 -> 303868.8 | F211: =F212/$E$211 -> 0.1240400734 | G211: =G212/$E$211 -> 0.1339682305 | H211: =H212/$E$211 -> 0.1442570531 | I211: =I212/$E$211 -> 0.1548846662
F212: =F210 -> 37691.90826 | G212: =G210 -> 40708.76544 | H212: =H210 -> 43835.21761 | I212: =I210 -> 47064.61765
A213: -10% változás | E213: =E215*0.9 -> 341852.4 | F213: =F214/$E$213 -> 0.110257843 | G213: =G214/$E$213 -> 0.1190828716 | H213: =H214/$E$213 -> 0.1282284916 | I213: =I214/$E$213 -> 0.1376752588
F214: =F210 -> 37691.90826 | G214: =G210 -> 40708.76544 | H214: =H210 -> 43835.21761 | I214: =I210 -> 47064.61765
... 89 more rows

Sheet Törlesztési védelem
A2: ERSTE törlesztési védelem
A4: Hitelösszeg | C4: =Calc!C5 -> 12000000
A7: Csomag neve | B7: Csomag tartalma | C7: Csomag díja | D7: Szükséges nyilatkozatok
A8: Teljes csomag | B8: bármely okú halál + bármely okú, 79%-ot meghaladó mértékű összszervezeti egészségkárosodás + munkanélküliség + balesetből vagy betegségből eredő keresőképtelenség | C8: =C4*0.0008366 -> 10039.2 | D8: =IF(C4<20000000,"Csatlakozási nyilatkozat",IF(C4>20000000,"Csatlakozási nyilatkozat, valamint 20 M Ft kölcsönöszegtől részletes egészségi kérdőív","Csatlakozási nyilatkozat, valamint 20 M Ft kölcsönöszegtől részletes egészségi kérdőív")) -> Csatlakozási nyilatkozat
A9: Baleseti csomag | B9: baleseti halál + balesetből eredő, legalább 51%-os mértékű maradandó egészségkárosodás + munkanélküliség + balesetből vagy betegségből eredő keresőképtelenség | C9: =C4*0.0005082 -> 6098.4 | D9: Csatlakozási nyilatkozat
A10: Munkanélküliségi és keresőképtelenségi csomag | B10: munkanélküliség + balesetből és betegségből eredő keresőképtelenség | C10: =C4*0.0003738 -> 4485.6 | D10: Csatlakozási nyilatkozat
A12: Az adatok tájékoztató jellegűek, nyilvános ajánlattételnek nem tekinthetők!
A14: A "Teljes csomag" maximum 50 millió Ft kölcsönösszegig választható. A "Baleseti csomag" valamint a "Munkanélküliségi és keresőképtelenségi csomag" 70 millió Ft-ot meg nem haladó kölcsönösszegig választható.
A16: A törlesztési biztosításra vonatkozó tájékoztató ajánlatot és a terméktájékoztatót átvettem. Tudomásom van arról, hogy a további részletesebb tájékoztatás az Általános és Különös Biztosítási Feltételek elnevezésű dokumentumban található, melynek elérhetősége: www.erstebank.hu Nyitólap/Biztosítás/Jelzáloghitelhez kapcsolódó Törlesztésvédelem/ Általános és Különös Biztosítási Feltételek
C19: ………………………………………………………..
B20: Adós aláírása | C20: Adóstárs aláírása
A21: Név: | B21: =+Tájékoztató!C4 -> 0 | C21: =+Tájékoztató!F188 -> 0
A22: Lakcím | B22: =+Tájékoztató!B189 -> 0 | C22: =+Tájékoztató!F189 -> 0
A25: Dátum | B25: =NOW() -> 2024-04-22T09:14:28.050

Sheet Eredmény_havi fiz._I (hidden)
A2: Törlesztési ütemezés
A4: Hitelösszeg | C4: =Calc!C5 -> 12000000
A5: Futamidő (hónap) | C5: =Calc!C6 -> 240
A6: Türelmi idő (hónap) | C6: =Calc!C23 -> 0
A7: Teljes kamat (éves) | C7: =Calc!C9 -> 0.0674
A8: Folyósítási jutalék | C8: =Calc!C10 -> 0
A9: min. | C9: =Calc!C11 -> 0
A10: max. | C10: =Calc!C12 -> 0
A11: fizetendő összege | C11: =Calc!C13 -> 0
A12: Fizetési gyakoriság | C12: =Calc!C25 -> havi
A14: THM % | C14: =Calc!H5 -> 0.07014912521
A16: Év | B16: Kamat + tőke | C16: Kezelési költség | D16: Törlesztőrészlet | E16: Tőkeegyenleg
A17: 1 | B17: =Calc!E36 -> 91172 | C17: =Calc!F36 -> 0 | D17: =Calc!G36 -> 91172 | E17: =Calc!B48 -> 11680331
A18: 2 | B18: =Calc!E48 -> 91172 | C18: =Calc!F48 -> 0 | D18: =Calc!G48 -> 91172 | E18: =Calc!B60 -> 11363865
A19: 3 | B19: =Calc!E60 -> 91172 | C19: =Calc!F60 -> 0 | D19: =Calc!G60 -> 91172 | E19: =Calc!B72 -> 11025395
A20: 4 | B20: =Calc!E72 -> 91172 | C20: =Calc!F72 -> 0 | D20: =Calc!G72 -> 91172 | E20: =Calc!B84 -> 10663395
A21: 5 | B21: =Calc!E84 -> 91172 | C21: =Calc!F84 -> 0 | D21: =Calc!G84 -> 91172 | E21: =Calc!B96 -> 10276229
A22: 6 | B22: =Calc!E96 -> 91172 | C22: =Calc!F96 -> 0 | D22: =Calc!G96 -> 91172 | E22: =Calc!B108 -> 9862145
A23: 7 | B23: =Calc!E108 -> 91172 | C23: =Calc!F108 -> 0 | D23: =Calc!G108 -> 91172 | E23: =Calc!B120 -> 9419275
A24: 8 | B24: =Calc!E120 -> 91172 | C24: =Calc!F120 -> 0 | D24: =Calc!G120 -> 91172 | E24: =Calc!B132 -> 8945615
A25: 9 | B25: =Calc!E132 -> 91172 | C25: =Calc!F132 -> 0 | D25: =Calc!G132 -> 91172 | E25: =Calc!B144 -> 8439027
A26: 10 | B26: =Calc!E144 -> 91172 | C26: =Calc!F144 -> 0 | D26: =Calc!G144 -> 91172 | E26: =Calc!B156 -> 7897218
A27: 11 | B27: =Calc!E156 -> 91172 | C27: =Calc!F156 -> 0 | D27: =Calc!G156 -> 91172 | E27: =Calc!B168 -> 7317743
A28: 12 | B28: =Calc!E168 -> 91172 | C28: =Calc!F168 -> 0 | D28: =Calc!G168 -> 91172 | E28: =Calc!B180 -> 6697981
A29: 13 | B29: =Calc!E180 -> 91172 | C29: =Calc!F180 -> 0 | D29: =Calc!G180 -> 91172 | E29: =Calc!B192 -> 6035132
A30: 14 | B30: =Calc!E192 -> 91172 | C30: =Calc!F192 -> 0 | D30: =Calc!G192 -> 91172 | E30: =Calc!B204 -> 5326203
A31: 15 | B31: =Calc!E204 -> 91172 | C31: =Calc!F204 -> 0 | D31: =Calc!G204 -> 91172 | E31: =Calc!B216 -> 4567988
A32: 16 | B32: =Calc!E216 -> 91172 | C32: =Calc!F216 -> 0 | D32: =Calc!G216 -> 91172 | E32: =Calc!B228 -> 3757062
A33: 17 | B33: =Calc!E228 -> 91172 | C33: =Calc!F228 -> 0 | D33: =Calc!G228 -> 91172 | E33: =Calc!B240 -> 2889757
A34: 18 | B34: =Calc!E240 -> 91172 | C34: =Calc!F240 -> 0 | D34: =Calc!G240 -> 91172 | E34: =Calc!B252 -> 1962156
A35: 19 | B35: =Calc!E252 -> 91172 | C35: =Calc!F252 -> 0 | D35: =Calc!G252 -> 91172 | E35: =Calc!B264 -> 970066
A36: 20 | B36: =Calc!E264 -> 91172 | C36: =Calc!F264 -> 0 | D36: =Calc!G264 -> 91172 | E36: =Calc!B276 -> 0
A37: 21 | B37: =Calc!E276 -> 0 | C37: =Calc!F276 -> 0 | D37: =Calc!G276 -> 0 | E37: =Calc!B288 -> 0
A38: 22 | B38: =Calc!E288 -> 0 | C38: =Calc!F288 -> 0 | D38: =Calc!G288 -> 0 | E38: =Calc!B300 -> 0
A39: 23 | B39: =Calc!E300 -> 0 | C39: =Calc!F300 -> 0 | D39: =Calc!G300 -> 0 | E39: =Calc!B307 -> 0
A40: 24 | B40: =Calc!E307 -> 0 | C40: =Calc!F307 -> 0 | D40: =Calc!G307 -> 0 | E40: =Calc!B313 -> 0
A41: 25 | B41: =Calc!E313 -> 0 | C41: =Calc!F313 -> 0 | D41: =Calc!G313 -> 0 | E41: =Calc!B319 -> 0
A42: 26 | B42: =Calc!E319 -> 0 | C42: =Calc!F319 -> 0 | D42: =Calc!G319 -> 0 | E42: =Calc!B325 -> 0
A43: 27 | B43: =Calc!E325 -> 0 | C43: =Calc!F325 -> 0 | D43: =Calc!G325 -> 0 | E43: =Calc!B331 -> 0
A44: 28 | B44: =Calc!E331 -> 0 | C44: =Calc!F331 -> 0 | D44: =Calc!G331 -> 0 | E44: =Calc!B337 -> 0
A45: 29 | B45: =Calc!E337 -> 0 | C45: =Calc!F337 -> 0 | D45: =Calc!G337 -> 0 | E45: =Calc!B343 -> 0
A46: 30 | B46: =Calc!E343 -> 0 | C46: =Calc!F343 -> 0 | D46: =Calc!G343 -> 0 | E46: =Calc!B349 -> 0
A47: 31 | B47: =Calc!E349 -> 0 | C47: =Calc!F349 -> 0 | D47: =Calc!G349 -> 0 | E47: =Calc!B355 -> 0
A48: 32 | B48: =Calc!E355 -> 0 | C48: =Calc!F355 -> 0 | D48: =Calc!G355 -> 0 | E48: =Calc!B361 -> 0
A49: 33 | B49: =Calc!E361 -> 0 | C49: =Calc!F361 -> 0 | D49: =Calc!G361 -> 0 | E49: =Calc!B367 -> 0
A50: 34 | B50: =Calc!E367 -> 0 | C50: =Calc!F367 -> 0 | D50: =Calc!G367 -> 0 | E50: =Calc!B373 -> 0
A51: 35 | B51: =Calc!E373 -> 0 | C51: =Calc!F373 -> 0 | D51: =Calc!G373 -> 0 | E51: =Calc!B379 -> 0
A53: Az adatok tájékoztató jellegűek, nyilvános ajánlattételnek nem tekinthetők!

Sheet Eredmény_havi fiz._II (hidden)
A2: Törlesztési ütemezés
B4: Hitelösszeg | D4: =Calc!C5 -> 12000000
B5: Futamidő (hónap) | D5: =Calc!C6 -> 240
B6: Teljes kamat (éves) | D6: =Calc!C9 -> 0.0674
B7: Folyósítási jutalék (egyszeri) | D7: =Calc!C10 -> 0
B8: min. | D8: =Calc!C11 -> 0
B9: max. | D9: =Calc!C12 -> 0
B10: fizetendő összege | D10: =Calc!C13 -> 0
B11: Fizetési gyakoriság | D11: =Calc!C25 -> havi
B12: türelmi idő (hó) | D12: =Calc!C23 -> 0
B14: =Calc!E5 -> THM % | D14: =Calc!H5 -> 0.07014912521
B16: Havi törlesztés az első kamatperiódusban:
C17: - kamat + tőke | D17: =Calc!E36 -> 91172
C18: - kezelési költség | D18: =Calc!F36 -> 0
C19: Összesen: | D19: =Calc!G36 -> 91172
B21: Havi törlesztés a második kamatperiódusban:
C22: - kamat + tőke | D22: =Calc!E42 -> 91172
C23: - kezelési költség | D23: =Calc!F41 -> 0
C24: Összesen: | D24: =Calc!G42 -> 91172
A27: Az adatok tájékoztató jellegűek, nyilvános ajánlattételnek nem tekinthetők!

Sheet THM-Calc (hidden)
A1: Konstrukció neve | C1: =Calc!C1 -> 0
A2: Hitelösszeg | C2: =Calc!C5 -> 12000000 | I2: 1 | J2: 12
A3: Számlakonverziós devizavételi árfolyam | C3: 1 | K3: 24
A4: Számlakonverziós deviza eladási árfolyam | C4: 1 | K4: 36
A5: Futamidő (hónap) | C5: =Calc!C6 -> 240 | J5: 3
A6: Hitelkamat az első kamatperiódusban (éves) | C6: =Calc!C7 -> 0.0674
A7: Hitelkamat az első kamatperiódus után (éves) | C7: =C6 -> 0.0674
A8: Refinanszírozott költségek kamatfelára | C8: =Calc!C8 -> 0
A9: Kamat az első kamatperiódusban (éves) | C9: =C10 -> 0.0674 | E9: Kamat + tőke törlesztés devizában | H9: =E31 -> 91172 | J9: havi
A10: Kamat az első kamatperiódus után (éves) | C10: =C6+C8 -> 0.0674 | E10: Törlesztőrészlet devizában a türelmi idő alatt | H10: =G31 -> 91172 | J10: negyedéves
A11: Kezelési költség (havi) | C11: 0 | E11: Törlesztőrészlet devizában a türelmi idő után | H11: =VLOOKUP(G18+1,A30:G450,7,0) -> 91172
A12: min. | C12: 0 | E12: Törlesztőrészlet HUF-ban a türelmi idő alatt | H12: =H31 -> 91497
A13: max. | C13: 0 | E13: Törlesztőrészlet HUF-ban a türelmi idő után | H13: =H11*C4 -> 91172
A14: Folyósítási jutalék (egyszeri) | C14: =Calc!C10 -> 0
A15: min. | C15: =Calc!C11 -> 0 | E15: THM % | F15: =((IRR($H$30:$H$450,0.01)+1)^12)-1 -> 0.07014912521
A16: max. | C16: =Calc!C12 -> 0
A17: fizetendő összege | C17: =+IF(C2*C14<C15,C15,IF(OR(C16=0,C16="",C16=" "),C2*C14,IF(C2*C14>C16,C16,C2*C14))) -> 0
A18: Fizetési gyakoriság | C18: =Calc!C25 -> havi | E18: Türelmi idő (hónap)
A19: Rendelkezésre tartási jutalék | C19: 0.01 | I19: Magatartás Kódex szerint
A20: Folyósítási jutalék Ft-ban | C20: =Calc!C14 -> 0
A21: Értékbecslés díja | C21: =Calc!C15 -> 0 | I21: Kamatemelés: | K21: =Calc!I31 -> 0.02 | L21: =K21+C10 -> 0.0874
A22: Helyszíni szemle díja | C22: =Calc!C16 -> 0 | I22: THM % (kamatemelkedés esetén) | L22: =+F15+2.5% -> 0.09514912521
A23: Havi számlavezetési díj | C23: =Calc!C21 -> 325
A24: Ingatlan-nyilvántartási eljárás díja | C24: =Calc!C17 -> 12600
A25: Hitelbírálati díj Előre jóváhagyott hitel esetén | C25: =Calc!C20 -> 0
A26: Tulajdoni lap lekérdezés díja | C26: =+Calc!C18 -> 0
A27: Térképmásolat lekérdezés díja | C27: =+Calc!C19 -> 0
I28: Magatartás kódex szerint
A29: Időszak | B29: Tőkeegyenleg devizában | C29: Tőke törlesztés devizában | D29: Kamat törlesztés devizában | E29: Kamat + tőke devizában | F29: Kezelési költség devizában | G29: Törlesztőrészlet devizában | H29: Törlesztőrészlet + havi számlavezetési díj HUF-ban | I29: Törlesztőrészlet kamatemelés esetén
A30: 0 | B30: =C2 -> 12000000 | G30: =-B30+IF(C2*C14<C15,C15,IF(OR(C16=0,C16="",C16=" "),C2*C14,IF(C2*C14>C16,C16,C2*C14))) -> -12000000 | H30: =-C2+C20+C21+C22+C26+C27+C24+C25 -> -11987400 | I30: =-C2+C20+C21+C22+C24+C25 -> -11987400 | J30: =-$C$2+$C$20+$C$21+$C$22+$C$24+$C$25 -> -11987400
A31: 1 | B31: =B30-C31 -> 11976228 | C31: =E31-D31 -> 23772 | D31: =ROUND(B30*$C$9*30/360,0) -> 67400 | E31: =ROUND(IF(A31>$G$18,(IF(A31>=$C$5,B30+D31,PMT($C$9/12,$C$5-$G$18,-$B$30))),D31),0) -> 91172 | F31: 0 | G31: =E31+F31 -> 91172 | H31: =(G31*$C$4)+IF(A31<=$C$5,$C$23,0) -> 91497 | I31: =(IF(C31>0,(IF($C$19=1,IF(B30>1,PMT($L$21/12,$C$5-$G$18,-$B$30),0),C31+D31)),D31))*$C$4 -> 91172 | J31: =$I31+IF($A31<=$C$5,$C$23,0) -> 91497
A32: 2 | B32: 11952322 | C32: =E32-D32 -> 23906 | D32: =ROUND(B31*$C$9*30/360,0) -> 67266 | E32: =ROUND(IF(A32>$G$18,(IF(A32>=$C$5,B31+D32,PMT($C$9/12,$C$5-$G$18,-$B$30))),D32),0) -> 91172 | F32: 0 | G32: 91172 | H32: =(G32*$C$4)+IF(A32<=$C$5,$C$23,0) -> 91497 | I32: 91172 | J32: =$I32+IF($A32<=$C$5,$C$23,0) -> 91497
A33: 3 | B33: 11928282 | C33: 24040 | D33: 67132 | E33: 91172 | F33: 0 | G33: 91172 | H33: 91497 | I33: 91172 | J33: 91497
A34: 4 | B34: 11904107 | C34: 24175 | D34: 66997 | E34: 91172 | F34: 0 | G34: 91172 | H34: 91497 | I34: 91172 | J34: 91497
A35: 5 | B35: 11879796 | C35: 24311 | D35: 66861 | E35: 91172 | F35: 0 | G35: 91172 | H35: 91497 | I35: 91172 | J35: 91497
A36: 6 | B36: 11855349 | C36: 24447 | D36: 66725 | E36: 91172 | F36: 0 | G36: 91172 | H36: 91497 | I36: 91172 | J36: 91497
A37: 7 | B37: 11830765 | C37: 24584 | D37: 66588 | E37: 91172 | F37: 0 | G37: 91172 | H37: 91497 | I37: =(IF(C37>0,(IF($C$19=1,IF(B36>1,PMT($L$21/12,$C$5-IF($G$18>0,$G$18,0),-$B$30),0),C37+D37)),D37))*$C$4 -> 91172 | J37: 91497
A38: 8 | B38: 11806042 | C38: 24723 | D38: 66449 | E38: 91172 | F38: 0 | G38: 91172 | H38: 91497 | I38: 91172 | J38: 91497
A39: 9 | B39: 11781181 | C39: 24861 | D39: 66311 | E39: 91172 | F39: 0 | G39: 91172 | H39: 91497 | I39: 91172 | J39: 91497
A40: 10 | B40: 11756180 | C40: 25001 | D40: 66171 | E40: 91172 | F40: 0 | G40: 91172 | H40: 91497 | I40: 91172 | J40: 91497
A41: 11 | B41: 11731039 | C41: 25141 | D41: 66031 | E41: 91172 | F41: 0 | G41: 91172 | H41: 91497 | I41: 91172 | J41: 91497
A42: 12 | B42: 11705756 | C42: 25283 | D42: 65889 | E42: 91172 | F42: 0 | G42: 91172 | H42: 91497 | I42: 91172 | J42: 91497
A43: 13 | B43: 11680331 | C43: 25425 | D43: 65747 | E43: 91172 | F43: 0 | G43: 91172 | H43: 91497 | I43: 91172 | J43: 91497
A44: 14 | B44: 11654764 | C44: 25567 | D44: 65605 | E44: 91172 | F44: 0 | G44: 91172 | H44: 91497 | I44: 91172 | J44: 91497
A45: 15 | B45: 11629053 | C45: 25711 | D45: 65461 | E45: 91172 | F45: 0 | G45: 91172 | H45: 91497 | I45: 91172 | J45: 91497
A46: 16 | B46: 11603198 | C46: 25855 | D46: 65317 | E46: 91172 | F46: 0 | G46: 91172 | H46: 91497 | I46: 91172 | J46: 91497
A47: 17 | B47: 11577197 | C47: 26001 | D47: 65171 | E47: 91172 | F47: 0 | G47: 91172 | H47: 91497 | I47: 91172 | J47: 91497
A48: 18 | B48: 11551050 | C48: 26147 | D48: 65025 | E48: 91172 | F48: 0 | G48: 91172 | H48: 91497 | I48: 91172 | J48: 91497
A49: 19 | B49: 11524756 | C49: 26294 | D49: 64878 | E49: 91172 | F49: 0 | G49: 91172 | H49: 91497 | I49: 91172 | J49: 91497
A50: 20 | B50: 11498315 | C50: 26441 | D50: 64731 | E50: 91172 | F50: 0 | G50: 91172 | H50: 91497 | I50: 91172 | J50: 91497
A51: 21 | B51: 11471725 | C51: 26590 | D51: 64582 | E51: 91172 | F51: 0 | G51: 91172 | H51: 91497 | I51: 91172 | J51: 91497
A52: 22 | B52: 11444986 | C52: 26739 | D52: 64433 | E52: 91172 | F52: 0 | G52: 91172 | H52: 91497 | I52: 91172 | J52: 91497
A53: 23 | B53: 11418097 | C53: 26889 | D53: 64283 | E53: 91172 | F53: 0 | G53: 91172 | H53: 91497 | I53: 91172 | J53: 91497
A54: 24 | B54: 11391057 | C54: 27040 | D54: 64132 | E54: 91172 | F54: 0 | G54: 91172 | H54: 91497 | I54: 91172 | J54: 91497
A55: 25 | B55: 11363865 | C55: 27192 | D55: 63980 | E55: 91172 | F55: 0 | G55: 91172 | H55: 91497 | I55: 91172 | J55: 91497
A56: 26 | B56: 11336520 | C56: 27345 | D56: 63827 | E56: 91172 | F56: 0 | G56: 91172 | H56: 91497 | I56: 91172 | J56: 91497
A57: 27 | B57: 11309021 | C57: 27499 | D57: 63673 | E57: 91172 | F57: 0 | G57: 91172 | H57: 91497 | I57: 91172 | J57: 91497
A58: 28 | B58: 11281368 | C58: 27653 | D58: 63519 | E58: 91172 | F58: 0 | G58: 91172 | H58: 91497 | I58: 91172 | J58: 91497
A59: 29 | B59: 11253560 | C59: 27808 | D59: 63364 | E59: 91172 | F59: 0 | G59: 91172 | H59: 91497 | I59: 91172 | J59: 91497
A60: 30 | B60: 11225595 | C60: 27965 | D60: 63207 | E60: 91172 | F60: 0 | G60: 91172 | H60: 91497 | I60: 91172 | J60: 91497
A61: 31 | B61: 11197473 | C61: 28122 | D61: 63050 | E61: 91172 | F61: 0 | G61: 91172 | H61: 91497 | I61: 91172 | J61: 91497
A62: 32 | B62: 11169193 | C62: 28280 | D62: 62892 | E62: 91172 | F62: 0 | G62: 91172 | H62: 91497 | I62: 91172 | J62: 91497
A63: 33 | B63: 11140755 | C63: 28438 | D63: 62734 | E63: 91172 | F63: 0 | G63: 91172 | H63: 91497 | I63: 91172 | J63: 91497
A64: 34 | B64: 11112157 | C64: 28598 | D64: 62574 | E64: 91172 | F64: 0 | G64: 91172 | H64: 91497 | I64: 91172 | J64: 91497
A65: 35 | B65: 11083398 | C65: 28759 | D65: 62413 | E65: 91172 | F65: 0 | G65: 91172 | H65: 91497 | I65: 91172 | J65: 91497
A66: 36 | B66: 11054478 | C66: 28920 | D66: 62252 | E66: 91172 | F66: 0 | G66: 91172 | H66: 91497 | I66: 91172 | J66: 91497
A67: 37 | B67: 11025395 | C67: 29083 | D67: 62089 | E67: 91172 | F67: 0 | G67: 91172 | H67: 91497 | I67: 91172 | J67: 91497
A68: 38 | B68: 10996149 | C68: 29246 | D68: 61926 | E68: 91172 | F68: 0 | G68: 91172 | H68: 91497 | I68: 91172 | J68: 91497
A69: 39 | B69: 10966739 | C69: 29410 | D69: 61762 | E69: 91172 | F69: 0 | G69: 91172 | H69: 91497 | I69: 91172 | J69: 91497
A70: 40 | B70: 10937164 | C70: 29575 | D70: 61597 | E70: 91172 | F70: 0 | G70: 91172 | H70: 91497 | I70: 91172 | J70: 91497
A71: 41 | B71: 10907422 | C71: 29742 | D71: 61430 | E71: 91172 | F71: 0 | G71: 91172 | H71: 91497 | I71: 91172 | J71: 91497
A72: 42 | B72: 10877513 | C72: 29909 | D72: 61263 | E72: 91172 | F72: 0 | G72: 91172 | H72: 91497 | I72: 91172 | J72: 91497
A73: 43 | B73: 10847436 | C73: 30077 | D73: 61095 | E73: 91172 | F73: 0 | G73: 91172 | H73: 91497 | I73: 91172 | J73: 91497
A74: 44 | B74: 10817190 | C74: 30246 | D74: 60926 | E74: 91172 | F74: 0 | G74: 91172 | H74: 91497 | I74: 91172 | J74: 91497
A75: 45 | B75: 10786775 | C75: 30415 | D75: 60757 | E75: 91172 | F75: 0 | G75: 91172 | H75: 91497 | I75: 91172 | J75: 91497
A76: 46 | B76: 10756189 | C76: 30586 | D76: 60586 | E76: 91172 | F76: 0 | G76: 91172 | H76: 91497 | I76: 91172 | J76: 91497
A77: 47 | B77: 10725431 | C77: 30758 | D77: 60414 | E77: 91172 | F77: 0 | G77: 91172 | H77: 91497 | I77: 91172 | J77: 91497
A78: 48 | B78: 10694500 | C78: 30931 | D78: 60241 | E78: 91172 | F78: 0 | G78: 91172 | H78: 91497 | I78: 91172 | J78: 91497
A79: 49 | B79: 10663395 | C79: 31105 | D79: 60067 | E79: 91172 | F79: 0 | G79: 91172 | H79: 91497 | I79: 91172 | J79: 91497
A80: 50 | B80: 10632116 | C80: 31279 | D80: 59893 | E80: 91172 | F80: 0 | G80: 91172 | H80: 91497 | I80: 91172 | J80: 91497
A81: 51 | B81: 10600661 | C81: 31455 | D81: 59717 | E81: 91172 | F81: 0 | G81: 91172 | H81: 91497 | I81: 91172 | J81: 91497
A82: 52 | B82: 10569029 | C82: 31632 | D82: 59540 | E82: 91172 | F82: 0 | G82: 91172 | H82: 91497 | I82: 91172 | J82: 91497
A83: 53 | B83: 10537220 | C83: 31809 | D83: 59363 | E83: 91172 | F83: 0 | G83: 91172 | H83: 91497 | I83: 91172 | J83: 91497
A84: 54 | B84: 10505232 | C84: 31988 | D84: 59184 | E84: 91172 | F84: 0 | G84: 91172 | H84: 91497 | I84: 91172 | J84: 91497
A85: 55 | B85: 10473064 | C85: 32168 | D85: 59004 | E85: 91172 | F85: 0 | G85: 91172 | H85: 91497 | I85: 91172 | J85: 91497
A86: 56 | B86: 10440716 | C86: 32348 | D86: 58824 | E86: 91172 | F86: 0 | G86: 91172 | H86: 91497 | I86: 91172 | J86: 91497
A87: 57 | B87: 10408186 | C87: 32530 | D87: 58642 | E87: 91172 | F87: 0 | G87: 91172 | H87: 91497 | I87: 91172 | J87: 91497
A88: 58 | B88: 10375473 | C88: 32713 | D88: 58459 | E88: 91172 | F88: 0 | G88: 91172 | H88: 91497 | I88: 91172 | J88: 91497
A89: 59 | B89: 10342577 | C89: 32896 | D89: 58276 | E89: 91172 | F89: 0 | G89: 91172 | H89: 91497 | I89: 91172 | J89: 91497
A90: 60 | B90: 10309496 | C90: 33081 | D90: 58091 | E90: 91172 | F90: 0 | G90: 91172 | H90: 91497 | I90: 91172 | J90: 91497
A91: 61 | B91: 10276229 | C91: 33267 | D91: 57905 | E91: 91172 | F91: 0 | G91: 91172 | H91: 91497 | I91: 91172 | J91: 91497
A92: 62 | B92: 10242775 | C92: 33454 | D92: 57718 | E92: 91172 | F92: 0 | G92: 91172 | H92: 91497 | I92: 91172 | J92: 91497
A93: 63 | B93: 10209133 | C93: 33642 | D93: 57530 | E93: 91172 | F93: 0 | G93: 91172 | H93: 91497 | I93: 91172 | J93: 91497
A94: 64 | B94: 10175302 | C94: 33831 | D94: 57341 | E94: 91172 | F94: 0 | G94: 91172 | H94: 91497 | I94: 91172 | J94: 91497
A95: 65 | B95: =B94-C95 -> 10141281 | C95: 34021 | D95: 57151 | E95: 91172 | F95: 0 | G95: =E95+F95 -> 91172 | H95: 91497 | I95: 91172 | J95: 91497
A96: 66 | B96: 10107069 | C96: =E96-D96 -> 34212 | D96: =ROUND(B95*$C$9*30/360,0) -> 56960 | E96: =ROUND(IF(A96>$G$18,(IF(A96>=$C$5,B95+D96,PMT($C$9/12,$C$5-$G$18,-$B$30))),D96),0) -> 91172 | F96: 0 | G96: 91172 | H96: =(G96*$C$4)+IF(A96<=$C$5,$C$23,0) -> 91497 | I96: 91172 | J96: =$I96+IF($A96<=$C$5,$C$23,0) -> 91497
A97: 67 | B97: 10072665 | C97: 34404 | D97: 56768 | E97: 91172 | F97: 0 | G97: 91172 | H97: 91497 | I97: 91172 | J97: 91497
A98: 68 | B98: 10038068 | C98: 34597 | D98: 56575 | E98: 91172 | F98: 0 | G98: 91172 | H98: 91497 | I98: 91172 | J98: 91497
A99: 69 | B99: 10003276 | C99: 34792 | D99: 56380 | E99: 91172 | F99: 0 | G99: 91172 | H99: 91497 | I99: 91172 | J99: 91497
A100: 70 | B100: 9968289 | C100: 34987 | D100: 56185 | E100: 91172 | F100: 0 | G100: 91172 | H100: 91497 | I100: 91172 | J100: 91497
A101: 71 | B101: 9933106 | C101: 35183 | D101: 55989 | E101: 91172 | F101: 0 | G101: 91172 | H101: 91497 | I101: =(IF(C101>0,(IF($C$19=1,IF(B100>1,PMT($L$21/12,$C$5-IF($G$18>0,$G$18,0),-$B$30),0),C101+D101)),D101))*$C$4 -> 91172 | J101: 91497
A102: 72 | B102: 9897725 | C102: 35381 | D102: 55791 | E102: 91172 | F102: 0 | G102: 91172 | H102: 91497 | I102: 91172 | J102: 91497
A103: 73 | B103: 9862145 | C103: 35580 | D103: 55592 | E103: 91172 | F103: 0 | G103: 91172 | H103: 91497 | I103: 91172 | J103: 91497
A104: 74 | B104: 9826365 | C104: 35780 | D104: 55392 | E104: 91172 | F104: 0 | G104: 91172 | H104: 91497 | I104: 91172 | J104: 91497
A105: 75 | B105: 9790384 | C105: 35981 | D105: 55191 | E105: 91172 | F105: 0 | G105: 91172 | H105: 91497 | I105: 91172 | J105: 91497
A106: 76 | B106: 9754201 | C106: 36183 | D106: 54989 | E106: 91172 | F106: 0 | G106: 91172 | H106: 91497 | I106: 91172 | J106: 91497
A107: 77 | B107: 9717815 | C107: 36386 | D107: 54786 | E107: 91172 | F107: 0 | G107: 91172 | H107: 91497 | I107: 91172 | J107: 91497
A108: 78 | B108: 9681225 | C108: 36590 | D108: 54582 | E108: 91172 | F108: 0 | G108: 91172 | H108: 91497 | I108: 91172 | J108: 91497
A109: 79 | B109: 9644429 | C109: 36796 | D109: 54376 | E109: 91172 | F109: 0 | G109: 91172 | H109: 91497 | I109: 91172 | J109: 91497
A110: 80 | B110: 9607427 | C110: 37002 | D110: 54170 | E110: 91172 | F110: 0 | G110: 91172 | H110: 91497 | I110: 91172 | J110: 91497
A111: 81 | B111: 9570217 | C111: 37210 | D111: 53962 | E111: 91172 | F111: 0 | G111: 91172 | H111: 91497 | I111: 91172 | J111: 91497
A112: 82 | B112: 9532798 | C112: 37419 | D112: 53753 | E112: 91172 | F112: 0 | G112: 91172 | H112: 91497 | I112: 91172 | J112: 91497
A113: 83 | B113: 9495169 | C113: 37629 | D113: 53543 | E113: 91172 | F113: 0 | G113: 91172 | H113: 91497 | I113: 91172 | J113: 91497
A114: 84 | B114: 9457328 | C114: 37841 | D114: 53331 | E114: 91172 | F114: 0 | G114: 91172 | H114: 91497 | I114: 91172 | J114: 91497
A115: 85 | B115: 9419275 | C115: 38053 | D115: 53119 | E115: 91172 | F115: 0 | G115: 91172 | H115: 91497 | I115: 91172 | J115: 91497
A116: 86 | B116: 9381008 | C116: 38267 | D116: 52905 | E116: 91172 | F116: 0 | G116: 91172 | H116: 91497 | I116: 91172 | J116: 91497
A117: 87 | B117: 9342526 | C117: 38482 | D117: 52690 | E117: 91172 | F117: 0 | G117: 91172 | H117: 91497 | I117: 91172 | J117: 91497
A118: 88 | B118: 9303828 | C118: 38698 | D118: 52474 | E118: 91172 | F118: 0 | G118: 91172 | H118: 91497 | I118: 91172 | J118: 91497
A119: 89 | B119: 9264913 | C119: 38915 | D119: 52257 | E119: 91172 | F119: 0 | G119: 91172 | H119: 91497 | I119: 91172 | J119: 91497
A120: 90 | B120: 9225779 | C120: 39134 | D120: 52038 | E120: 91172 | F120: 0 | G120: 91172 | H120: 91497 | I120: 91172 | J120: 91497
A121: 91 | B121: 9186425 | C121: 39354 | D121: 51818 | E121: 91172 | F121: 0 | G121: 91172 | H121: 91497 | I121: 91172 | J121: 91497
A122: 92 | B122: 9146850 | C122: 39575 | D122: 51597 | E122: 91172 | F122: 0 | G122: 91172 | H122: 91497 | I122: 91172 | J122: 91497
A123: 93 | B123: 9107053 | C123: 39797 | D123: 51375 | E123: 91172 | F123: 0 | G123: 91172 | H123: 91497 | I123: 91172 | J123: 91497
A124: 94 | B124: 9067032 | C124: 40021 | D124: 51151 | E124: 91172 | F124: 0 | G124: 91172 | H124: 91497 | I124: 91172 | J124: 91497
A125: 95 | B125: 9026786 | C125: 40246 | D125: 50926 | E125: 91172 | F125: 0 | G125: 91172 | H125: 91497 | I125: 91172 | J125: 91497
A126: 96 | B126: 8986314 | C126: 40472 | D126: 50700 | E126: 91172 | F126: 0 | G126: 91172 | H126: 91497 | I126: 91172 | J126: 91497
A127: 97 | B127: 8945615 | C127: 40699 | D127: 50473 | E127: 91172 | F127: 0 | G127: 91172 | H127: 91497 | I127: 91172 | J127: 91497
A128: 98 | B128: 8904688 | C128: 40927 | D128: 50245 | E128: 91172 | F128: 0 | G128: 91172 | H128: 91497 | I128: 91172 | J128: 91497
A129: 99 | B129: 8863531 | C129: 41157 | D129: 50015 | E129: 91172 | F129: 0 | G129: 91172 | H129: 91497 | I129: 91172 | J129: 91497
A130: 100 | B130: 8822142 | C130: 41389 | D130: 49783 | E130: 91172 | F130: 0 | G130: 91172 | H130: 91497 | I130: 91172 | J130: 91497
A131: 101 | B131: 8780521 | C131: 41621 | D131: 49551 | E131: 91172 | F131: 0 | G131: 91172 | H131: 91497 | I131: 91172 | J131: 91497
A132: 102 | B132: 8738666 | C132: 41855 | D132: 49317 | E132: 91172 | F132: 0 | G132: 91172 | H132: 91497 | I132: 91172 | J132: 91497
A133: 103 | B133: 8696576 | C133: 42090 | D133: 49082 | E133: 91172 | F133: 0 | G133: 91172 | H133: 91497 | I133: 91172 | J133: 91497
A134: 104 | B134: 8654250 | C134: 42326 | D134: 48846 | E134: 91172 | F134: 0 | G134: 91172 | H134: 91497 | I134: 91172 | J134: 91497
A135: 105 | B135: 8611686 | C135: 42564 | D135: 48608 | E135: 91172 | F135: 0 | G135: 91172 | H135: 91497 | I135: 91172 | J135: 91497
A136: 106 | B136: 8568883 | C136: 42803 | D136: 48369 | E136: 91172 | F136: 0 | G136: 91172 | H136: 91497 | I136: 91172 | J136: 91497
A137: 107 | B137: 8525840 | C137: 43043 | D137: 48129 | E137: 91172 | F137: 0 | G137: 91172 | H137: 91497 | I137: 91172 | J137: 91497
A138: 108 | B138: 8482555 | C138: 43285 | D138: 47887 | E138: 91172 | F138: 0 | G138: 91172 | H138: 91497 | I138: 91172 | J138: 91497
A139: 109 | B139: 8439027 | C139: 43528 | D139: 47644 | E139: 91172 | F139: 0 | G139: 91172 | H139: 91497 | I139: 91172 | J139: 91497
A140: 110 | B140: 8395254 | C140: 43773 | D140: 47399 | E140: 91172 | F140: 0 | G140: 91172 | H140: 91497 | I140: 91172 | J140: 91497
A141: 111 | B141: 8351235 | C141: 44019 | D141: 47153 | E141: 91172 | F141: 0 | G141: 91172 | H141: 91497 | I141: 91172 | J141: 91497
A142: 112 | B142: 8306969 | C142: 44266 | D142: 46906 | E142: 91172 | F142: 0 | G142: 91172 | H142: 91497 | I142: 91172 | J142: 91497
A143: 113 | B143: 8262454 | C143: 44515 | D143: 46657 | E143: 91172 | F143: 0 | G143: 91172 | H143: 91497 | I143: 91172 | J143: 91497
A144: 114 | B144: 8217689 | C144: 44765 | D144: 46407 | E144: 91172 | F144: 0 | G144: 91172 | H144: 91497 | I144: 91172 | J144: 91497
A145: 115 | B145: 8172673 | C145: 45016 | D145: 46156 | E145: 91172 | F145: 0 | G145: 91172 | H145: 91497 | I145: 91172 | J145: 91497
A146: 116 | B146: 8127404 | C146: 45269 | D146: 45903 | E146: 91172 | F146: 0 | G146: 91172 | H146: 91497 | I146: 91172 | J146: 91497
A147: 117 | B147: 8081881 | C147: 45523 | D147: 45649 | E147: 91172 | F147: 0 | G147: 91172 | H147: 91497 | I147: 91172 | J147: 91497
A148: 118 | B148: 8036102 | C148: 45779 | D148: 45393 | E148: 91172 | F148: 0 | G148: 91172 | H148: 91497 | I148: 91172 | J148: 91497
A149: 119 | B149: 7990066 | C149: 46036 | D149: 45136 | E149: 91172 | F149: 0 | G149: 91172 | H149: 91497 | I149: 91172 | J149: 91497
A150: 120 | B150: 7943772 | C150: 46294 | D150: 44878 | E150: 91172 | F150: 0 | G150: 91172 | H150: 91497 | I150: 91172 | J150: 91497
A151: 121 | B151: 7897218 | C151: 46554 | D151: 44618 | E151: 91172 | F151: 0 | G151: 91172 | H151: 91497 | I151: 91172 | J151: 91497
A152: 122 | B152: 7850402 | C152: 46816 | D152: 44356 | E152: 91172 | F152: 0 | G152: 91172 | H152: 91497 | I152: 91172 | J152: 91497
A153: 123 | B153: 7803323 | C153: 47079 | D153: 44093 | E153: 91172 | F153: 0 | G153: 91172 | H153: 91497 | I153: 91172 | J153: 91497
A154: 124 | B154: 7755980 | C154: 47343 | D154: 43829 | E154: 91172 | F154: 0 | G154: 91172 | H154: 91497 | I154: 91172 | J154: 91497
A155: 125 | B155: 7708371 | C155: 47609 | D155: 43563 | E155: 91172 | F155: 0 | G155: 91172 | H155: 91497 | I155: 91172 | J155: 91497
A156: 126 | B156: 7660494 | C156: 47877 | D156: 43295 | E156: 91172 | F156: 0 | G156: 91172 | H156: 91497 | I156: 91172 | J156: 91497
A157: 127 | B157: 7612348 | C157: 48146 | D157: 43026 | E157: 91172 | F157: 0 | G157: 91172 | H157: 91497 | I157: 91172 | J157: 91497
A158: 128 | B158: 7563932 | C158: 48416 | D158: 42756 | E158: 91172 | F158: 0 | G158: 91172 | H158: 91497 | I158: 91172 | J158: 91497
A159: 129 | B159: =B158-C159 -> 7515244 | C159: 48688 | D159: 42484 | E159: 91172 | F159: 0 | G159: =E159+F159 -> 91172 | H159: 91497 | I159: 91172 | J159: 91497
A160: 130 | B160: 7466283 | C160: =E160-D160 -> 48961 | D160: =ROUND(B159*$C$9*30/360,0) -> 42211 | E160: =ROUND(IF(A160>$G$18,(IF(A160>=$C$5,B159+D160,PMT($C$9/12,$C$5-$G$18,-$B$30))),D160),0) -> 91172 | F160: 0 | G160: 91172 | H160: =(G160*$C$4)+IF(A160<=$C$5,$C$23,0) -> 91497 | I160: 91172 | J160: =$I160+IF($A160<=$C$5,$C$23,0) -> 91497
A161: 131 | B161: 7417047 | C161: 49236 | D161: 41936 | E161: 91172 | F161: 0 | G161: 91172 | H161: 91497 | I161: 91172 | J161: 91497
A162: 132 | B162: 7367534 | C162: 49513 | D162: 41659 | E162: 91172 | F162: 0 | G162: 91172 | H162: 91497 | I162: 91172 | J162: 91497
A163: 133 | B163: 7317743 | C163: 49791 | D163: 41381 | E163: 91172 | F163: 0 | G163: 91172 | H163: 91497 | I163: 91172 | J163: 91497
A164: 134 | B164: 7267672 | C164: 50071 | D164: 41101 | E164: 91172 | F164: 0 | G164: 91172 | H164: 91497 | I164: 91172 | J164: 91497
A165: 135 | B165: 7217320 | C165: 50352 | D165: 40820 | E165: 91172 | F165: 0 | G165: 91172 | H165: 91497 | I165: =(IF(C165>0,(IF($C$19=1,IF(B164>1,PMT($L$21/12,$C$5-IF($G$18>0,$G$18,0),-$B$30),0),C165+D165)),D165))*$C$4 -> 91172 | J165: 91497
A166: 136 | B166: 7166685 | C166: 50635 | D166: 40537 | E166: 91172 | F166: 0 | G166: 91172 | H166: 91497 | I166: 91172 | J166: 91497
A167: 137 | B167: 7115766 | C167: 50919 | D167: 40253 | E167: 91172 | F167: 0 | G167: 91172 | H167: 91497 | I167: 91172 | J167: 91497
A168: 138 | B168: 7064561 | C168: 51205 | D168: 39967 | E168: 91172 | F168: 0 | G168: 91172 | H168: 91497 | I168: 91172 | J168: 91497
A169: 139 | B169: 7013068 | C169: 51493 | D169: 39679 | E169: 91172 | F169: 0 | G169: 91172 | H169: 91497 | I169: 91172 | J169: 91497
A170: 140 | B170: 6961286 | C170: 51782 | D170: 39390 | E170: 91172 | F170: 0 | G170: 91172 | H170: 91497 | I170: 91172 | J170: 91497
A171: 141 | B171: 6909213 | C171: 52073 | D171: 39099 | E171: 91172 | F171: 0 | G171: 91172 | H171: 91497 | I171: 91172 | J171: 91497
A172: 142 | B172: 6856848 | C172: 52365 | D172: 38807 | E172: 91172 | F172: 0 | G172: 91172 | H172: 91497 | I172: 91172 | J172: 91497
A173: 143 | B173: 6804189 | C173: 52659 | D173: 38513 | E173: 91172 | F173: 0 | G173: 91172 | H173: 91497 | I173: 91172 | J173: 91497
A174: 144 | B174: 6751234 | C174: 52955 | D174: 38217 | E174: 91172 | F174: 0 | G174: 91172 | H174: 91497 | I174: 91172 | J174: 91497
A175: 145 | B175: 6697981 | C175: 53253 | D175: 37919 | E175: 91172 | F175: 0 | G175: 91172 | H175: 91497 | I175: 91172 | J175: 91497
A176: 146 | B176: 6644429 | C176: 53552 | D176: 37620 | E176: 91172 | F176: 0 | G176: 91172 | H176: 91497 | I176: 91172 | J176: 91497
A177: 147 | B177: 6590577 | C177: 53852 | D177: 37320 | E177: 91172 | F177: 0 | G177: 91172 | H177: 91497 | I177: 91172 | J177: 91497
A178: 148 | B178: 6536422 | C178: 54155 | D178: 37017 | E178: 91172 | F178: 0 | G178: 91172 | H178: 91497 | I178: 91172 | J178: 91497
A179: 149 | B179: 6481963 | C179: 54459 | D179: 36713 | E179: 91172 | F179: 0 | G179: 91172 | H179: 91497 | I179: 91172 | J179: 91497
A180: 150 | B180: 6427198 | C180: 54765 | D180: 36407 | E180: 91172 | F180: 0 | G180: 91172 | H180: 91497 | I180: 91172 | J180: 91497
A181: 151 | B181: 6372125 | C181: 55073 | D181: 36099 | E181: 91172 | F181: 0 | G181: 91172 | H181: 91497 | I181: 91172 | J181: 91497
A182: 152 | B182: 6316743 | C182: 55382 | D182: 35790 | E182: 91172 | F182: 0 | G182: 91172 | H182: 91497 | I182: 91172 | J182: 91497
A183: 153 | B183: 6261050 | C183: 55693 | D183: 35479 | E183: 91172 | F183: 0 | G183: 91172 | H183: 91497 | I183: 91172 | J183: 91497
A184: 154 | B184: 6205044 | C184: 56006 | D184: 35166 | E184: 91172 | F184: 0 | G184: 91172 | H184: 91497 | I184: 91172 | J184: 91497
A185: 155 | B185: 6148724 | C185: 56320 | D185: 34852 | E185: 91172 | F185: 0 | G185: 91172 | H185: 91497 | I185: 91172 | J185: 91497
A186: 156 | B186: 6092087 | C186: 56637 | D186: 34535 | E186: 91172 | F186: 0 | G186: 91172 | H186: 91497 | I186: 91172 | J186: 91497
A187: 157 | B187: 6035132 | C187: 56955 | D187: 34217 | E187: 91172 | F187: 0 | G187: 91172 | H187: 91497 | I187: 91172 | J187: 91497
A188: 158 | B188: 5977857 | C188: 57275 | D188: 33897 | E188: 91172 | F188: 0 | G188: 91172 | H188: 91497 | I188: 91172 | J188: 91497
A189: 159 | B189: 5920261 | C189: 57596 | D189: 33576 | E189: 91172 | F189: 0 | G189: 91172 | H189: 91497 | I189: 91172 | J189: 91497
A190: 160 | B190: 5862341 | C190: 57920 | D190: 33252 | E190: 91172 | F190: 0 | G190: 91172 | H190: 91497 | I190: 91172 | J190: 91497
A191: 161 | B191: 5804096 | C191: 58245 | D191: 32927 | E191: 91172 | F191: 0 | G191: 91172 | H191: 91497 | I191: 91172 | J191: 91497
A192: 162 | B192: 5745524 | C192: 58572 | D192: 32600 | E192: 91172 | F192: 0 | G192: 91172 | H192: 91497 | I192: 91172 | J192: 91497
A193: 163 | B193: 5686623 | C193: 58901 | D193: 32271 | E193: 91172 | F193: 0 | G193: 91172 | H193: 91497 | I193: 91172 | J193: 91497
A194: 164 | B194: 5627391 | C194: 59232 | D194: 31940 | E194: 91172 | F194: 0 | G194: 91172 | H194: 91497 | I194: 91172 | J194: 91497
A195: 165 | B195: 5567826 | C195: 59565 | D195: 31607 | E195: 91172 | F195: 0 | G195: 91172 | H195: 91497 | I195: 91172 | J195: 91497
A196: 166 | B196: 5507927 | C196: 59899 | D196: 31273 | E196: 91172 | F196: 0 | G196: 91172 | H196: 91497 | I196: 91172 | J196: 91497
A197: 167 | B197: 5447691 | C197: 60236 | D197: 30936 | E197: 91172 | F197: 0 | G197: 91172 | H197: 91497 | I197: 91172 | J197: 91497
A198: 168 | B198: 5387117 | C198: 60574 | D198: 30598 | E198: 91172 | F198: 0 | G198: 91172 | H198: 91497 | I198: 91172 | J198: 91497
A199: 169 | B199: 5326203 | C199: 60914 | D199: 30258 | E199: 91172 | F199: 0 | G199: 91172 | H199: 91497 | I199: 91172 | J199: 91497
A200: 170 | B200: 5264947 | C200: 61256 | D200: 29916 | E200: 91172 | F200: 0 | G200: 91172 | H200: 91497 | I200: 91172 | J200: 91497
... 251 more rows

Sheet Ügyféltájékoztatás folyamata (hidden)
A1: BELSŐ HASZNÁLATÚ - ÜGYFÉL RÉSZÉRE NEM ADHATÓ ÁT
A2: ÍRÁSBELI TÁJÉKOZTATÁS ELEMEI | D2: SZÓBELI TÁJÉKOZTATÁS ELEMEI
A3: Termékismertető | B3: tájékoztatáskor (ügyfél elektronikusan is kérheti, ehhez nyilatkozat kitöltése szükséges) | D3: Havi nettó jövedelem igazolásának módja – a bank a különböző jövedelem típusok esetében meghatározott dokumentumok benyújtását kéri azért, hogy megvizsgálja mekkora szabad jövedelem áll az adósok rendelkezésére havonta
A4: Benyújtandó és bemutatandó dokumentumok listája építés/vásárlás, kiváltás (checklist) | B4: tájékoztatáskor (ügyintéző és igénylő a nyomtatvány átadást aláírással igazolja, a tájékoztatás dátumával) befogadáskor (ügyintéző a befogadási dokumentumok átvételét aláírásával igazolja) | D4: Jövedelemarányos törlesztőrészlet mutató (JTM) – az ügyfél havi adósságszolgálatának és igazolt nettó jövedelemének hányadosa
A5: Törlesztő kalkuláció (kalkulátorból nyomtatva) | B5: ajánlatadáskor/befogadáskor mindenképp | D5: Havi adósságszolgálat számításának módja – az ügyletben adósként résztvevő ügyfelek összes havi hiteltörlesztési kötelezettségét jelenti, beleértve az aktuálisan igényelni kívánt törlesztőrészletet is
A6: Általános (I) és személyes (II) tájékoztatók (kalkulátorból nyomtatva) feldolgozási segédlet | B6: ajánlatadáskor/befogadáskor mindenképp | D6: Kitettség értéke – a jelzáloghitel fedezetéül szolgáló ingatlan forgalmi értékének maximális terhelhetőségi limitje (forgalmi érték 80%-a)
A7: Minősített Fogyasztóbarát Lakáshitel Ajánlat (kalkulátorból nyomtatva) feldolgozási segédlet | B7: Csak befogadáskor adható át, amennyiben rendelkezésre állnak a befogadáshoz szükséges dokumentumok, sikeres pre-scoringot követően. (Ügyfél elektronikusan is kérheti, ehhez nyilatkozat kitöltése szükséges.) Az átadás napjának a befogadás napjával egyeznie | D7: A hitel fő pénzügyi jellemzőinek ismertetése (az ügyfél hitelcéljának megfelelő összes terméket be kell mutatni és azokat összehasonlítani) - igényelhető minimális és maximális kölcsönösszeg - választható futamidő - kamatozás módja, módosításának lehetősége, kockázata (fix- vagy referencia kamatozás) - díjak, költségek - teljes hiteldíj mutató (THM) értéke - törlesztőrészlet összege, megfizetésének gyakorisága
A8: Túlzott eladósodottság kockázatairól szóló tájékoztató | B8: legkésőbb befogadáskor | D8: Fel kell hívni az ügyfelek figyelmét az MNB fogyasztóvédelmi honlapjára, ahol lehetőségük van az ott szereplő termékek összehasonlítására, illetve az MNB honlapjáról elérhető háztartási költségvetés-számító alkalmazásra
A9: Tájékoztató fizetési nehézségek kezeléséről | B9: legkésőbb befogadáskor | D9: Hitelfelvétel folyamatának rövid közérthető áttekintése szükséges dokumentumok benyújtása - várható átfutási idő
A10: Adatvédelmi tájékoztató | B10: legkésőbb befogadáskor | D10: Hogyan hat a hitel a pénzügyi helyzetre – a törlesztőrészlet összegével csökken a szabadon felhasználható jövedelem. Érzékeltetni kell, hogy ez a háztartás jövedelmi viszonyaihoz mekkora terhet jelent
A11: ÜSZ, ÁSZF, Hirdetmény | B11: ügyfél kérésére | D11: Fel kell hívni az ügyfelek figyelmét, hogy a felelős hitelfelvételi döntéshez fontolják meg a háztartásuk teljes teherviselő képességét - alaposan áttanulmányozott és megértett kölcsönszerződést írjanak alá - a kölcsönszerződésben vállalt fizetési kötelezettségek alóli mentesülésre nincs lehetőség (pl.: jövedelem csökkenés, rendkívüli kiadás)
A12: Bankfiók és tanácsadó elérhetőségei (névjegy) | B12: tájékoztatáskor (első ügyfél kontakt alkalmával) | D12: Fizetési nehézség esetén ajánlott a hitelező mielőbbi tájékoztatása, annak érdekében, hogy a felmerült problémára megoldási lehetőséget kínáljon a bank, így elkerülve a nemfizetést.
A13: Egyéb tájékoztatók (KHR, jelzáloghitelezési folyamat - a kölcsönkérelmi nyomtatványban) | B13: befogadáskor | D13: A nemfizetés következményei - a szerződésben, hirdetményben meghatározott késedelmi kamat kerül felszámolásra - azonnali hatályú felmondás, mely alapján a teljes tartozás lejárttá és egy összegben esedékessé válik, az ügyletben szereplő adóssal, adóstárssal, kezessel szemben eljárást kezdeményezhet a tartozás megfizetésére - behajtás költségei az adóst terhelik - a bank jogosult biztosítékok érvényesítésre, mely ha nem nyújt elengedő fedezetet, akkor az adós jövedelem és más vagyona is végrehajtás alá vonható
D14: Az MNB és PBT szerepe a fogyasztóvédelmi rendelkezések megsértésével kapcsolatos panasz esetén az MNB Pénzügyi Fogyasztóvédelmi Központjához fordulhat, a Bank és az ügyfél közötti szerződéssel kapcsolatos panasz esetén a Pénzügyi Békéltető Testület előtt kezdeményezhet eljárást
D15: Fogyatékkal élő ügyfél figyelmének felhívása, hogy kérés esetén szóban, vagy írásban tájékoztatást kaphat a pénzügyi szolgáltatásokhoz való egyenlő esélyű hozzáférés elősegítése érdekében biztosított lehetőségekről

Sheet Előminősítési adatlap (hidden)
A2: HASZNÁLATA OPCIONÁLIS - PRESCORINGHOZ SZÜKSÉGES ADATOK BEKÉRÉSÉHEZ HASZNÁLHATÓ
B3: Hitel adatok
A4: Hitel célja
A5: Összeg
A6: Futamidő
A7: Kamatperiódus
A8: Önerő
A9: Közszférás dolgozó
A10: Kedvezmény kategória
A11: Támogatást igényel?
A12: Összege
A13: Építési hitel esetén költségvetés
B16: Adós | C16: Adóstárs | D16: Adóstárs | E16: Zálogkötelezett/Haszonélvező
A18: Személyes adatok
A19: Név
A20: Születési név
A21: Anyja neve
A22: Születési hely
A23: Állampolgársága
A24: Születési idő
A25: Családi állapot
A26: Állandó lakcím
A27: Mióta lakik a fenti címen?
A28: Eltartottak száma
A29: Legmagasabb iskolai végzettség
A30: Számlavezető bank neve
A31: Számlanyítás dátuma
A32: Email cím
A33: Telefonszám
A35: Jövedelem
A36: Foglalkozása
A37: Foglalkozás jogviszonya
A38: Bankszámlára érkezik a jövedelme?
A39: Munkáltatói igazolással igazolja a jövedelmét?
A40: Ügyfél által nyilatkozott jövedelem
A41: Vállalja, hogy munkabérét az Erste bankhoz érkezteti a hitel futamideje alatt?
A42: Munkáltató neve
A43: Munkáltató címe
A44: Munkáltató adószáma
A45: Munkáltató típusa
A46: Jelenlegi munkaviszony kezdete
A47: Munkaviszony típusa
A48: Munkaviszonyból/vállalkozásból származó átlagos jövedelem havi nettó összege
A49: Nyugdíj átlagos havi nettó összege
A50: GYES/GYESE/GYED/CSED átlagos havi nettó összege
A51: Családi pótlék havi nettó összege
A52: Életjáradék havi nettó összege
A53: Osztalékkifizetésből származó havi jövedelem
A54: Egyéb jövedelem
A56: Fennálló hitelek
A57: Típusa | B57: Ügyfél szerepe | C57: Fennálló tartozás összege | D57: Havi törlesztő | E57: Lejárata
B67: Fedezet | C67: Fedezet
A68: Típusa
A69: Irányítószáma
A70: Város neve
A71: Becsült értéke
A72: Tulajdoni hányad
A76: Adatkezelési hozzájárulás:
A77: Alulírott Adós/Adóstárs hozzájárulásomat adom ahhoz, hogy a jelen ügyfélminősítő adatlapon szerelő személyes adataimat az Erste Bank Hungary Zrt. (székhelye: 1138 Budapest, Népfürdő utca 24-26, a továbbiakban: Bank.) igénylésben közreműködő pénzügyi közvetítője (melynek személyéről a pénzügyi közvetítő maga tájékoztatott az irányadó jogszabályi rendelkezések szerint, tevékenysége megkezdésekor) kezelje, a Bank részére továbbítsa előminősítés lefolytatása céljából,, és a Bank ezen adatokat a kölcsön ügylethez szükséges előminősítés érdekében kezelje, az előminősítésre szolgáló rendszerben rögzítse, ezen adatok felhasználásával az előminősítését elvégezze annak az igénylésnek, melyben adós/adóstárs vagyok, továbbá annak érdekében, hogy e döntésről tájékoztasson.
A82: Kelt:
A85: __________________________________ | B85: __________________________________
A86: Adós | B86: Adóstárs
A88: Tanú 1. név: _________________________________ Tanú 2. név: _________________________________
A90: Tanú 1. lakcím: __________________________________ Tanú 2. lakcím: _________________________________
A92: Tanú 1. aláírás: __________________________________ Tanú 2. aláírás: _________________________________
A94: ÜGYNÖKADATOK
A96: Bankügynök (alvállalkozó) neve: …………………………………………………………………..
A97: Bankügynök (alvállalkozó) Erstés kódja: cccccccc
A98: Bankügynök (alvállalkozó) e-mail címe: …………………………………………………………..
A99: Bankügynök (alvállalkozó) telefonszáma: ………………………………………………………...
A100: Bankügynök fővállalkozójának neve: ……………………………………………………………...
A101: Bankügynök fővállalkozójának kódja: cccccccc

Sheet Értékkészlet (hidden)
A3: Igen | B3: Használt lakás vásárlás
A4: Nem | B4: Használt lakás vásárlás - ELŐBÍRÁLATI IGAZOLÁSSAL
B5: Lakásvásárlás
B6: Szerkezetkész vásárlás
B7: Szakaszos új lakás vásárlás
B8: Új lakás vásárlás
B9: Új lakás vásárlás - EBH projektben
B10: Új lakás vásárlás - ELŐBÍRÁLATI IGAZOLÁSSAL
B11: Lakásépítés
B12: Építőközösségi finanszírozás
B13: Telekvásárlás
B14: Hitelkiváltás (EBH hitelt)
B15: Hitelkiváltás (Idegen banki hitelt)
B16: Korszerűsítés
B17: Lakásbővítés
B18: Lakásfelújítás
B19: RESTART hitel
B20: Szabad felhasználás (jelzáloghitelnél: hitelkiv.nélkül)
B21: Áthidaló
B24: 6 hónapos referencia kamatperiódussal, 5 éves kamatfelár periódussal
B25: Áthidaló hitel - 6 hónapos referencia kamatperiódussal, fix kamatfelárral
B26: 5 éves kamatperiódussal
B27: 10 éves kamatperiódussal
B28: Három vagy többgyermekes családok otthonteremtési kamattámogatása 5 éves kamatperiódussal
B30: Bejegyzett élettárs (azonos neműek esetén)
B31: Élettárs
B32: Házas
B33: Elvált
B34: Özvegy
B35: Egyedülálló
B39: Extra kedvezmény kategória
B40: Extra ERE
B41: Prémium/Erste World/Private Banking
B42: 1.kedvezmény kategória
B43: 2.kedvezmény kategória
B44: 3.kedvezmény kategória
B45: Standard kategória
B46: Hitelkiváltás 1. kedvezmény kategória
B47: Hitelkiváltás 2. kedvezmény kategória
B48: Hitelkiváltás standard
B50: Általános iskola (8 általános)
B51: 8 általános alatt (1 - 7)
B52: Főiskola
B53: Egyetem
B54: Gimnázium
B55: Technikumi oklevél
B56: Szakközépiskola érettségi
B57: Szakmunkásképző, szakiskolai bizonyítvány
B58: doktori fokozat
B59: Nincs információ
B61: Tulajdonos
B62: Társtulajdonos
B63: Családtag
B64: Albérlő
B65: Egyéb
B67: Építési telek – TEL
B68: Lakóingatlan: társasüdülő – UDU
B69: Lakóingatlan: lakás – osztatlan közös tulajdonú – LAK
B70: Lakóingatlan: panel lakás – LTP
B71: Lakóingatlan: családi ház – CSH
B72: Lakóingatlan: ikerház – CSH
B73: Lakóingatlan: sorház - CSH
B74: Lakóingatlan: lakás – 1-4 lakásos házban – LAK
B75: Lakóingatlan: lakás – 5 és több lakásos házban – LAK
B76: Lakóingatlan: külterületi lakóház – CSH
B77: Külterületi üdülő/hétvégi ház - UDU
B78: Belterületi üdülő/hétvégi ház – UDU
B79: Garázs - GAR
B80: Kereskedelmi célú létesítmény - KEE
B81: Vendéglátóipari egység - VEN
B82: Vegyes funkciójú ingatlan (Lakóingatlan) – CSH
B83: Vegyes funkciójú ingatlan (Kereskedelmi célú létesítmény) – KEE
B84: Vegyes funkciójú ingatlan (Vendéglátóipari egység) - VEN
B85: Ingatlancél- Tanya
B87: Alkalmazott
B88: Alkalmazott és egyéni vállalkozó
B89: Cégtulajdonos
B90: Egyéni vállalkozó
B91: GYES/GYED/CSED (csak adóstárs esetén)
B92: Hallgató (szülői támogatás FHB)
B93: Háztartásbeli ( csak adóstárs esetén)
B94: Jövedelmet nem igazoló adóstárs
B95: Közeli hozzátartozó cégében alkalmazott
B96: Nyugdíjas
B97: Nyugdíja és alkalmazott
B98: Nyugdíjas és egyéni vállalkozó
B99: Szellemi szabadfoglalkozású
B102: Tulajdonos
B103: Társtulajdonos
B104: Családtag
B105: Albérlő
B106: Egyéb
B107: Nincs információ
B108: Allianz Bank
B109: Budapest Bank
B110: CIB Bank
B111: Citibank
B112: Egyéb bank
B113: Erste Bank
B114: FHB Bank
B115: HVB Bank
B116: K&H Bank
B117: MKB Bank
B118: Nincs banki kapcsolat
B119: OTP Bank
B120: Raiffeisen Bank
B121: Takarékszövetkezet
B122: Unicredit Bank
B123: Volksbank
B126: Határozott
B127: Határozatlan
B128: Próbaidő alatt áll
B131: Lakáshitel
B132: Szabad felhasználású jelzáloghitel
B133: Ingatlan lízing
B134: Személyi kölcsön
B135: Áruhitel
B136: Folyószámlahitel
B137: Diákhitel
B138: Hitelkártya
B139: Munkáltatói hitel
B140: Önkormányzati hitel
B141: Egyéb
B143: Adós
B144: Adóstárs
B145: Kezes

Sheet Segéd (hidden)
A1: Ez a sheet főleg a Tájékoztatón lévő szövegeket befolyásolja, a tájékoztatóban lévő feltételek (pl. jövedelem kedvezmény kategóriához kötött szövegek) teljesülése esetén innen kerül kiválasztásra a beszúrandó szöveg
A3: A Bank a hitel folyósítását követően visszatéríti az értékbecslés végzésekor az értékbecslőnek számla ellenében kifizetett díjat. (1 db, a célingatlanra vonatkozó műszaki szakértés díja, valamint a célingatlanra vonatkozó záró értékbecslési és műszaki szakértői díj) | B3: Ha az értékbecslés díjmentes (0 Ft) (83. sor) | G3: Jelmagyarázat
A4: Nem Minősített Fogyasztóbarát termék esetében a Bank akció keretében nem számítja fel a folyósításra kerül összeg 1%-a, de maximum 200 000 Ft folyósítási jutalékot. Minősített Fogyasztóbarát termék esetében a a Bank akció keretében nem számítja fel a folyósításra kerül összeg 0,15%-a, de maximum 100 000 Ft folyósítási jutalékot. | B4: Ha a folyósítási jutalék 0 Ft (84. sor) | D4: A hitelügyletben szereplő ingatlan(ok)hoz tartozóan hitelügyletenként 2 darab tulajdoni lap másolat TAKARNET rendszerből történő lekérdezésének díját a Bank 0 Ft-ban állapítja meg. | E4: Ha a tul.lap díja 0 Ft (82. sor) | G4: A Tájékoztató fülre kerülő szöveg, mely itt módosítható
A5: A Bank a THM számítása során egy feltételezett számla használatának költségét számolja fel, mely az adott hiteltermékhez feltételéül szükséges minimális feltételeket biztosítja. A Bank ennek alapján egy átlagos használati költséget állapított meg, mint a számlavezetés használatának költsége. | B5: Ha 234 Ft a számlavezetési díj (Calc sheet-en megadva) | D5: A hitelügyletben szereplő ingatlan(ok)hoz tartozóan hitelügyletenként 1 darab térképmásolat TAKARNET rendszerből történő lekérdezésének díját a Bank 0 Ft-ban állapítja meg. | E5: Ha a térképmásolat díja 0 Ft (83. sor) | G5: Visual Basicből módosított cella, vagy arra épülő képlet
G6: Magyarázat (hol található az adott szöveg a Tájékoztatóban)
A7: A form eredményei | C7: Visual Basic írja be a Termékválasztó form OK gombjára való kattintás után
A8: Esemény | B8: Tájékoztatás
A9: Hitecél | B9: Piaci kamatozású lakáscélú hitel
A10: Kamatperiódus | B10: 10 ÉVES kamatperiódus
A11: Hitel típus | B11: Minősített Fogyasztóbarát termék - vásárlásra
A12: Minősített Fogyasztóbarát termék | B12: Minősített Fogyasztóbarát termék
A13: Közszférás kedvezmény | B13: nincs közszférás kedvezmény
A14: Jövedelem kategória | B14: 2. kedvezmény kategória
A16: 5 | B16: Ez a szám jelképezi a kedvezmény kategóriát. VisualBasicből töltődik a Termékválasztó form OK gombjára való kattintás utáni VB kód írja be. A tájékoztatóban kerül felhasználásra a kedvezmény kategóriák részeknél.
A18: A Bank a Kölcsönkérelemben kéri az ügyfél az irányú nyilatkozatát, hogy a hitel felvétele esetén mely kedvezmény kategória szerinti feltételek teljesítését vállalja a hitel teljes futamidejére. Ezen nyilatkozat alapján kerül meghatározásra a kamatkondíció. Az egyes kedvezmény kategóriák igénybevételének feltételei a következők: | B18: Ez a szöveg akkor jelenik meg a tájékoztatóban, ha valamelyik kedvezmény kategória ki van választva, tehát nem standard (90. és 92. sor)
A19: A Bank a teljes futamidő alatt jogosult az ügyleti év kezdő napjától számított 6 havonta felülvizsgálni, hogy a vállalt kedvezmény kategória szerinti feltételek teljesülnek-e. Amennyiben 3 egymást követő hónapban nem teljesül a vállalt feltétel, akkor az ügylet vonatkozásában az ügyfél nem jogosult az ellenőrzést követő 6 hónapban igénybe venni egyik kedvezmény kategória szerinti kondíciót sem. Ebben az esetben a kamatkedvezmény mértékével növelt kamatot veszi fel az ügylet. Az ebből eredő kamatváltozás nem tekinthető a Bank részéről egyoldalú kamatmódosításnak. Amennyiben a következő felülvizsgálatkor megállapítást nyer, hogy az ügyfél ismét teljesíti a kölcsönkérelemben vállalt feltételt, akkor az ügylet vonatkozásában ismét jogosulttá válik a következő 6 hónapban a kölcsönkérelemben vállalt kedvezménykategória szerinti kamatkedvezmény igénybevételére.
A20: A Bank a teljes futamidő alatt jogosult az ügyleti év kezdő napjától számított 6 havonta felülvizsgálni, hogy a vállalt kedvezmény kategória szerinti feltételek teljesülnek-e. Amennyiben 3 egymást követő hónapban nem teljesül a vállalt feltétel, akkor az ügylet vonatkozásában az ügyfél nem jogosult az ellenőrzést követő 6 hónapban igénybe venni egyik kedvezmény kategória szerinti kondíciót sem. Ebben az esetben a kamatkedvezmény mértékével növelt kamatot veszi fel az ügylet. Az ebből eredő kamatváltozás nem tekinthető a Bank részéről egyoldalú kamatmódosításnak. Amennyiben a következő felülvizsgálatkor megállapítást nyer, hogy az ügyfél ismét teljesíti a kölcsönkérelemben vállalt feltételt, akkor az ügylet vonatkozásában ismét jogosulttá válik a következő 6 hónapban a kölcsönkérelemben vállalt kedvezménykategória szerinti kamatkedvezmény igénybevételére. Amennyiben Erste Diákhitel Számlával rendelkezik és a kölcsön folyósítása és törlesztése erre a számlára történik, akkor kölcsönéhez 25 bp kamatkedvezményt kap. Ha az Erste Diákhitel Számla megszűnik, vagy átminősítésre kerül, akkor a kölcsönhöz kapcsolódó kamatkedvezmény is ezzel az időponttal megszűnik.
A22: Kedvezmény kategória | B22: Kedvezmény kategória feltétele (E92) | C22: A tájékoztató E92 oszlopába be kell írni a kedvezmény kategóriák nevesítéseit (melyik mekkora jövedelmet jelent)
A23: Extra kedvezmény kategória | B23: 600.000 forintot elérő havi jóváírás vállalása
A24: Extra ERE kedvezmény kategória | B24: ERSTE Ingatlan Kft. vagy ERSTE IN-FORG Kft. (ERE) tulajdonában lévő ingatlan – kivéve telek illetve az Újbuda Tóváros projektben található ingatlanok – vásárlása és 100.000 forintot elérő havi jóváírás vállalása.
A25: Prémium kedvezmény kategória | B25: A főadós (elsődleges hiteligénylő) az Erste Bank szerződött Prémium/Erste World/Private Banking ügyfele.
A26: 1. kedvezmény kategória | B26: 350.000 forintot elérő havi jóváírás vállalása.
A27: 2. kedvezmény kategória | B27: 200.000 forintot elérő havi jóváírás vállalása
A28: 3. kedvezmény kategória | B28: 100.000 forintot elérő havi jóváírás vállalása
A29: Standard, kedvezmény nélkül | B29: Havi jóváírás vállalása nélkül.
A30: Erste Diákhitel Számla - Extra kedvezmény kategória | B30: 600.000 forintot elérő havi jóváírás vállalása - A hitel törlesztési és folyósítási számlája az Erste Diákhitel számla
A31: Erste Diákhitel Számla - Extra ERE kedvezmény kategória | B31: ERSTE Ingatlan Kft. vagy ERSTE IN-FORG Kft. (ERE) tulajdonában lévő ingatlan – kivéve telek illetve az Újbuda Tóváros projektben található ingatlanok – vásárlása és 100.000 forintot elérő havi jóváírás vállalása. - A hitel törlesztési és folyósítási számlája az Erste Diákhitel számla
A32: Erste Diákhitel Számla - 1. kedvezmény kategória | B32: 350.000 forintot elérő havi jóváírás vállalása. - A hitel törlesztési és folyósítási számlája az Erste Diákhitel számla
A33: Erste Diákhitel Számla - 2. kedvezmény kategória | B33: 200.000 forintot elérő havi jóváírás vállalása - A hitel törlesztési és folyósítási számlája az Erste Diákhitel számla
A34: Erste Diákhitel Számla - 3. kedvezmény kategória | B34: 100.000 forintot elérő havi jóváírás vállalása - A hitel törlesztési és folyósítási számlája az Erste Diákhitel számla
A35: Erste Diákhitel Számla - Standard, kedvezmény nélkül | B35: Havi jóváírás vállalása nélkül. - A hitel törlesztési és folyósítási számlája az Erste Diákhitel számla
A37: Szerzési jutalék és fenntartási jutalék. | B37: Személyes tájékoztató, 2.2-es pont, A hitelközvetítő jutaléka (ha van közvetítő)
A38: szerzési jutalék, az igényelt hitelösszeg 1,6%-a.
A39: fenntartási jutalék, az igényelt hitelösszeg 0.4%-a, amennyiben a közvetítő teljesíti a megbízási szerződésben szereplő minőségi kritériumokat.
A40: Szerzési jutalék esetén amikor a hitel folyósítása megtörtént, fenntartási jutaléknál a kölcsön folyósítását követő első ügyleti év leteltét követően a) az 5 (öt) évet elérő vagy azt meghaladó és a 10 (tíz) évet elérő, de azt meg nem haladó jelzálogalapú lakossági kölcsönöknél legfeljebb 2 (kettő) évig, b) a 10 (tíz) évet meghaladó jelzálogalapú lakossági kölcsönöknél az adott ügylet futamidejének az 1/5-ig (egy ötödéig) évente egyenlő részletekben fizet.
A42: A kölcsön kamatlábának emelkedése esetén a törlesztőrészlet megemelkedik. Minél hosszabb a hitel futamideje, annál nagyobb arányban emelkedik a törlesztőrészlet a kamatláb azonos mértékű emelkedése esetén. A kölcsön kamata | B42: Személyes tájékoztató, 3.1 pont, A hitelkamatlábbal összefüggő potenciális kockázatok
A43: =IF(cellKamatPeriodus="3 ÉVES kamatperiódus",3,IF(cellKamatPeriodus="5 ÉVES kamatperiódus",5,IF(cellKamatPeriodus="10 ÉVES kamatperiódus",10,IF(cellKamatPeriodus="15 ÉVES FIX",15,20)))) -> 10
A44: évente emelkedhet, legfeljebb öt alkalommal a hitel futamideje alatt, de csak a Magyar Nemzeti Bank által elfogadott módszertannak és kamatváltoztatási mutatónak megfelelően. A havi törlesztőrészlet emelkedését okozhatja, ha Ön nem teljesíti a szerződésben vállalt feltételeket, amelyek vállalása fejében a Bank kedvezményes kamatozású hitelt nyújt Önnek. A feltételek nem teljesítése miatt a kamat 6 hónap után emelkedhet, ezen kamatemelkedés nem minősül a Bank részéről egyoldalú szerződésmódosításnak. Felhívjuk figyelmét, hogy a gazdasági, pénzügyi környezet változása akár nagy mértékű emelkedést is okozhat az Ön által fizetendő kamat mértékében is. Az Erste Bank Hungary Zrt. által alkalmazott H3K kamatváltoztatási mutató képletében lévő ÁKK kamatok aktuális és historikus értékeit az Államadósság Kezelő Központ internetes oldalán érheti el: http://www.akk.hu/hu/statisztika/hozamok-indexek-forgalmi-adatok/referenciahozamok
A45: ="A hitel kamata " & cellKamatperiodusSzam & " évig, a teljes futamidő alatt változatlan. A havi törlesztőrészlet emelkedését azonban okozhatja az, ha Ön nem teljesíti a szerződésben vállalt feltételeket, amelyek vállalása fejében a Bank kedvezményes kamatozású hitelt nyújt Önnek. " &"A feltételek nem teljesítése miatt a kamat 6 hónap után emelkedhet, ezen kamatemelkedés nem minősül a Bank részéről egyoldalú szerződésmódosításnak." -> A hitel kamata 10 évig, a teljes futamidő alatt változatlan. A havi törlesztőrészlet emelkedését azonban okozhatja az, ha Ön nem teljesíti a szerződésben vállalt feltételeket, amelyek vállalása fejében a Bank kedvezményes kamatozású hitelt nyújt Önnek. A feltételek nem teljesítése miatt a kamat 6 hónap után emelkedhet, ezen kamatemelkedés nem minősül a Bank részéről egyoldalú szerződésmódosításnak.
A47: Rögzített kamatozás | B47: Személyes tájékoztató, 3.4 pont, Az alkalmazandó kamatláb típusa
A48: éves kamatperiódusokra. A kamatperiódus időtartama alatt a kamat változatlan. A kamatláb
A49: évente a kamatváltoztatási mutató alapján módosulhat, legfeljebb 5 alkalommal a futamidő alatt. A Bank által alkalmazott kamatváltoztatási mutatót a mindenkori hirdetmény tartalmazza. A kamatváltoztatási mutató alapján, a kamatperiódus fordulónapján történő egyoldalú módosításról a Bank 90 nappal megelőzően írásban tájékoztatja az Adósokat. A Bank által alkalmazott kamatváltoztatási mutató: H3K
A50: . A képletben szereplő ÁKK kamatok aktuális és idősoros értékei elérhető az Államadósság Kezelő Központ internetes oldalán: http://www.akk.hu/hu/statisztika/hozamok-indexek-forgalmi-adatok/referenciahozamok. A Bank által alkalmazott kamatváltozatási mutatóról részletes információk az MNB honlapján: https://www.mnb.hu/fair-bank/kamatvaltoztatasi-mutato/forinthitel/h3k-3-szamu-kamatvaltoztatasi-mutato-forinthitelek-eseten valamint az Erste Bank Hungary Zrt. honlapján : https://www.erstebank.hu/hu/ebh-nyito/hitelek-es-otthon/otthonmegoldasok/kamatvaltoztatasi-mutato
A51: ="A hitel kamata " & cellKamatperiodusSzam & " évig, a teljes futamidő alatt változatlan. A fix kamatozásra figyelemmel a Bank nem alkalmaz kamatváltoztatási mutatót." -> A hitel kamata 10 évig, a teljes futamidő alatt változatlan. A fix kamatozásra figyelemmel a Bank nem alkalmaz kamatváltoztatási mutatót.
A53: Törlesztőrészlet összege az első kamatperiódus alatt, amely kamatperiódusra a kamat rögzített: | B53: Személyes tájékoztató, 6. pont, Az egyes törlesztőrészletek összege (1. bekezdés)
A54: Ft. A kamat
A55: évente az egyes kamatperiódusok fordulónapján változhat, legfeljebb 5 alkalommal a futamidő alatt. A kamat változtatásának mértékét a kamatváltoztatási mutató tartalmazza.
A56: Amennyiben azt feltételezzük, hogy az | B56: Személyes tájékoztató, 6. pont, Az egyes törlesztőrészletek összege (4. bekezdés)
A57: =+" éves ÁKK kamatok a kamatfordulót 120 nappal megelőzően az azt megelőző három hónapban a valaha volt legmagasabb számtani átlagot elérő mértékre változnak, akkor az első kamatfordulókor az Ön hitelének kamata így módosul a "&IF(cellKamatPeriodus="3 ÉVES kamatperiódus",36,IF(cellKamatPeriodus="5 ÉVES kamatperiódus",61,121 )) & " hónaptól:" -> éves ÁKK kamatok a kamatfordulót 120 nappal megelőzően az azt megelőző három hónapban a valaha volt legmagasabb számtani átlagot elérő mértékre változnak, akkor az első kamatfordulókor az Ön hitelének kamata így módosul a 121 hónaptól:
A58: =5.08%+cellKalkulaltKamat -> 0.1182 | B58: 3Y kamatemelés | C58: Személyes tájékoztató, 6. pont, Az egyes törlesztőrészletek összege (5. és 7. bekezdés)
A59: =8.59%+cellKalkulaltKamat -> 0.1533 | B59: 5Y kamatemelés
A60: =7.14%+cellKalkulaltKamat -> 0.1388 | B60: 10Y kamatemelés
A61: =(PMT(Tájékoztató!B100/12,Calc!C6-60,Tájékoztató!C134)*-1) -> 136465.6473 | B61: Törlesztő a kamatemelés után 5Y | F61: =(PMT(Tájékoztató!B100/12,Calc!C6-120,Tájékoztató!C139)*-1) -> 122767.6064 | G61: Törlesztő a kamatemelés után 10Y
A62: =ROUND(A61,0) -> 136466 | B62: Törlesztő a kamatemelés után 5Y | F62: =ROUND(F61,0) -> 122768 | G62: Törlesztő a kamatemelés után 10Y
A64: =cellHitelCel & cellKozszferas & "Standard, kedvezmény nélkül" & cellKamatPeriodus & cellHitelOsszegKategoria & cellMFB -> Piaci kamatozású lakáscélú hitelnincs közszférás kedvezményStandard, kedvezmény nélkül10 ÉVES kamatperiódus10.000.000 - 19.999.999Minősített Fogyasztóbarát termék | B64: Személyes tájékoztató, 6. pont, Az egyes törlesztőrészletek összege. Az ügyfél felkészítése arra, hogy esetleg nem fogja tudni fizetni. Az első a terméknek megfelelő standard kamat kikereséséséhez szükséges (a kiválaszott termékparamétereknek megfelelő standard kamatú konstrukció kikeresése az árazási táblában), ezt és két szöveget akkor jelenítjük meg, ha kedvezményes árazású terméket igényel az ügyfél, amit nem fizetés esetén átsorolunk standard kategóriás termékké.
A65: Amennyiben azt feltételezzük, hogy Ön nem teljesíti a kedvezményes kamat nyújtásához vállalt feltételeket, akkor a hitelkamat így változna:
A66: Ebben az esetben az Ön törlesztőrészlete a 7. hónaptól:
A68: ="- az Erste Bank Hungary Zrt.-nél vezetett számlára érkező havi jóváírás. Jelen tájékoztató a(z) "&Tájékoztató!B93&" igénybevételéhez szükséges havi jóváírás vállalása alapján készült" -> - az Erste Bank Hungary Zrt.-nél vezetett számlára érkező havi jóváírás. Jelen tájékoztató a(z) 2. kedvezmény kategória igénybevételéhez szükséges havi jóváírás vállalása alapján készült | B68: Személyes tájékoztató, 8. pont, További kötelezettségek
A69: A Bank a teljes futamidő alatt jogosult az ügyleti év kezdő napjától számított 6 havonta felülvizsgálni, hogy a vállalt kedvezmény kategória szerinti feltételek teljesülnek-e. Amennyiben a felülvizsgálat előtti 3 egymást követő hónapban nem teljesül a vállalt feltétel, akkor az ügylet vonatkozásában az ügyfél nem jogosult az ellenőrzést követő 6 hónapban igénybe venni egyik kedvezmény kategória szerinti kondíciót sem. Ebben az esetben a kamatkedvezmény mértékével növelt kamatot veszi fel az ügylet. Az ebből eredő kamatváltozás nem tekinthető a Bank részéről egyoldalú kamatmódosításnak. Amennyiben a következő felülvizsgálatkor megállapítást nyer, hogy az ügyfél ismét teljesíti a kölcsönkérelemben vállalt feltételt, akkor az ügylet vonatkozásában ismét jogosulttá válik a következő 6 hónapban a kölcsönkérelemben vállalt kedvezménykategória szerinti kamatkedvezmény igénybevételére.
A71: Piaci kamatozású lakáscélú hitel | B71: A két jelzáloghitel típus neve, a tájékoztatóban több helyen képletben szerepel, főként a reprezentatív példáknál
A72: Szabad felhasználású jelzáloghitel
A74: Hitelcél | B74: Kamatperiódus | C74: Közszférás kedvezmény | D74: Minősített Fogyasztóbarát termék | E74: Kereső | F74: Hitel teljes díja | G74: Teljes visszafizetendő összeg | H74: THM | I74: A 2.6 reprezentatív példa esetei minden variációra. Úgy a legegyszerűbb kiszámoltatni, hogy ezen a munkalapon fent (a B6:B10 tartományba) kézzel (nem a termékválasztóval) beírjuk az itteni hitelcél, kamatperiódus és közszférás kedvezmény értékeket, ekkor ettől a táblázattól jobbra, a J:L tartományban generálódik a választ, amit értékként vissza lehet illeszteni
A75: =cellTermekNevePiaciLakashitel -> Piaci kamatozású lakáscélú hitel | B75: 3 ÉVES kamatperiódus | C75: nincs közszférás kedvezmény | D75: nem Minősített Fogyasztóbarát termék | E75: =A75 & B75 & C75 & D75 -> Piaci kamatozású lakáscélú hitel3 ÉVES kamatperiódusnincs közszférás kedvezménynem Minősített Fogyasztóbarát termék | F75: 2985741.316 | G75: 7985741.316 | H75: 0.05239609098 | K75: =Calc!C27 -> 9972056 | L75: =Calc!C28 -> 21972056 | M75: =Calc!H5 -> 0.07014912521
A76: Piaci kamatozású lakáscélú hitel | B76: 3 ÉVES kamatperiódus | C76: közszférás kedvezmény | D76: nem Minősített Fogyasztóbarát termék | E76: =A76 & B76 & C76 & D76 -> Piaci kamatozású lakáscélú hitel3 ÉVES kamatperiódusközszférás kedvezménynem Minősített Fogyasztóbarát termék | F76: 2912131.113 | G76: 7912131.113 | H76: 0.05116220348 | K76: Az egyes esetek kiszámításához segédtábla, a B6:B10 változtatásával itt kalkulálódik a 3 szükséges érték
A77: Piaci kamatozású lakáscélú hitel | B77: 5 ÉVES kamatperiódus | C77: nincs közszférás kedvezmény | D77: Minősített Fogyasztóbarát termék | E77: Piaci kamatozású lakáscélú hitel5 ÉVES kamatperiódusnincs közszférás kedvezményMinősített Fogyasztóbarát termék | F77: 15738802 | G77: 27738802 | H77: 0.1045000803
A78: Piaci kamatozású lakáscélú hitel | B78: 5 ÉVES kamatperiódus | C78: közszférás kedvezmény | D78: Minősített Fogyasztóbarát termék | E78: Piaci kamatozású lakáscélú hitel5 ÉVES kamatperiódusközszférás kedvezményMinősített Fogyasztóbarát termék | F78: 15738802 | G78: 27738802 | H78: 0.1045000803
A79: Piaci kamatozású lakáscélú hitel | B79: 10 ÉVES kamatperiódus | C79: nincs közszférás kedvezmény | D79: Minősített Fogyasztóbarát termék | E79: Piaci kamatozású lakáscélú hitel10 ÉVES kamatperiódusnincs közszférás kedvezményMinősített Fogyasztóbarát termék | F79: 9972056 | G79: 21972056 | H79: 0.07014912521
A80: Piaci kamatozású lakáscélú hitel | B80: 10 ÉVES kamatperiódus | C80: közszférás kedvezmény | D80: Minősített Fogyasztóbarát termék | E80: Piaci kamatozású lakáscélú hitel10 ÉVES kamatperiódusközszférás kedvezményMinősített Fogyasztóbarát termék | F80: 9630876 | G80: 21630876 | H80: 0.06802550166 | K80: =cellTermekNevePiaciLakashitel & cellKamatPeriodus & cellKozszferas & cellMFB -> Piaci kamatozású lakáscélú hitel10 ÉVES kamatperiódusnincs közszférás kedvezményMinősített Fogyasztóbarát termék | L80: VLOOKUP keresőkifejzések, amikkel a konkrét, termékválasztón megadott paramétereknek megfelelő példaérték kikereshető a bal oldali táblázatból - szabfelből csak nem MFB létezik, ezért a CONCATENATE függvény vége eltér
A81: Piaci kamatozású lakáscélú hitel | B81: 15 ÉVES FIX | C81: nincs közszférás kedvezmény | D81: Minősített Fogyasztóbarát termék | E81: Piaci kamatozású lakáscélú hitel15 ÉVES FIXnincs közszférás kedvezményMinősített Fogyasztóbarát termék | F81: 11319016 | G81: 23319016 | H81: 0.1058426625 | K81: =cellTermekNeveSzabfel & cellKamatPeriodus & cellKozszferas & "nem Minősített Fogyasztóbarát termék" -> Szabad felhasználású jelzáloghitel10 ÉVES kamatperiódusnincs közszférás kedvezménynem Minősített Fogyasztóbarát termék
A82: Piaci kamatozású lakáscélú hitel | B82: 15 ÉVES FIX | C82: közszférás kedvezmény | D82: Minősített Fogyasztóbarát termék | E82: Piaci kamatozású lakáscélú hitel15 ÉVES FIXközszférás kedvezményMinősített Fogyasztóbarát termék | F82: 11081370 | G82: 23081370 | H82: 0.1038696944
A83: Piaci kamatozású lakáscélú hitel | B83: 20 ÉVES FIX | C83: nincs közszférás kedvezmény | D83: Minősített Fogyasztóbarát termék | E83: Piaci kamatozású lakáscélú hitel20 ÉVES FIXnincs közszférás kedvezményMinősített Fogyasztóbarát termék | F83: 10194978 | G83: 22194978 | H83: 0.07153164543
A84: Piaci kamatozású lakáscélú hitel | B84: 20 ÉVES FIX | C84: közszférás kedvezmény | D84: Minősített Fogyasztóbarát termék | E84: Piaci kamatozású lakáscélú hitel20 ÉVES FIXközszférás kedvezményMinősített Fogyasztóbarát termék | F84: 9766944 | G84: 21766944 | H84: 0.06887449306
A85: Piaci kamatozású lakáscélú hitel | B85: 5 ÉVES kamatperiódus | C85: nincs közszférás kedvezmény | D85: Minősített Fogyasztóbarát termék - Zöld | E85: Piaci kamatozású lakáscélú hitel5 ÉVES kamatperiódusnincs közszférás kedvezményMinősített Fogyasztóbarát termék - Zöld | F85: 14811599 | G85: 26811599 | H85: 0.09927175013
A86: Piaci kamatozású lakáscélú hitel | B86: 5 ÉVES kamatperiódus | C86: közszférás kedvezmény | D86: Minősített Fogyasztóbarát termék - Zöld | E86: Piaci kamatozású lakáscélú hitel5 ÉVES kamatperiódusközszférás kedvezményMinősített Fogyasztóbarát termék - Zöld | F86: 14811599 | G86: 26811599 | H86: 0.09927175013
A87: Piaci kamatozású lakáscélú hitel | B87: 10 ÉVES kamatperiódus | C87: nincs közszférás kedvezmény | D87: Minősített Fogyasztóbarát termék - Zöld | E87: Piaci kamatozású lakáscélú hitel10 ÉVES kamatperiódusnincs közszférás kedvezményMinősített Fogyasztóbarát termék - Zöld | F87: 9124653 | G87: 21124653 | H87: 0.06484749343
A88: Piaci kamatozású lakáscélú hitel | B88: 10 ÉVES kamatperiódus | C88: közszférás kedvezmény | D88: Minősített Fogyasztóbarát termék - Zöld | E88: Piaci kamatozású lakáscélú hitel10 ÉVES kamatperiódusközszférás kedvezményMinősített Fogyasztóbarát termék - Zöld | F88: 8790307 | G88: 20790307 | H88: 0.06273383324
A89: Piaci kamatozású lakáscélú hitel | B89: 15 ÉVES FIX | C89: nincs közszférás kedvezmény | D89: Minősített Fogyasztóbarát termék - Zöld | E89: Piaci kamatozású lakáscélú hitel15 ÉVES FIXnincs közszférás kedvezményMinősített Fogyasztóbarát termék - Zöld | F89: 10662291 | G89: 22662291 | H89: 0.1003705504
A90: Piaci kamatozású lakáscélú hitel | B90: 15 ÉVES FIX | C90: közszférás kedvezmény | D90: Minősített Fogyasztóbarát termék - Zöld | E90: Piaci kamatozású lakáscélú hitel15 ÉVES FIXközszférás kedvezményMinősített Fogyasztóbarát termék - Zöld | F90: 10428167 | G90: 22428167 | H90: 0.09840670106
A91: Piaci kamatozású lakáscélú hitel | B91: 20 ÉVES FIX | C91: nincs közszférás kedvezmény | D91: Minősített Fogyasztóbarát termék - Zöld | E91: Piaci kamatozású lakáscélú hitel20 ÉVES FIXnincs közszférás kedvezményMinősített Fogyasztóbarát termék - Zöld | F91: 9343205 | G91: 21343205 | H91: 0.06622358988
A92: Piaci kamatozású lakáscélú hitel | B92: 20 ÉVES FIX | C92: közszférás kedvezmény | D92: Minősített Fogyasztóbarát termék - Zöld | E92: Piaci kamatozású lakáscélú hitel20 ÉVES FIXközszférás kedvezményMinősített Fogyasztóbarát termék - Zöld | F92: 8923578 | G92: 20923578 | H92: 0.06357880551
A93: Piaci kamatozású lakáscélú hitel | B93: 5 ÉVES kamatperiódus | C93: nincs közszférás kedvezmény | D93: Minősített Fogyasztóbarát termék - Diák | E93: Piaci kamatozású lakáscélú hitel5 ÉVES kamatperiódusnincs közszférás kedvezményMinősített Fogyasztóbarát termék - Diák | F93: 15282617 | G93: 27282617 | H93: 0.1020025513
A94: Piaci kamatozású lakáscélú hitel | B94: 10 ÉVES kamatperiódus | C94: nincs közszférás kedvezmény | D94: Minősített Fogyasztóbarát termék - Diák | E94: Piaci kamatozású lakáscélú hitel10 ÉVES kamatperiódusnincs közszférás kedvezményMinősített Fogyasztóbarát termék - Diák | F94: 9546177 | G94: 21546177 | H94: 0.06749517604
A95: Piaci kamatozású lakáscélú hitel | B95: 15 ÉVES FIX | C95: nincs közszférás kedvezmény | D95: Minősített Fogyasztóbarát termék - Diák | E95: Piaci kamatozású lakáscélú hitel15 ÉVES FIXnincs közszférás kedvezményMinősített Fogyasztóbarát termék - Diák | F95: 10989580 | G95: 22989580 | H95: 0.1031034533
A96: Piaci kamatozású lakáscélú hitel | B96: 20 ÉVES FIX | C96: nincs közszférás kedvezmény | D96: Minősített Fogyasztóbarát termék - Diák | E96: Piaci kamatozású lakáscélú hitel20 ÉVES FIXnincs közszférás kedvezményMinősített Fogyasztóbarát termék - Diák | F96: 9766944 | G96: 21766944 | H96: 0.06887449306
A97: Piaci kamatozású lakáscélú hitel | B97: 5 ÉVES kamatperiódus | C97: nincs közszférás kedvezmény | D97: Minősített Fogyasztóbarát termék - Zöld + Diák | E97: Piaci kamatozású lakáscélú hitel5 ÉVES kamatperiódusnincs közszférás kedvezményMinősített Fogyasztóbarát termék - Zöld + Diák | F97: 14344314 | G97: 26344314 | H97: 0.09654715164
A98: Piaci kamatozású lakáscélú hitel | B98: 10 ÉVES kamatperiódus | C98: nincs közszférás kedvezmény | D98: Minősített Fogyasztóbarát termék - Zöld + Diák | E98: Piaci kamatozású lakáscélú hitel10 ÉVES kamatperiódusnincs közszférás kedvezményMinősített Fogyasztóbarát termék - Zöld + Diák | F98: 8707102 | G98: 20707102 | H98: 0.06220603246
A99: Piaci kamatozású lakáscélú hitel | B99: 15 ÉVES FIX | C99: nincs közszférás kedvezmény | D99: Minősített Fogyasztóbarát termék - Zöld + Diák | E99: Piaci kamatozású lakáscélú hitel15 ÉVES FIXnincs közszférás kedvezményMinősített Fogyasztóbarát termék - Zöld + Diák | F99: 10337428 | G99: 22337428 | H99: 0.09764395296
A100: Piaci kamatozású lakáscélú hitel | B100: 20 ÉVES FIX | C100: nincs közszférás kedvezmény | D100: Minősített Fogyasztóbarát termék - Zöld + Diák | E100: Piaci kamatozású lakáscélú hitel20 ÉVES FIXnincs közszférás kedvezményMinősített Fogyasztóbarát termék - Zöld + Diák | F100: 8923578 | G100: 20923578 | H100: 0.06357880551
A101: Piaci kamatozású lakáscélú hitel | B101: 5 ÉVES kamatperiódus | C101: nincs közszférás kedvezmény | D101: nem Minősített Fogyasztóbarát termék | E101: Piaci kamatozású lakáscélú hitel5 ÉVES kamatperiódusnincs közszférás kedvezménynem Minősített Fogyasztóbarát termék | F101: 15738802 | G101: 27738802 | H101: 0.1045000803
A102: Piaci kamatozású lakáscélú hitel | B102: 5 ÉVES kamatperiódus | C102: közszférás kedvezmény | D102: nem Minősített Fogyasztóbarát termék | E102: Piaci kamatozású lakáscélú hitel5 ÉVES kamatperiódusközszférás kedvezménynem Minősített Fogyasztóbarát termék | F102: 15738802 | G102: 27738802 | H102: 0.1045000803
A103: Piaci kamatozású lakáscélú hitel | B103: 10 ÉVES kamatperiódus | C103: nincs közszférás kedvezmény | D103: nem Minősített Fogyasztóbarát termék | E103: Piaci kamatozású lakáscélú hitel10 ÉVES kamatperiódusnincs közszférás kedvezménynem Minősített Fogyasztóbarát termék | F103: 9972056 | G103: 21972056 | H103: 0.07014912521
A104: Piaci kamatozású lakáscélú hitel | B104: 10 ÉVES kamatperiódus | C104: közszférás kedvezmény | D104: nem Minősített Fogyasztóbarát termék | E104: Piaci kamatozású lakáscélú hitel10 ÉVES kamatperiódusközszférás kedvezménynem Minősített Fogyasztóbarát termék | F104: 9630876 | G104: 21630876 | H104: 0.06802550166
A105: Piaci kamatozású lakáscélú hitel | B105: 15 ÉVES FIX | C105: nincs közszférás kedvezmény | D105: nem Minősített Fogyasztóbarát termék | E105: Piaci kamatozású lakáscélú hitel15 ÉVES FIXnincs közszférás kedvezménynem Minősített Fogyasztóbarát termék | F105: 11301016 | G105: 23301016 | H105: 0.1055524629
A106: Piaci kamatozású lakáscélú hitel | B106: 15 ÉVES FIX | C106: közszférás kedvezmény | D106: nem Minősített Fogyasztóbarát termék | E106: Piaci kamatozású lakáscélú hitel15 ÉVES FIXközszférás kedvezménynem Minősített Fogyasztóbarát termék | F106: 11063370 | G106: 23063370 | H106: 0.1035815208
A107: Piaci kamatozású lakáscélú hitel | B107: 20 ÉVES FIX | C107: nincs közszférás kedvezmény | D107: nem Minősített Fogyasztóbarát termék | E107: Piaci kamatozású lakáscélú hitel20 ÉVES FIXnincs közszférás kedvezménynem Minősített Fogyasztóbarát termék | F107: 10194978 | G107: 22194978 | H107: 0.07153164543
A108: Piaci kamatozású lakáscélú hitel | B108: 20 ÉVES FIX | C108: közszférás kedvezmény | D108: nem Minősített Fogyasztóbarát termék | E108: Piaci kamatozású lakáscélú hitel20 ÉVES FIXközszférás kedvezménynem Minősített Fogyasztóbarát termék | F108: 9766944 | G108: 21766944 | H108: 0.06887449306
A109: Piaci kamatozású lakáscélú hitel | B109: 5 ÉVES kamatperiódus | C109: nincs közszférás kedvezmény | D109: nem Minősített Fogyasztóbarát termék - Diák | E109: Piaci kamatozású lakáscélú hitel5 ÉVES kamatperiódusnincs közszférás kedvezménynem Minősített Fogyasztóbarát termék - Diák | F109: 15282617 | G109: 27282617 | H109: 0.1020025513
A110: Piaci kamatozású lakáscélú hitel | B110: 10 ÉVES kamatperiódus | C110: nincs közszférás kedvezmény | D110: nem Minősített Fogyasztóbarát termék - Diák | E110: Piaci kamatozású lakáscélú hitel10 ÉVES kamatperiódusnincs közszférás kedvezménynem Minősített Fogyasztóbarát termék - Diák | F110: 9546177 | G110: 21546177 | H110: 0.06749517604
A111: Piaci kamatozású lakáscélú hitel | B111: 15 ÉVES FIX | C111: nincs közszférás kedvezmény | D111: nem Minősített Fogyasztóbarát termék - Diák | E111: Piaci kamatozású lakáscélú hitel15 ÉVES FIXnincs közszférás kedvezménynem Minősített Fogyasztóbarát termék - Diák | F111: 10989580 | G111: 22989580 | H111: 0.1031034533
A112: Piaci kamatozású lakáscélú hitel | B112: 20 ÉVES FIX | C112: nincs közszférás kedvezmény | D112: nem Minősített Fogyasztóbarát termék - Diák | E112: Piaci kamatozású lakáscélú hitel20 ÉVES FIXnincs közszférás kedvezménynem Minősített Fogyasztóbarát termék - Diák | F112: 9766944 | G112: 21766944 | H112: 0.06887449306
A113: Piaci kamatozású lakáscélú hitel | B113: 5 ÉVES kamatperiódus | C113: nincs közszférás kedvezmény | D113: nem Minősített Fogyasztóbarát termék - Zöld + Diák | E113: Piaci kamatozású lakáscélú hitel5 ÉVES kamatperiódusnincs közszférás kedvezménynem Minősített Fogyasztóbarát termék - Zöld + Diák | F113: 14344314 | G113: 26344314 | H113: 0.09654715164
A114: Piaci kamatozású lakáscélú hitel | B114: 10 ÉVES kamatperiódus | C114: nincs közszférás kedvezmény | D114: nem Minősített Fogyasztóbarát termék - Zöld + Diák | E114: Piaci kamatozású lakáscélú hitel10 ÉVES kamatperiódusnincs közszférás kedvezménynem Minősített Fogyasztóbarát termék - Zöld + Diák | F114: 8707102 | G114: 20707102 | H114: 0.06220603246
A115: Piaci kamatozású lakáscélú hitel | B115: 15 ÉVES FIX | C115: nincs közszférás kedvezmény | D115: nem Minősített Fogyasztóbarát termék - Zöld + Diák | E115: Piaci kamatozású lakáscélú hitel15 ÉVES FIXnincs közszférás kedvezménynem Minősített Fogyasztóbarát termék - Zöld + Diák | F115: 10337428 | G115: 22337428 | H115: 0.09764395296
A116: Piaci kamatozású lakáscélú hitel | B116: 20 ÉVES FIX | C116: nincs közszférás kedvezmény | D116: nem Minősített Fogyasztóbarát termék - Zöld + Diák | E116: Piaci kamatozású lakáscélú hitel20 ÉVES FIXnincs közszférás kedvezménynem Minősített Fogyasztóbarát termék - Zöld + Diák | F116: 8923578 | G116: 20923578 | H116: 0.06357880551
A117: Piaci kamatozású lakáscélú hitel | B117: 5 ÉVES kamatperiódus | C117: nincs közszférás kedvezmény | D117: nem Minősített Fogyasztóbarát termék - Zöld | E117: Piaci kamatozású lakáscélú hitel5 ÉVES kamatperiódusnincs közszférás kedvezménynem Minősített Fogyasztóbarát termék - Zöld | F117: 14811599 | G117: 26811599 | H117: 0.09927175013
A118: Piaci kamatozású lakáscélú hitel | B118: 5 ÉVES kamatperiódus | C118: közszférás kedvezmény | D118: nem Minősített Fogyasztóbarát termék - Zöld | E118: Piaci kamatozású lakáscélú hitel5 ÉVES kamatperiódusközszférás kedvezménynem Minősített Fogyasztóbarát termék - Zöld | F118: 14811599 | G118: 26811599 | H118: 0.09927175013
A119: Piaci kamatozású lakáscélú hitel | B119: 10 ÉVES kamatperiódus | C119: nincs közszférás kedvezmény | D119: nem Minősített Fogyasztóbarát termék - Zöld | E119: Piaci kamatozású lakáscélú hitel10 ÉVES kamatperiódusnincs közszférás kedvezménynem Minősített Fogyasztóbarát termék - Zöld | F119: 9124653 | G119: 21124653 | H119: 0.06484749343
A120: Piaci kamatozású lakáscélú hitel | B120: 10 ÉVES kamatperiódus | C120: közszférás kedvezmény | D120: nem Minősített Fogyasztóbarát termék - Zöld | E120: Piaci kamatozású lakáscélú hitel10 ÉVES kamatperiódusközszférás kedvezménynem Minősített Fogyasztóbarát termék - Zöld | F120: 8790307 | G120: 20790307 | H120: 0.06273383324
A121: Piaci kamatozású lakáscélú hitel | B121: 15 ÉVES FIX | C121: nincs közszférás kedvezmény | D121: nem Minősített Fogyasztóbarát termék - Zöld | E121: Piaci kamatozású lakáscélú hitel15 ÉVES FIXnincs közszférás kedvezménynem Minősített Fogyasztóbarát termék - Zöld | F121: 10662291 | G121: 22662291 | H121: 0.1003705504
A122: Piaci kamatozású lakáscélú hitel | B122: 15 ÉVES FIX | C122: közszférás kedvezmény | D122: nem Minősített Fogyasztóbarát termék - Zöld | E122: Piaci kamatozású lakáscélú hitel15 ÉVES FIXközszférás kedvezménynem Minősített Fogyasztóbarát termék - Zöld | F122: 10428167 | G122: 22428167 | H122: 0.09840670106
A123: Piaci kamatozású lakáscélú hitel | B123: 20 ÉVES FIX | C123: nincs közszférás kedvezmény | D123: nem Minősített Fogyasztóbarát termék - Zöld | E123: Piaci kamatozású lakáscélú hitel20 ÉVES FIXnincs közszférás kedvezménynem Minősített Fogyasztóbarát termék - Zöld | F123: 9343205 | G123: 21343205 | H123: 0.06622358988
A124: Piaci kamatozású lakáscélú hitel | B124: 20 ÉVES FIX | C124: közszférás kedvezmény | D124: nem Minősített Fogyasztóbarát termék - Zöld | E124: Piaci kamatozású lakáscélú hitel20 ÉVES FIXközszférás kedvezménynem Minősített Fogyasztóbarát termék - Zöld | F124: 8923578 | G124: 20923578 | H124: 0.06357880551
A125: =cellTermekNeveSzabfel -> Szabad felhasználású jelzáloghitel | B125: 3 ÉVES kamatperiódus | C125: nincs közszférás kedvezmény | D125: nem Minősített Fogyasztóbarát termék | E125: Szabad felhasználású jelzáloghitel3 ÉVES kamatperiódusnincs közszférás kedvezménynem Minősített Fogyasztóbarát termék | F125: 3019897.182 | G125: 8019897.182 | H125: 0.05286327056
A126: Szabad felhasználású jelzáloghitel | B126: 3 ÉVES kamatperiódus | C126: közszférás kedvezmény | D126: nem Minősített Fogyasztóbarát termék | E126: Szabad felhasználású jelzáloghitel3 ÉVES kamatperiódusközszférás kedvezménynem Minősített Fogyasztóbarát termék | F126: 3019897.182 | G126: 8019897.182 | H126: 0.05286327056
A127: Szabad felhasználású jelzáloghitel | B127: 5 ÉVES kamatperiódus | C127: nincs közszférás kedvezmény | D127: nem Minősített Fogyasztóbarát termék | E127: Szabad felhasználású jelzáloghitel5 ÉVES kamatperiódusnincs közszférás kedvezménynem Minősített Fogyasztóbarát termék | F127: 17680827 | G127: 29680827 | H127: 0.1155614746
A128: Szabad felhasználású jelzáloghitel | B128: 5 ÉVES kamatperiódus | C128: közszférás kedvezmény | D128: nem Minősített Fogyasztóbarát termék | E128: Szabad felhasználású jelzáloghitel5 ÉVES kamatperiódusközszférás kedvezménynem Minősített Fogyasztóbarát termék | F128: 17680827 | G128: 29680827 | H128: 0.1155614746
A129: Szabad felhasználású jelzáloghitel | B129: 10 ÉVES kamatperiódus | C129: nincs közszférás kedvezmény | D129: nem Minősített Fogyasztóbarát termék | E129: Szabad felhasználású jelzáloghitel10 ÉVES kamatperiódusnincs közszférás kedvezménynem Minősített Fogyasztóbarát termék | F129: 15864200 | G129: 27864200 | H129: 0.1052192388
A130: Szabad felhasználású jelzáloghitel | B130: 10 ÉVES kamatperiódus | C130: közszférás kedvezmény | D130: nem Minősített Fogyasztóbarát termék | E130: Szabad felhasználású jelzáloghitel10 ÉVES kamatperiódusközszférás kedvezménynem Minősített Fogyasztóbarát termék | F130: 15673855 | G130: 27673855 | H130: 0.1041242733
A131: Szabad felhasználású jelzáloghitel | B131: 5 ÉVES kamatperiódus | C131: nincs közszférás kedvezmény | D131: nem Minősített Fogyasztóbarát termék - Diák | E131: Szabad felhasználású jelzáloghitel5 ÉVES kamatperiódusnincs közszférás kedvezménynem Minősített Fogyasztóbarát termék - Diák | F131: 17192975 | G131: 29192975 | H131: 0.1128020574
A132: Szabad felhasználású jelzáloghitel | B132: 10 ÉVES kamatperiódus | C132: nincs közszférás kedvezmény | D132: nem Minősített Fogyasztóbarát termék - Diák | E132: Szabad felhasználású jelzáloghitel10 ÉVES kamatperiódusnincs közszférás kedvezménynem Minősített Fogyasztóbarát termék - Diák | F132: 15389017 | G132: 27389017 | H132: 0.1024838098
A134: =(MIN(Árazás!J:J) + MAX(Árazás!J:J))/2 -> 0.0674 | B134: A törlesztőrészletek rendszeres jövedelemhez viszonyított arányának várható változása a rendszeres jövedelem, valamint a kamat változásának függvényében. Korábban "fair bank segédtáblaként" ismert rész, itt került meghatározása egy átlagos kamat, ami adott hitelcélnál (piaci kamatozási/szabfel), adott közszférás kedvezmény (van/nincs) és adott futamidő (3/5/10 év) mellett megnézte az összes kamatot (vagyis az összes jövedelemkategóriára érvényes kamatokat, hitel összegtől függetlenül) és ezek átlagát vette. Így, pl. ha az ügyfél piaci lakáshitelt igényelne, nem közszférásat, 5 éves kamatperiódussal, akkor kiszámoltuk, hogy az összes jövedelemkategóriánál lévő kamatoknak (pl. extra 4%, extra ERE 4.5%, 1. kedvezmény 5%...) mennyi a minimuma és a maximuma, és ezek átlagát vettük. Az árazás sheet G oszlopába történik azoknak a konstrukcióknak a kiválogatása, amelyeknek az átlagát kell venni (vagyis azon árak, amelyek a konstrukció hitelcéljával, közszférás kedvezményével és futamidejével megegyeznek) | F134: HTR indulástól repi példa kamatával számolunk az Árazás sheetről
A144: 379836 | B144: A törlesztőrészletek rendszeres jövedelemhez viszonyított arányának várható változása a rendszeres jövedelem, valamint a kamat változásának függvényében. KSH nettó munkabér és annak éve
A147: 2023 | B147: 20.2.2.10. A teljes munkaidőben alkalmazásban állók kedvezmények nélküli nettó átlagkeresete a munkáltató székhelyének elhelyezkedése alapján, vármegye és régió szerint, negyedévente kumulált (ksh.hu)
A149: 0.1072 | B149: Jelen konstrukció kamata (árazásból) | C149: Fogyasztóbarát termék esetében, annak tájékoztatójában (Tájékoztató sheet 249. sor után), II. pont, utolsó gondolatban, hogyan változik a teljes visszafizetendő összeg a kamat 0,1%-os emelkedése esetén
A150: 12230076 | B150: Teljes visszafizetendő összeg jelen konstrukcióval
A151: =A149+0.1% -> 0.1082 | B151: Új kamat, 0,1%-os emelkedés esetében
A152: 12311428 | B152: Teljes visszafizetendő összeg + 0,1%-os emelkedéssel
A153: =A152-A150 -> 81352 | B153: Két összeg különbsége
A155: a) Saját erő megfizetésének igazolása b) A tulajdonjog bejegyzési kérelem benyújtása a földhivatalba, arról széljegy igazolás c) Kölcsönszerződés, zálogszerződés megkötése, közokiratba foglalása. d) A kölcsön fedezetéül szolgáló ingatlanra önálló zálogjog (első zálogjogi ranghelyre), valamint annak biztosítására elidegenítési és terhelési tilalom bejegyzése e) A földhivatali eljárási díjat megfizetése f) A fedezeti ingatlanra vagyonbiztosítási szerződés megkötése, biztosítási díj fizetése g) A kölcsön törlesztése érdekében a Banknál lakossági bankszámla/díjmentes számla h) A fedezeti Ingatlan nem terhelt, végrehajtási joggal, felszámolási eljárással, perfeljegyzéssel A Bank további feltételek írhat elő az Adós személye, illetve a fedezetül felajánlott ingatlan sajátos jellemzői miatt. | B155: Vásárlás (ha a termékválasztóban a hitel célja: "Minősített Fogyasztóbarát termek - vásárlásra") | C155: Minősített Fogyasztóbarát termék tájékoztató, III. A hitelszerződés részét képező, a bankunk által támasztott egyéb feltételek
A156: a) Saját erő felhasználását műszaki szakértő igazolja b) A jogerős építési engedély / bejelentés igazolása. c) Az építkezés befejezésével a Bank által elfogadott műszaki tervek alapján az Ingatlan eléri az aktuális HBÉ értékét. d) Kölcsönszerződés, zálogszerződés megkötése, közokiratba foglalása. e) A kölcsön fedezetéül szolgáló ingatlanra önálló zálogjog (első zálogjogi ranghelyre), valamint annak biztosítására elidegenítési és terhelési tilalom bejegyzése f) A földhivatali eljárási díjat megfizetése g) A fedezeti ingatlanra építési szerelési és vagyonbiztosítási szerződés megkötése, biztosítási díj fizetése h) A kölcsön törlesztése érdekében a Banknál lakossági bankszámla/díjmentes számla i) A fedezeti Ingatlan nem terhelt, végrehajtási joggal, felszámolási eljárással, perfeljegyzéssel j) A részfolyósítások mindig az előirányzott készültségi fok elérése után történnek, illetve értékbecslés alapján. k) Műszaki szakértői igazolás a kölcsön felhasznlásáról, az építkezés megvalósulásával kapcsolatos számlákról | B156: Építés (ha a termékválasztóban a hitel célja: "Minősített Fogyasztóbarát termek - építésre")
A157: A Bank további feltételek írhat elő az Adós személye, illetve a fedezetül felajánlott ingatlan sajátos jellemzői miatt. Az egyes részfolyósítások aránya: • elsõ kölcsönrész: a kölcsönösszeg 40 %-a • második kölcsönrész: a kölcsönösszeg 50 %-a • harmadik kölcsönrész: a kölcsönösszeg 10 %-a, de maximum 1 millió forint. A kölcsönösszeg utolsó 10%-a visszatartásra kerül, folyósítás az alábbi feltételek megléte/teljesülése esetén van mód: - végleges és jogerős használatbavételi engedély - vagyonbiztosítási szerződés, - az épület feltüntetési kérelmem a földhivatalhoz - tulajdoni viszonyok változnása esetén azok rendezése - végleges biztosítéki érték az értékbecslő által megállapításra került. | B157: Vásárlás és építés esetén közös szöveg, ami az előző felsorolást követi
A158: a) A kiváltandó tartozásról szóló hitelintézeti igazolás b) Amennyiben a kölcsön összege kevesebb, mint a kiváltásához szükséges összeg, úgy a saját erőből fizetendő különbözeti összeg elhelyezése a Banknál c) A kiváltandó lakáscélú hitelt nyilvántartó hitelintézetnél az eredeti hitelcél megvalósult d) Kölcsönszerződés, zálogszerződés megkötése, közokiratba foglalása. e) A kölcsön fedezetéül szolgáló ingatlanra önálló zálogjog (első zálogjogi ranghelyre), valamint annak biztosítására elidegenítési és terhelési tilalom bejegyzése f) A földhivatali eljárási díjat megfizetése g) A fedezeti ingatlanra vagyonbiztosítási szerződés megkötése, biztosítási díj fizetése h) A kölcsön törlesztése érdekében a Banknál lakossági bankszámla/díjmentes számla i) A fedezeti Ingatlan nem terhelt, végrehajtási joggal, felszámolási eljárással, perfeljegyzéssel A Bank további feltételek írhat elő az Adós személye, illetve a fedezetül felajánlott ingatlan sajátos jellemzői miatt. | B158: Hitelkiváltás (ha a termékválasztóban ahitel célja: "Minősített Fogyasztóbarát termek - hitelkiváltás")
A161: -0.03 | B161: A Calc sheet-en a "Törlesztőrészlet alakulása kamatváltozás esetén" (jobb oldalt, H28 környéke) a lenyíló menüben mekkora kamatváltozások lehetségesek
A162: -0.02
A163: -0.01
A164: 0
A165: 0.01
A166: 0.02
A167: 0.03
A169: 3 ÉVES kamatperiódus | B169: 48 | C169: =VLOOKUP(cellKamatPeriodus,A169:B171,2,FALSE) -> 120 | D169: A Calc sheet-en a "Futamidő" esetén meg kell nézni, hogy a megadott futamidő nagyobb-e mint az elfogadható legkisebb futamidő, ami kamatperiódusonként változik
A170: 5 ÉVES kamatperiódus | B170: 60
A171: 10 ÉVES kamatperiódus | B171: 120
A173: Rendtart segéd
A174: 0
A175: 6
A176: 12
A177: 18
A178: 24
A180: Az éves bontású törlesztési táblázatban kiemelve, eltérő háttérrel jelenítettük meg az első kamatperiódust. A hitelkamat | B180: Szemléltető törlesztési táblázat
A181: hónapig - ide nem értve, a kedvezményes kamat érdekében vállalt jóváírás nem teljesítéséből eredő kamatmódosítást, mely nem egyoldalú szerződésmódosítás - változatlan, ezt követően az alkalmazott kamatváltoztatási-mutató alapján módosulhat. A havi bontású törlesztési táblázatban eltérő színnel jelöltük meg az első 6 hónapot, amely alatt a kamat - függetlenül a kedvezményes kamat érdekében vállalt feltételek teljesülésétől - változatlan. Az alkalmazott kamat-változtatási mutató H3K. Információk a H3K kamat-változtatási mutatóról a Hirdetményben, valamint az MNB és az Erste Bank Hungary Zrt. vonatkozó oldalán: http://www.mnb.hu/fair-bank/kamatvaltoztatasi-mutato/forinthitel/h3k-3-szamu-kamatvaltoztatasi-mutato-forinthitelek-eseten és http://www.erstebank.hu/hu/maganszemelyek/kamatvaltoztatasi-mutato Tekintettel arra, hogy a kölcsön változó kamatozású, kamatváltozás esetén a törlesztési táblázatok módosulhatnak. A Bank évente egyszer, illetve a kamatperiódus fordulónapján, továbbá előtörlesztés esetén tájékoztatást ad a fogyasztónak a tartozásról törlesztési táblázat formájában díj-, költség- és egyéb fizetésikötelezettség-mentesen."

Sheet Árazás (hidden)
A1: Hitelcél | B1: Hitel típus | C1: Jövedelem kategória | D1: Kamatperiódus | E1: Jövedelem | F1: Minősített Fogyasztóbarát termék - Zöld | G1: Kereső | H1: Spread | I1: Kamat | J1: Átl. kamat | K1: THM
A2: =cellTermekNevePiaciLakashitel -> Piaci kamatozású lakáscélú hitel | B2: nincs közszférás kedvezmény | C2: Extra kedvezmény kategória | D2: 5 ÉVES kamatperiódus | E2: 4.000.000 - 4.999.999 | F2: Minősített Fogyasztóbarát termék | G2: =CONCATENATE(A2,B2,C2,D2,E2,F2) -> Piaci kamatozású lakáscélú hitelnincs közszférás kedvezményExtra kedvezmény kategória5 ÉVES kamatperiódus4.000.000 - 4.999.999Minősített Fogyasztóbarát termék | H2: 0.0993 | I2: 0.0993 | J2: =IF(AND(A2=cellHitelCel, B2=cellKozszferas, D2=cellKamatPeriodus),I2,"") ->  | K2: 0.1055170975 | L2: =+H2-I2 -> 0 | M2: 5 ÉVES kamatperiódus | N2: 0 | O2: ÁKK referenciakamat
A3: Piaci kamatozású lakáscélú hitel | B3: nincs közszférás kedvezmény | C3: Extra ERE kedvezmény kategória | D3: 5 ÉVES kamatperiódus | E3: 4.000.000 - 4.999.999 | F3: Minősített Fogyasztóbarát termék | G3: =CONCATENATE(A3,B3,C3,D3,E3,F3) -> Piaci kamatozású lakáscélú hitelnincs közszférás kedvezményExtra ERE kedvezmény kategória5 ÉVES kamatperiódus4.000.000 - 4.999.999Minősített Fogyasztóbarát termék | H3: 0.0993 | I3: 0.0993 | K3: 0.1055170975 | L3: =+H3-I3 -> 0 | M3: 10 ÉVES kamatperiódus | N3: 0
A4: Piaci kamatozású lakáscélú hitel | B4: nincs közszférás kedvezmény | C4: Prémium kedvezmény kategória | D4: 5 ÉVES kamatperiódus | E4: 4.000.000 - 4.999.999 | F4: Minősített Fogyasztóbarát termék | G4: Piaci kamatozású lakáscélú hitelnincs közszférás kedvezményPrémium kedvezmény kategória5 ÉVES kamatperiódus4.000.000 - 4.999.999Minősített Fogyasztóbarát termék | H4: 0.0993 | I4: 0.0993 | K4: 0.1055170975 | L4: 0
A5: Piaci kamatozású lakáscélú hitel | B5: nincs közszférás kedvezmény | C5: 1. kedvezmény kategória | D5: 5 ÉVES kamatperiódus | E5: 4.000.000 - 4.999.999 | F5: Minősített Fogyasztóbarát termék | G5: Piaci kamatozású lakáscélú hitelnincs közszférás kedvezmény1. kedvezmény kategória5 ÉVES kamatperiódus4.000.000 - 4.999.999Minősített Fogyasztóbarát termék | H5: 0.0993 | I5: 0.0993 | K5: 0.1055170975 | L5: 0 | M5: Hitelösszeg kategória: | N5: =IF(cellHitelOsszeg>=30000000,"30.000.000 -",IF(cellHitelOsszeg>=20000000,"20.000.000 - 29.999.999",IF(cellHitelOsszeg>=10000000,"10.000.000 - 19.999.999",IF(cellHitelOsszeg>=5000000,"5.000.000 - 9.999.999","4.000.000 - 4.999.999")))) -> 10.000.000 - 19.999.999 | O5: A Calc sheet-en megadott hitelösszegből kategóriát kell csinálni, mivel az árazás két kategóriát (5M Ft határral) értelmez
A6: Piaci kamatozású lakáscélú hitel | B6: nincs közszférás kedvezmény | C6: 2. kedvezmény kategória | D6: 5 ÉVES kamatperiódus | E6: 4.000.000 - 4.999.999 | F6: Minősített Fogyasztóbarát termék | G6: Piaci kamatozású lakáscélú hitelnincs közszférás kedvezmény2. kedvezmény kategória5 ÉVES kamatperiódus4.000.000 - 4.999.999Minősített Fogyasztóbarát termék | H6: 0.0993 | I6: 0.0993 | K6: 0.1055170975 | L6: 0 | M6: Keresendő kifejezés | N6: =cellHitelCel & cellKozszferas & cellJovedelemKategoria & cellKamatPeriodus & cellHitelOsszegKategoria & cellMFB -> Piaci kamatozású lakáscélú hitelnincs közszférás kedvezmény2. kedvezmény kategória10 ÉVES kamatperiódus10.000.000 - 19.999.999Minősített Fogyasztóbarát termék | O6: A konkrét termék a termékválasztó form-ról származik, ami a Segéd sheet B7-B11 celláiba íródik a VB-ből, azokat concatenate-eljük
A7: Piaci kamatozású lakáscélú hitel | B7: nincs közszférás kedvezmény | C7: 3. kedvezmény kategória | D7: 5 ÉVES kamatperiódus | E7: 4.000.000 - 4.999.999 | F7: Minősített Fogyasztóbarát termék | G7: Piaci kamatozású lakáscélú hitelnincs közszférás kedvezmény3. kedvezmény kategória5 ÉVES kamatperiódus4.000.000 - 4.999.999Minősített Fogyasztóbarát termék | H7: 0.0993 | I7: 0.0993 | K7: 0.1055170975 | L7: 0 | M7: Spread | N7: =VLOOKUP($N$6,tblArazas,2,FALSE) -> 0.0674 | O7: A Calc sheet-en a W36-ban valamiért használjuk a kamatfelárat
A8: Piaci kamatozású lakáscélú hitel | B8: nincs közszférás kedvezmény | C8: Standard, kedvezmény nélkül | D8: 5 ÉVES kamatperiódus | E8: 4.000.000 - 4.999.999 | F8: Minősített Fogyasztóbarát termék | G8: Piaci kamatozású lakáscélú hitelnincs közszférás kedvezményStandard, kedvezmény nélkül5 ÉVES kamatperiódus4.000.000 - 4.999.999Minősített Fogyasztóbarát termék | H8: 0.0993 | I8: 0.0993 | K8: 0.1055170975 | L8: 0 | M8: Kamat: | N8: =VLOOKUP(N6,tblArazas,3,FALSE) -> 0.0674 | O8: A kamat a paraméterehező táblázatból származik, fontos, hogy az árazásban lévő elnevezések egyezzenek a form által visszaadott elnevezésekkel
A9: Piaci kamatozású lakáscélú hitel | B9: nincs közszférás kedvezmény | C9: Extra kedvezmény kategória | D9: 5 ÉVES kamatperiódus | E9: 5.000.000 - 9.999.999 | F9: Minősített Fogyasztóbarát termék | G9: Piaci kamatozású lakáscélú hitelnincs közszférás kedvezményExtra kedvezmény kategória5 ÉVES kamatperiódus5.000.000 - 9.999.999Minősített Fogyasztóbarát termék | H9: 0.0993 | I9: 0.0993 | K9: 0.1055170784 | L9: 0
A10: =cellTermekNevePiaciLakashitel -> Piaci kamatozású lakáscélú hitel | B10: nincs közszférás kedvezmény | C10: Extra ERE kedvezmény kategória | D10: 5 ÉVES kamatperiódus | E10: 5.000.000 - 9.999.999 | F10: Minősített Fogyasztóbarát termék | G10: Piaci kamatozású lakáscélú hitelnincs közszférás kedvezményExtra ERE kedvezmény kategória5 ÉVES kamatperiódus5.000.000 - 9.999.999Minősített Fogyasztóbarát termék | H10: 0.0993 | I10: 0.0993 | K10: 0.1055170784 | L10: 0 | O10: A gomb megnyomásával a THM oszlopba (J) kiszámolódik az adatt kamatnak (ÁKK referenciakamat + spread) megfelelő THM úgy, hogy végigmegy az Árazás sheet konstrukcióin, mindenhonnan kiveszik a kamatot, beírja a Calc sheet kamat mezőjébe (cellKalkulaltKamat), kiolvassa az excel által számított THM-et (Calc sheet cellTHM mező) és beteszi a J oszlopba. Az iteráció a sorok számáig végigfut.
A11: Piaci kamatozású lakáscélú hitel | B11: nincs közszférás kedvezmény | C11: Prémium kedvezmény kategória | D11: 5 ÉVES kamatperiódus | E11: 5.000.000 - 9.999.999 | F11: Minősített Fogyasztóbarát termék | G11: Piaci kamatozású lakáscélú hitelnincs közszférás kedvezményPrémium kedvezmény kategória5 ÉVES kamatperiódus5.000.000 - 9.999.999Minősített Fogyasztóbarát termék | H11: 0.0993 | I11: 0.0993 | K11: 0.1055170784 | L11: 0
A12: Piaci kamatozású lakáscélú hitel | B12: nincs közszférás kedvezmény | C12: 1. kedvezmény kategória | D12: 5 ÉVES kamatperiódus | E12: 5.000.000 - 9.999.999 | F12: Minősített Fogyasztóbarát termék | G12: Piaci kamatozású lakáscélú hitelnincs közszférás kedvezmény1. kedvezmény kategória5 ÉVES kamatperiódus5.000.000 - 9.999.999Minősített Fogyasztóbarát termék | H12: 0.0993 | I12: 0.0993 | K12: 0.1055170784 | L12: 0
A13: Piaci kamatozású lakáscélú hitel | B13: nincs közszférás kedvezmény | C13: 2. kedvezmény kategória | D13: 5 ÉVES kamatperiódus | E13: 5.000.000 - 9.999.999 | F13: Minősített Fogyasztóbarát termék | G13: Piaci kamatozású lakáscélú hitelnincs közszférás kedvezmény2. kedvezmény kategória5 ÉVES kamatperiódus5.000.000 - 9.999.999Minősített Fogyasztóbarát termék | H13: 0.0993 | I13: 0.0993 | K13: 0.1055170784 | L13: 0
A14: Piaci kamatozású lakáscélú hitel | B14: nincs közszférás kedvezmény | C14: 3. kedvezmény kategória | D14: 5 ÉVES kamatperiódus | E14: 5.000.000 - 9.999.999 | F14: Minősített Fogyasztóbarát termék | G14: Piaci kamatozású lakáscélú hitelnincs közszférás kedvezmény3. kedvezmény kategória5 ÉVES kamatperiódus5.000.000 - 9.999.999Minősített Fogyasztóbarát termék | H14: 0.0993 | I14: 0.0993 | K14: 0.1055170784 | L14: 0
A15: Piaci kamatozású lakáscélú hitel | B15: nincs közszférás kedvezmény | C15: Standard, kedvezmény nélkül | D15: 5 ÉVES kamatperiódus | E15: 5.000.000 - 9.999.999 | F15: Minősített Fogyasztóbarát termék | G15: Piaci kamatozású lakáscélú hitelnincs közszférás kedvezményStandard, kedvezmény nélkül5 ÉVES kamatperiódus5.000.000 - 9.999.999Minősített Fogyasztóbarát termék | H15: 0.0993 | I15: 0.0993 | K15: 0.1055170784 | L15: 0
A16: Piaci kamatozású lakáscélú hitel | B16: nincs közszférás kedvezmény | C16: Extra kedvezmény kategória | D16: 5 ÉVES kamatperiódus | E16: 10.000.000 - 19.999.999 | F16: Minősített Fogyasztóbarát termék | G16: Piaci kamatozású lakáscélú hitelnincs közszférás kedvezményExtra kedvezmény kategória5 ÉVES kamatperiódus10.000.000 - 19.999.999Minősített Fogyasztóbarát termék | H16: 0.0993 | I16: 0.0993 | K16: 0.1048506729 | L16: 0
A17: Piaci kamatozású lakáscélú hitel | B17: nincs közszférás kedvezmény | C17: Extra ERE kedvezmény kategória | D17: 5 ÉVES kamatperiódus | E17: 10.000.000 - 19.999.999 | F17: Minősített Fogyasztóbarát termék | G17: Piaci kamatozású lakáscélú hitelnincs közszférás kedvezményExtra ERE kedvezmény kategória5 ÉVES kamatperiódus10.000.000 - 19.999.999Minősített Fogyasztóbarát termék | H17: 0.0993 | I17: 0.0993 | K17: 0.1048506729 | L17: 0
A18: Piaci kamatozású lakáscélú hitel | B18: nincs közszférás kedvezmény | C18: Prémium kedvezmény kategória | D18: 5 ÉVES kamatperiódus | E18: 10.000.000 - 19.999.999 | F18: Minősített Fogyasztóbarát termék | G18: Piaci kamatozású lakáscélú hitelnincs közszférás kedvezményPrémium kedvezmény kategória5 ÉVES kamatperiódus10.000.000 - 19.999.999Minősített Fogyasztóbarát termék | H18: 0.0993 | I18: 0.0993 | K18: 0.1048506729 | L18: 0
A19: Piaci kamatozású lakáscélú hitel | B19: nincs közszférás kedvezmény | C19: 1. kedvezmény kategória | D19: 5 ÉVES kamatperiódus | E19: 10.000.000 - 19.999.999 | F19: Minősített Fogyasztóbarát termék | G19: Piaci kamatozású lakáscélú hitelnincs közszférás kedvezmény1. kedvezmény kategória5 ÉVES kamatperiódus10.000.000 - 19.999.999Minősített Fogyasztóbarát termék | H19: 0.0993 | I19: 0.0993 | K19: 0.1048506729 | L19: 0
A20: Piaci kamatozású lakáscélú hitel | B20: nincs közszférás kedvezmény | C20: 2. kedvezmény kategória | D20: 5 ÉVES kamatperiódus | E20: 10.000.000 - 19.999.999 | F20: Minősített Fogyasztóbarát termék | G20: Piaci kamatozású lakáscélú hitelnincs közszférás kedvezmény2. kedvezmény kategória5 ÉVES kamatperiódus10.000.000 - 19.999.999Minősített Fogyasztóbarát termék | H20: 0.0993 | I20: 0.0993 | K20: 0.1048506729 | L20: 0
A21: Piaci kamatozású lakáscélú hitel | B21: nincs közszférás kedvezmény | C21: 3. kedvezmény kategória | D21: 5 ÉVES kamatperiódus | E21: 10.000.000 - 19.999.999 | F21: Minősített Fogyasztóbarát termék | G21: Piaci kamatozású lakáscélú hitelnincs közszférás kedvezmény3. kedvezmény kategória5 ÉVES kamatperiódus10.000.000 - 19.999.999Minősített Fogyasztóbarát termék | H21: 0.0993 | I21: 0.0993 | K21: 0.1048506729 | L21: 0
A22: Piaci kamatozású lakáscélú hitel | B22: nincs közszférás kedvezmény | C22: Standard, kedvezmény nélkül | D22: 5 ÉVES kamatperiódus | E22: 10.000.000 - 19.999.999 | F22: Minősített Fogyasztóbarát termék | G22: Piaci kamatozású lakáscélú hitelnincs közszférás kedvezményStandard, kedvezmény nélkül5 ÉVES kamatperiódus10.000.000 - 19.999.999Minősített Fogyasztóbarát termék | H22: 0.0993 | I22: 0.0993 | K22: 0.1048506729 | L22: 0
A23: Piaci kamatozású lakáscélú hitel | B23: nincs közszférás kedvezmény | C23: Extra kedvezmény kategória | D23: 5 ÉVES kamatperiódus | E23: 20.000.000 - 29.999.999 | F23: Minősített Fogyasztóbarát termék | G23: Piaci kamatozású lakáscélú hitelnincs közszférás kedvezményExtra kedvezmény kategória5 ÉVES kamatperiódus20.000.000 - 29.999.999Minősített Fogyasztóbarát termék | H23: 0.0979 | I23: 0.0979 | K23: 0.1033170194 | L23: 0
A24: Piaci kamatozású lakáscélú hitel | B24: nincs közszférás kedvezmény | C24: Extra ERE kedvezmény kategória | D24: 5 ÉVES kamatperiódus | E24: 20.000.000 - 29.999.999 | F24: Minősített Fogyasztóbarát termék | G24: Piaci kamatozású lakáscélú hitelnincs közszférás kedvezményExtra ERE kedvezmény kategória5 ÉVES kamatperiódus20.000.000 - 29.999.999Minősített Fogyasztóbarát termék | H24: 0.0979 | I24: 0.0979 | K24: 0.1033170194 | L24: 0
A25: Piaci kamatozású lakáscélú hitel | B25: nincs közszférás kedvezmény | C25: Prémium kedvezmény kategória | D25: 5 ÉVES kamatperiódus | E25: 20.000.000 - 29.999.999 | F25: Minősített Fogyasztóbarát termék | G25: Piaci kamatozású lakáscélú hitelnincs közszférás kedvezményPrémium kedvezmény kategória5 ÉVES kamatperiódus20.000.000 - 29.999.999Minősített Fogyasztóbarát termék | H25: 0.0979 | I25: 0.0979 | K25: 0.1033170194 | L25: 0
A26: Piaci kamatozású lakáscélú hitel | B26: nincs közszférás kedvezmény | C26: 1. kedvezmény kategória | D26: 5 ÉVES kamatperiódus | E26: 20.000.000 - 29.999.999 | F26: Minősített Fogyasztóbarát termék | G26: Piaci kamatozású lakáscélú hitelnincs közszférás kedvezmény1. kedvezmény kategória5 ÉVES kamatperiódus20.000.000 - 29.999.999Minősített Fogyasztóbarát termék | H26: 0.0993 | I26: 0.0993 | K26: 0.1048506729 | L26: 0
A27: Piaci kamatozású lakáscélú hitel | B27: nincs közszférás kedvezmény | C27: 2. kedvezmény kategória | D27: 5 ÉVES kamatperiódus | E27: 20.000.000 - 29.999.999 | F27: Minősített Fogyasztóbarát termék | G27: Piaci kamatozású lakáscélú hitelnincs közszférás kedvezmény2. kedvezmény kategória5 ÉVES kamatperiódus20.000.000 - 29.999.999Minősített Fogyasztóbarát termék | H27: 0.0993 | I27: 0.0993 | K27: 0.1048506729 | L27: 0
A28: Piaci kamatozású lakáscélú hitel | B28: nincs közszférás kedvezmény | C28: 3. kedvezmény kategória | D28: 5 ÉVES kamatperiódus | E28: 20.000.000 - 29.999.999 | F28: Minősített Fogyasztóbarát termék | G28: Piaci kamatozású lakáscélú hitelnincs közszférás kedvezmény3. kedvezmény kategória5 ÉVES kamatperiódus20.000.000 - 29.999.999Minősített Fogyasztóbarát termék | H28: 0.0993 | I28: 0.0993 | K28: 0.1048506729 | L28: 0
A29: Piaci kamatozású lakáscélú hitel | B29: nincs közszférás kedvezmény | C29: Standard, kedvezmény nélkül | D29: 5 ÉVES kamatperiódus | E29: 20.000.000 - 29.999.999 | F29: Minősített Fogyasztóbarát termék | G29: Piaci kamatozású lakáscélú hitelnincs közszférás kedvezményStandard, kedvezmény nélkül5 ÉVES kamatperiódus20.000.000 - 29.999.999Minősített Fogyasztóbarát termék | H29: 0.0993 | I29: 0.0993 | K29: 0.1048506729 | L29: 0
A30: Piaci kamatozású lakáscélú hitel | B30: nincs közszférás kedvezmény | C30: Extra kedvezmény kategória | D30: 5 ÉVES kamatperiódus | E30: 30.000.000 - | F30: Minősített Fogyasztóbarát termék | G30: Piaci kamatozású lakáscélú hitelnincs közszférás kedvezményExtra kedvezmény kategória5 ÉVES kamatperiódus30.000.000 -Minősített Fogyasztóbarát termék | H30: 0.0969 | I30: 0.0969 | K30: 0.1022228564 | L30: 0
A31: Piaci kamatozású lakáscélú hitel | B31: nincs közszférás kedvezmény | C31: Extra ERE kedvezmény kategória | D31: 5 ÉVES kamatperiódus | E31: 30.000.000 - | F31: Minősített Fogyasztóbarát termék | G31: Piaci kamatozású lakáscélú hitelnincs közszférás kedvezményExtra ERE kedvezmény kategória5 ÉVES kamatperiódus30.000.000 -Minősített Fogyasztóbarát termék | H31: 0.0969 | I31: 0.0969 | K31: 0.1022228564 | L31: 0
A32: Piaci kamatozású lakáscélú hitel | B32: nincs közszférás kedvezmény | C32: Prémium kedvezmény kategória | D32: 5 ÉVES kamatperiódus | E32: 30.000.000 - | F32: Minősített Fogyasztóbarát termék | G32: Piaci kamatozású lakáscélú hitelnincs közszférás kedvezményPrémium kedvezmény kategória5 ÉVES kamatperiódus30.000.000 -Minősített Fogyasztóbarát termék | H32: 0.0969 | I32: 0.0969 | K32: 0.1022228564 | L32: 0
A33: Piaci kamatozású lakáscélú hitel | B33: nincs közszférás kedvezmény | C33: 1. kedvezmény kategória | D33: 5 ÉVES kamatperiódus | E33: 30.000.000 - | F33: Minősített Fogyasztóbarát termék | G33: Piaci kamatozású lakáscélú hitelnincs közszférás kedvezmény1. kedvezmény kategória5 ÉVES kamatperiódus30.000.000 -Minősített Fogyasztóbarát termék | H33: 0.0989 | I33: 0.0989 | K33: 0.104412343 | L33: 0
A34: Piaci kamatozású lakáscélú hitel | B34: nincs közszférás kedvezmény | C34: 2. kedvezmény kategória | D34: 5 ÉVES kamatperiódus | E34: 30.000.000 - | F34: Minősített Fogyasztóbarát termék | G34: Piaci kamatozású lakáscélú hitelnincs közszférás kedvezmény2. kedvezmény kategória5 ÉVES kamatperiódus30.000.000 -Minősített Fogyasztóbarát termék | H34: 0.0989 | I34: 0.0989 | K34: 0.104412343 | L34: 0
A35: Piaci kamatozású lakáscélú hitel | B35: nincs közszférás kedvezmény | C35: 3. kedvezmény kategória | D35: 5 ÉVES kamatperiódus | E35: 30.000.000 - | F35: Minősített Fogyasztóbarát termék | G35: Piaci kamatozású lakáscélú hitelnincs közszférás kedvezmény3. kedvezmény kategória5 ÉVES kamatperiódus30.000.000 -Minősített Fogyasztóbarát termék | H35: 0.0993 | I35: 0.0993 | K35: 0.1048506729 | L35: 0
A36: Piaci kamatozású lakáscélú hitel | B36: nincs közszférás kedvezmény | C36: Standard, kedvezmény nélkül | D36: 5 ÉVES kamatperiódus | E36: 30.000.000 - | F36: Minősített Fogyasztóbarát termék | G36: Piaci kamatozású lakáscélú hitelnincs közszférás kedvezményStandard, kedvezmény nélkül5 ÉVES kamatperiódus30.000.000 -Minősített Fogyasztóbarát termék | H36: 0.0993 | I36: 0.0993 | K36: 0.1048506729 | L36: 0
A37: =cellTermekNevePiaciLakashitel -> Piaci kamatozású lakáscélú hitel | B37: közszférás kedvezmény | C37: Extra kedvezmény kategória | D37: 5 ÉVES kamatperiódus | E37: 4.000.000 - 4.999.999 | F37: Minősített Fogyasztóbarát termék | G37: Piaci kamatozású lakáscélú hitelközszférás kedvezményExtra kedvezmény kategória5 ÉVES kamatperiódus4.000.000 - 4.999.999Minősített Fogyasztóbarát termék | H37: 0.0993 | I37: 0.0993 | K37: 0.1055170975 | L37: =+H37-I37 -> 0
A38: Piaci kamatozású lakáscélú hitel | B38: közszférás kedvezmény | C38: 1. kedvezmény kategória | D38: 5 ÉVES kamatperiódus | E38: 4.000.000 - 4.999.999 | F38: Minősített Fogyasztóbarát termék | G38: Piaci kamatozású lakáscélú hitelközszférás kedvezmény1. kedvezmény kategória5 ÉVES kamatperiódus4.000.000 - 4.999.999Minősített Fogyasztóbarát termék | H38: 0.0993 | I38: 0.0993 | K38: 0.1055170975 | L38: 0
A39: Piaci kamatozású lakáscélú hitel | B39: közszférás kedvezmény | C39: 2. kedvezmény kategória | D39: 5 ÉVES kamatperiódus | E39: 4.000.000 - 4.999.999 | F39: Minősített Fogyasztóbarát termék | G39: Piaci kamatozású lakáscélú hitelközszférás kedvezmény2. kedvezmény kategória5 ÉVES kamatperiódus4.000.000 - 4.999.999Minősített Fogyasztóbarát termék | H39: 0.0993 | I39: 0.0993 | K39: 0.1055170975 | L39: 0
A40: Piaci kamatozású lakáscélú hitel | B40: közszférás kedvezmény | C40: 3. kedvezmény kategória | D40: 5 ÉVES kamatperiódus | E40: 4.000.000 - 4.999.999 | F40: Minősített Fogyasztóbarát termék | G40: Piaci kamatozású lakáscélú hitelközszférás kedvezmény3. kedvezmény kategória5 ÉVES kamatperiódus4.000.000 - 4.999.999Minősített Fogyasztóbarát termék | H40: 0.0993 | I40: 0.0993 | K40: 0.1055170975 | L40: 0
A41: Piaci kamatozású lakáscélú hitel | B41: közszférás kedvezmény | C41: Standard, kedvezmény nélkül | D41: 5 ÉVES kamatperiódus | E41: 4.000.000 - 4.999.999 | F41: Minősített Fogyasztóbarát termék | G41: Piaci kamatozású lakáscélú hitelközszférás kedvezményStandard, kedvezmény nélkül5 ÉVES kamatperiódus4.000.000 - 4.999.999Minősített Fogyasztóbarát termék | H41: 0.0993 | I41: 0.0993 | K41: 0.1055170975 | L41: 0
A42: Piaci kamatozású lakáscélú hitel | B42: közszférás kedvezmény | C42: Extra kedvezmény kategória | D42: 5 ÉVES kamatperiódus | E42: 5.000.000 - 9.999.999 | F42: Minősített Fogyasztóbarát termék | G42: Piaci kamatozású lakáscélú hitelközszférás kedvezményExtra kedvezmény kategória5 ÉVES kamatperiódus5.000.000 - 9.999.999Minősített Fogyasztóbarát termék | H42: 0.0993 | I42: 0.0993 | K42: 0.1055170784 | L42: 0
A43: Piaci kamatozású lakáscélú hitel | B43: közszférás kedvezmény | C43: 1. kedvezmény kategória | D43: 5 ÉVES kamatperiódus | E43: 5.000.000 - 9.999.999 | F43: Minősített Fogyasztóbarát termék | G43: Piaci kamatozású lakáscélú hitelközszférás kedvezmény1. kedvezmény kategória5 ÉVES kamatperiódus5.000.000 - 9.999.999Minősített Fogyasztóbarát termék | H43: 0.0993 | I43: 0.0993 | K43: 0.1055170784 | L43: 0
A44: Piaci kamatozású lakáscélú hitel | B44: közszférás kedvezmény | C44: 2. kedvezmény kategória | D44: 5 ÉVES kamatperiódus | E44: 5.000.000 - 9.999.999 | F44: Minősített Fogyasztóbarát termék | G44: Piaci kamatozású lakáscélú hitelközszférás kedvezmény2. kedvezmény kategória5 ÉVES kamatperiódus5.000.000 - 9.999.999Minősített Fogyasztóbarát termék | H44: 0.0993 | I44: 0.0993 | K44: 0.1055170784 | L44: 0
A45: Piaci kamatozású lakáscélú hitel | B45: közszférás kedvezmény | C45: 3. kedvezmény kategória | D45: 5 ÉVES kamatperiódus | E45: 5.000.000 - 9.999.999 | F45: Minősített Fogyasztóbarát termék | G45: Piaci kamatozású lakáscélú hitelközszférás kedvezmény3. kedvezmény kategória5 ÉVES kamatperiódus5.000.000 - 9.999.999Minősített Fogyasztóbarát termék | H45: 0.0993 | I45: 0.0993 | K45: 0.1055170784 | L45: 0
A46: Piaci kamatozású lakáscélú hitel | B46: közszférás kedvezmény | C46: Standard, kedvezmény nélkül | D46: 5 ÉVES kamatperiódus | E46: 5.000.000 - 9.999.999 | F46: Minősített Fogyasztóbarát termék | G46: Piaci kamatozású lakáscélú hitelközszférás kedvezményStandard, kedvezmény nélkül5 ÉVES kamatperiódus5.000.000 - 9.999.999Minősített Fogyasztóbarát termék | H46: 0.0993 | I46: 0.0993 | K46: 0.1055170784 | L46: 0
A47: Piaci kamatozású lakáscélú hitel | B47: közszférás kedvezmény | C47: Extra kedvezmény kategória | D47: 5 ÉVES kamatperiódus | E47: 10.000.000 - 19.999.999 | F47: Minősített Fogyasztóbarát termék | G47: Piaci kamatozású lakáscélú hitelközszférás kedvezményExtra kedvezmény kategória5 ÉVES kamatperiódus10.000.000 - 19.999.999Minősített Fogyasztóbarát termék | H47: 0.0993 | I47: 0.0993 | K47: 0.1048506729 | L47: 0
A48: Piaci kamatozású lakáscélú hitel | B48: közszférás kedvezmény | C48: 1. kedvezmény kategória | D48: 5 ÉVES kamatperiódus | E48: 10.000.000 - 19.999.999 | F48: Minősített Fogyasztóbarát termék | G48: Piaci kamatozású lakáscélú hitelközszférás kedvezmény1. kedvezmény kategória5 ÉVES kamatperiódus10.000.000 - 19.999.999Minősített Fogyasztóbarát termék | H48: 0.0993 | I48: 0.0993 | K48: 0.1048506729 | L48: 0
A49: Piaci kamatozású lakáscélú hitel | B49: közszférás kedvezmény | C49: 2. kedvezmény kategória | D49: 5 ÉVES kamatperiódus | E49: 10.000.000 - 19.999.999 | F49: Minősített Fogyasztóbarát termék | G49: Piaci kamatozású lakáscélú hitelközszférás kedvezmény2. kedvezmény kategória5 ÉVES kamatperiódus10.000.000 - 19.999.999Minősített Fogyasztóbarát termék | H49: 0.0993 | I49: 0.0993 | K49: 0.1048506729 | L49: 0
A50: Piaci kamatozású lakáscélú hitel | B50: közszférás kedvezmény | C50: 3. kedvezmény kategória | D50: 5 ÉVES kamatperiódus | E50: 10.000.000 - 19.999.999 | F50: Minősített Fogyasztóbarát termék | G50: Piaci kamatozású lakáscélú hitelközszférás kedvezmény3. kedvezmény kategória5 ÉVES kamatperiódus10.000.000 - 19.999.999Minősített Fogyasztóbarát termék | H50: 0.0993 | I50: 0.0993 | K50: 0.1048506729 | L50: 0
A51: Piaci kamatozású lakáscélú hitel | B51: közszférás kedvezmény | C51: Standard, kedvezmény nélkül | D51: 5 ÉVES kamatperiódus | E51: 10.000.000 - 19.999.999 | F51: Minősített Fogyasztóbarát termék | G51: Piaci kamatozású lakáscélú hitelközszférás kedvezményStandard, kedvezmény nélkül5 ÉVES kamatperiódus10.000.000 - 19.999.999Minősített Fogyasztóbarát termék | H51: 0.0993 | I51: 0.0993 | K51: 0.1048506729 | L51: 0
A52: Piaci kamatozású lakáscélú hitel | B52: közszférás kedvezmény | C52: Extra kedvezmény kategória | D52: 5 ÉVES kamatperiódus | E52: 20.000.000 - 29.999.999 | F52: Minősített Fogyasztóbarát termék | G52: Piaci kamatozású lakáscélú hitelközszférás kedvezményExtra kedvezmény kategória5 ÉVES kamatperiódus20.000.000 - 29.999.999Minősített Fogyasztóbarát termék | H52: 0.0979 | I52: 0.0979 | K52: 0.1033170194 | L52: 0
A53: Piaci kamatozású lakáscélú hitel | B53: közszférás kedvezmény | C53: 1. kedvezmény kategória | D53: 5 ÉVES kamatperiódus | E53: 20.000.000 - 29.999.999 | F53: Minősített Fogyasztóbarát termék | G53: Piaci kamatozású lakáscélú hitelközszférás kedvezmény1. kedvezmény kategória5 ÉVES kamatperiódus20.000.000 - 29.999.999Minősített Fogyasztóbarát termék | H53: 0.0984 | I53: 0.0984 | K53: 0.1038645965 | L53: 0
A54: Piaci kamatozású lakáscélú hitel | B54: közszférás kedvezmény | C54: 2. kedvezmény kategória | D54: 5 ÉVES kamatperiódus | E54: 20.000.000 - 29.999.999 | F54: Minősített Fogyasztóbarát termék | G54: Piaci kamatozású lakáscélú hitelközszférás kedvezmény2. kedvezmény kategória5 ÉVES kamatperiódus20.000.000 - 29.999.999Minősített Fogyasztóbarát termék | H54: 0.0984 | I54: 0.0984 | K54: 0.1038645965 | L54: 0
A55: Piaci kamatozású lakáscélú hitel | B55: közszférás kedvezmény | C55: 3. kedvezmény kategória | D55: 5 ÉVES kamatperiódus | E55: 20.000.000 - 29.999.999 | F55: Minősített Fogyasztóbarát termék | G55: Piaci kamatozású lakáscélú hitelközszférás kedvezmény3. kedvezmény kategória5 ÉVES kamatperiódus20.000.000 - 29.999.999Minősített Fogyasztóbarát termék | H55: 0.0993 | I55: 0.0993 | K55: 0.1048506729 | L55: 0
A56: Piaci kamatozású lakáscélú hitel | B56: közszférás kedvezmény | C56: Standard, kedvezmény nélkül | D56: 5 ÉVES kamatperiódus | E56: 20.000.000 - 29.999.999 | F56: Minősített Fogyasztóbarát termék | G56: Piaci kamatozású lakáscélú hitelközszférás kedvezményStandard, kedvezmény nélkül5 ÉVES kamatperiódus20.000.000 - 29.999.999Minősített Fogyasztóbarát termék | H56: 0.0993 | I56: 0.0993 | K56: 0.1048506729 | L56: 0
A57: Piaci kamatozású lakáscélú hitel | B57: közszférás kedvezmény | C57: Extra kedvezmény kategória | D57: 5 ÉVES kamatperiódus | E57: 30.000.000 - | F57: Minősített Fogyasztóbarát termék | G57: Piaci kamatozású lakáscélú hitelközszférás kedvezményExtra kedvezmény kategória5 ÉVES kamatperiódus30.000.000 -Minősített Fogyasztóbarát termék | H57: 0.0969 | I57: 0.0969 | K57: 0.1022228564 | L57: 0
A58: Piaci kamatozású lakáscélú hitel | B58: közszférás kedvezmény | C58: 1. kedvezmény kategória | D58: 5 ÉVES kamatperiódus | E58: 30.000.000 - | F58: Minősített Fogyasztóbarát termék | G58: Piaci kamatozású lakáscélú hitelközszférás kedvezmény1. kedvezmény kategória5 ÉVES kamatperiódus30.000.000 -Minősített Fogyasztóbarát termék | H58: 0.0984 | I58: 0.0984 | K58: 0.1038645965 | L58: 0
A59: Piaci kamatozású lakáscélú hitel | B59: közszférás kedvezmény | C59: 2. kedvezmény kategória | D59: 5 ÉVES kamatperiódus | E59: 30.000.000 - | F59: Minősített Fogyasztóbarát termék | G59: Piaci kamatozású lakáscélú hitelközszférás kedvezmény2. kedvezmény kategória5 ÉVES kamatperiódus30.000.000 -Minősített Fogyasztóbarát termék | H59: 0.0984 | I59: 0.0984 | K59: 0.1038645965 | L59: 0
A60: Piaci kamatozású lakáscélú hitel | B60: közszférás kedvezmény | C60: 3. kedvezmény kategória | D60: 5 ÉVES kamatperiódus | E60: 30.000.000 - | F60: Minősített Fogyasztóbarát termék | G60: Piaci kamatozású lakáscélú hitelközszférás kedvezmény3. kedvezmény kategória5 ÉVES kamatperiódus30.000.000 -Minősített Fogyasztóbarát termék | H60: 0.0993 | I60: 0.0993 | K60: 0.1048506729 | L60: 0
A61: Piaci kamatozású lakáscélú hitel | B61: közszférás kedvezmény | C61: Standard, kedvezmény nélkül | D61: 5 ÉVES kamatperiódus | E61: 30.000.000 - | F61: Minősített Fogyasztóbarát termék | G61: Piaci kamatozású lakáscélú hitelközszférás kedvezményStandard, kedvezmény nélkül5 ÉVES kamatperiódus30.000.000 -Minősített Fogyasztóbarát termék | H61: 0.0993 | I61: 0.0993 | K61: 0.1048506729 | L61: 0
A62: =cellTermekNevePiaciLakashitel -> Piaci kamatozású lakáscélú hitel | B62: nincs közszférás kedvezmény | C62: Extra kedvezmény kategória | D62: 10 ÉVES kamatperiódus | E62: 4.000.000 - 4.999.999 | F62: Minősített Fogyasztóbarát termék | G62: Piaci kamatozású lakáscélú hitelnincs közszférás kedvezményExtra kedvezmény kategória10 ÉVES kamatperiódus4.000.000 - 4.999.999Minősített Fogyasztóbarát termék | H62: 0.0689 | I62: 0.0689 | J62: 0.0689 | K62: 0.0726691719 | L62: 0
A63: Piaci kamatozású lakáscélú hitel | B63: nincs közszférás kedvezmény | C63: Extra ERE kedvezmény kategória | D63: 10 ÉVES kamatperiódus | E63: 4.000.000 - 4.999.999 | F63: Minősített Fogyasztóbarát termék | G63: Piaci kamatozású lakáscélú hitelnincs közszférás kedvezményExtra ERE kedvezmény kategória10 ÉVES kamatperiódus4.000.000 - 4.999.999Minősített Fogyasztóbarát termék | H63: 0.0689 | I63: 0.0689 | J63: 0.0689 | K63: 0.0726691719 | L63: 0
A64: Piaci kamatozású lakáscélú hitel | B64: nincs közszférás kedvezmény | C64: Prémium kedvezmény kategória | D64: 10 ÉVES kamatperiódus | E64: 4.000.000 - 4.999.999 | F64: Minősített Fogyasztóbarát termék | G64: Piaci kamatozású lakáscélú hitelnincs közszférás kedvezményPrémium kedvezmény kategória10 ÉVES kamatperiódus4.000.000 - 4.999.999Minősített Fogyasztóbarát termék | H64: 0.0689 | I64: 0.0689 | J64: 0.0689 | K64: 0.0726691719 | L64: 0
A65: Piaci kamatozású lakáscélú hitel | B65: nincs közszférás kedvezmény | C65: 1. kedvezmény kategória | D65: 10 ÉVES kamatperiódus | E65: 4.000.000 - 4.999.999 | F65: Minősített Fogyasztóbarát termék | G65: Piaci kamatozású lakáscélú hitelnincs közszférás kedvezmény1. kedvezmény kategória10 ÉVES kamatperiódus4.000.000 - 4.999.999Minősített Fogyasztóbarát termék | H65: 0.0689 | I65: 0.0689 | J65: 0.0689 | K65: 0.0726691719 | L65: 0
A66: Piaci kamatozású lakáscélú hitel | B66: nincs közszférás kedvezmény | C66: 2. kedvezmény kategória | D66: 10 ÉVES kamatperiódus | E66: 4.000.000 - 4.999.999 | F66: Minősített Fogyasztóbarát termék | G66: Piaci kamatozású lakáscélú hitelnincs közszférás kedvezmény2. kedvezmény kategória10 ÉVES kamatperiódus4.000.000 - 4.999.999Minősített Fogyasztóbarát termék | H66: 0.0689 | I66: 0.0689 | J66: 0.0689 | K66: 0.0726691719 | L66: 0
A67: Piaci kamatozású lakáscélú hitel | B67: nincs közszférás kedvezmény | C67: 3. kedvezmény kategória | D67: 10 ÉVES kamatperiódus | E67: 4.000.000 - 4.999.999 | F67: Minősített Fogyasztóbarát termék | G67: =CONCATENATE(A67,B67,C67,D67,E67,F67) -> Piaci kamatozású lakáscélú hitelnincs közszférás kedvezmény3. kedvezmény kategória10 ÉVES kamatperiódus4.000.000 - 4.999.999Minősített Fogyasztóbarát termék | H67: 0.0689 | I67: 0.0689 | J67: 0.0689 | K67: 0.0726691719 | L67: 0
A68: Piaci kamatozású lakáscélú hitel | B68: nincs közszférás kedvezmény | C68: Standard, kedvezmény nélkül | D68: 10 ÉVES kamatperiódus | E68: 4.000.000 - 4.999.999 | F68: Minősített Fogyasztóbarát termék | G68: Piaci kamatozású lakáscélú hitelnincs közszférás kedvezményStandard, kedvezmény nélkül10 ÉVES kamatperiódus4.000.000 - 4.999.999Minősített Fogyasztóbarát termék | H68: 0.0689 | I68: 0.0689 | J68: 0.0689 | K68: 0.0726691719 | L68: 0
A69: Piaci kamatozású lakáscélú hitel | B69: nincs közszférás kedvezmény | C69: Extra kedvezmény kategória | D69: 10 ÉVES kamatperiódus | E69: 5.000.000 - 9.999.999 | F69: Minősített Fogyasztóbarát termék | G69: Piaci kamatozású lakáscélú hitelnincs közszférás kedvezményExtra kedvezmény kategória10 ÉVES kamatperiódus5.000.000 - 9.999.999Minősített Fogyasztóbarát termék | H69: 0.0685 | I69: 0.0685 | J69: 0.0685 | K69: 0.07224341894 | L69: 0
A70: Piaci kamatozású lakáscélú hitel | B70: nincs közszférás kedvezmény | C70: Extra ERE kedvezmény kategória | D70: 10 ÉVES kamatperiódus | E70: 5.000.000 - 9.999.999 | F70: Minősített Fogyasztóbarát termék | G70: Piaci kamatozású lakáscélú hitelnincs közszférás kedvezményExtra ERE kedvezmény kategória10 ÉVES kamatperiódus5.000.000 - 9.999.999Minősített Fogyasztóbarát termék | H70: 0.0685 | I70: 0.0685 | J70: 0.0685 | K70: 0.07224341894 | L70: 0
A71: Piaci kamatozású lakáscélú hitel | B71: nincs közszférás kedvezmény | C71: Prémium kedvezmény kategória | D71: 10 ÉVES kamatperiódus | E71: 5.000.000 - 9.999.999 | F71: Minősített Fogyasztóbarát termék | G71: Piaci kamatozású lakáscélú hitelnincs közszférás kedvezményPrémium kedvezmény kategória10 ÉVES kamatperiódus5.000.000 - 9.999.999Minősített Fogyasztóbarát termék | H71: 0.0685 | I71: 0.0685 | J71: 0.0685 | K71: 0.07224341894 | L71: 0
A72: Piaci kamatozású lakáscélú hitel | B72: nincs közszférás kedvezmény | C72: 1. kedvezmény kategória | D72: 10 ÉVES kamatperiódus | E72: 5.000.000 - 9.999.999 | F72: Minősített Fogyasztóbarát termék | G72: Piaci kamatozású lakáscélú hitelnincs közszférás kedvezmény1. kedvezmény kategória10 ÉVES kamatperiódus5.000.000 - 9.999.999Minősített Fogyasztóbarát termék | H72: 0.0689 | I72: 0.0689 | J72: 0.0689 | K72: 0.07266922596 | L72: 0
A73: Piaci kamatozású lakáscélú hitel | B73: nincs közszférás kedvezmény | C73: 2. kedvezmény kategória | D73: 10 ÉVES kamatperiódus | E73: 5.000.000 - 9.999.999 | F73: Minősített Fogyasztóbarát termék | G73: Piaci kamatozású lakáscélú hitelnincs közszférás kedvezmény2. kedvezmény kategória10 ÉVES kamatperiódus5.000.000 - 9.999.999Minősített Fogyasztóbarát termék | H73: 0.0689 | I73: 0.0689 | J73: 0.0689 | K73: 0.07266922596 | L73: 0
A74: Piaci kamatozású lakáscélú hitel | B74: nincs közszférás kedvezmény | C74: 3. kedvezmény kategória | D74: 10 ÉVES kamatperiódus | E74: 5.000.000 - 9.999.999 | F74: Minősített Fogyasztóbarát termék | G74: Piaci kamatozású lakáscélú hitelnincs közszférás kedvezmény3. kedvezmény kategória10 ÉVES kamatperiódus5.000.000 - 9.999.999Minősített Fogyasztóbarát termék | H74: 0.0689 | I74: 0.0689 | J74: 0.0689 | K74: 0.07266922596 | L74: 0
A75: Piaci kamatozású lakáscélú hitel | B75: nincs közszférás kedvezmény | C75: Standard, kedvezmény nélkül | D75: 10 ÉVES kamatperiódus | E75: 5.000.000 - 9.999.999 | F75: Minősített Fogyasztóbarát termék | G75: Piaci kamatozású lakáscélú hitelnincs közszférás kedvezményStandard, kedvezmény nélkül10 ÉVES kamatperiódus5.000.000 - 9.999.999Minősített Fogyasztóbarát termék | H75: 0.0689 | I75: 0.0689 | J75: 0.0689 | K75: 0.07266922596 | L75: 0
A76: Piaci kamatozású lakáscélú hitel | B76: nincs közszférás kedvezmény | C76: Extra kedvezmény kategória | D76: 10 ÉVES kamatperiódus | E76: 10.000.000 - 19.999.999 | F76: Minősített Fogyasztóbarát termék | G76: Piaci kamatozású lakáscélú hitelnincs közszférás kedvezményExtra kedvezmény kategória10 ÉVES kamatperiódus10.000.000 - 19.999.999Minősített Fogyasztóbarát termék | H76: 0.0664 | I76: 0.0664 | J76: 0.0664 | K76: 0.06933593031 | L76: 0
A77: Piaci kamatozású lakáscélú hitel | B77: nincs közszférás kedvezmény | C77: Extra ERE kedvezmény kategória | D77: 10 ÉVES kamatperiódus | E77: 10.000.000 - 19.999.999 | F77: Minősített Fogyasztóbarát termék | G77: Piaci kamatozású lakáscélú hitelnincs közszférás kedvezményExtra ERE kedvezmény kategória10 ÉVES kamatperiódus10.000.000 - 19.999.999Minősített Fogyasztóbarát termék | H77: 0.0664 | I77: 0.0664 | J77: 0.0664 | K77: 0.06933593031 | L77: 0
A78: Piaci kamatozású lakáscélú hitel | B78: nincs közszférás kedvezmény | C78: Prémium kedvezmény kategória | D78: 10 ÉVES kamatperiódus | E78: 10.000.000 - 19.999.999 | F78: Minősített Fogyasztóbarát termék | G78: Piaci kamatozású lakáscélú hitelnincs közszférás kedvezményPrémium kedvezmény kategória10 ÉVES kamatperiódus10.000.000 - 19.999.999Minősített Fogyasztóbarát termék | H78: 0.0664 | I78: 0.0664 | J78: =IF(AND(A78=cellHitelCel, B78=cellKozszferas, D78=cellKamatPeriodus),I78,"") -> 0.0664 | K78: 0.06933593031 | L78: 0
A79: Piaci kamatozású lakáscélú hitel | B79: nincs közszférás kedvezmény | C79: 1. kedvezmény kategória | D79: 10 ÉVES kamatperiódus | E79: 10.000.000 - 19.999.999 | F79: Minősített Fogyasztóbarát termék | G79: Piaci kamatozású lakáscélú hitelnincs közszférás kedvezmény1. kedvezmény kategória10 ÉVES kamatperiódus10.000.000 - 19.999.999Minősített Fogyasztóbarát termék | H79: 0.0674 | I79: 0.0674 | J79: 0.0674 | K79: 0.07039928969 | L79: =+H79-I79 -> 0
A80: Piaci kamatozású lakáscélú hitel | B80: nincs közszférás kedvezmény | C80: 2. kedvezmény kategória | D80: 10 ÉVES kamatperiódus | E80: 10.000.000 - 19.999.999 | F80: Minősített Fogyasztóbarát termék | G80: Piaci kamatozású lakáscélú hitelnincs közszférás kedvezmény2. kedvezmény kategória10 ÉVES kamatperiódus10.000.000 - 19.999.999Minősített Fogyasztóbarát termék | H80: 0.0674 | I80: 0.0674 | J80: 0.0674 | K80: 0.07039928969 | L80: 0
A81: Piaci kamatozású lakáscélú hitel | B81: nincs közszférás kedvezmény | C81: 3. kedvezmény kategória | D81: 10 ÉVES kamatperiódus | E81: 10.000.000 - 19.999.999 | F81: Minősített Fogyasztóbarát termék | G81: Piaci kamatozású lakáscélú hitelnincs közszférás kedvezmény3. kedvezmény kategória10 ÉVES kamatperiódus10.000.000 - 19.999.999Minősített Fogyasztóbarát termék | H81: 0.0689 | I81: 0.0689 | J81: 0.0689 | K81: 0.07199624128 | L81: 0
A82: Piaci kamatozású lakáscélú hitel | B82: nincs közszférás kedvezmény | C82: Standard, kedvezmény nélkül | D82: 10 ÉVES kamatperiódus | E82: 10.000.000 - 19.999.999 | F82: Minősített Fogyasztóbarát termék | G82: Piaci kamatozású lakáscélú hitelnincs közszférás kedvezményStandard, kedvezmény nélkül10 ÉVES kamatperiódus10.000.000 - 19.999.999Minősített Fogyasztóbarát termék | H82: 0.0689 | I82: 0.0689 | J82: 0.0689 | K82: 0.07199624128 | L82: 0
A83: Piaci kamatozású lakáscélú hitel | B83: nincs közszférás kedvezmény | C83: Extra kedvezmény kategória | D83: 10 ÉVES kamatperiódus | E83: 20.000.000 - 29.999.999 | F83: Minősített Fogyasztóbarát termék | G83: Piaci kamatozású lakáscélú hitelnincs közszférás kedvezményExtra kedvezmény kategória10 ÉVES kamatperiódus20.000.000 - 29.999.999Minősített Fogyasztóbarát termék | H83: 0.0659 | I83: 0.0659 | J83: 0.0659 | K83: 0.06880455414 | L83: 0
A84: Piaci kamatozású lakáscélú hitel | B84: nincs közszférás kedvezmény | C84: Extra ERE kedvezmény kategória | D84: 10 ÉVES kamatperiódus | E84: 20.000.000 - 29.999.999 | F84: Minősített Fogyasztóbarát termék | G84: Piaci kamatozású lakáscélú hitelnincs közszférás kedvezményExtra ERE kedvezmény kategória10 ÉVES kamatperiódus20.000.000 - 29.999.999Minősített Fogyasztóbarát termék | H84: 0.0659 | I84: 0.0659 | J84: 0.0659 | K84: 0.06880455414 | L84: 0
A85: Piaci kamatozású lakáscélú hitel | B85: nincs közszférás kedvezmény | C85: Prémium kedvezmény kategória | D85: 10 ÉVES kamatperiódus | E85: 20.000.000 - 29.999.999 | F85: Minősített Fogyasztóbarát termék | G85: Piaci kamatozású lakáscélú hitelnincs közszférás kedvezményPrémium kedvezmény kategória10 ÉVES kamatperiódus20.000.000 - 29.999.999Minősített Fogyasztóbarát termék | H85: 0.0659 | I85: 0.0659 | J85: 0.0659 | K85: 0.06880455414 | L85: 0
A86: Piaci kamatozású lakáscélú hitel | B86: nincs közszférás kedvezmény | C86: 1. kedvezmény kategória | D86: 10 ÉVES kamatperiódus | E86: 20.000.000 - 29.999.999 | F86: Minősített Fogyasztóbarát termék | G86: Piaci kamatozású lakáscélú hitelnincs közszférás kedvezmény1. kedvezmény kategória10 ÉVES kamatperiódus20.000.000 - 29.999.999Minősített Fogyasztóbarát termék | H86: 0.0669 | I86: 0.0669 | J86: 0.0669 | K86: 0.06986749984 | L86: 0
A87: Piaci kamatozású lakáscélú hitel | B87: nincs közszférás kedvezmény | C87: 2. kedvezmény kategória | D87: 10 ÉVES kamatperiódus | E87: 20.000.000 - 29.999.999 | F87: Minősített Fogyasztóbarát termék | G87: Piaci kamatozású lakáscélú hitelnincs közszférás kedvezmény2. kedvezmény kategória10 ÉVES kamatperiódus20.000.000 - 29.999.999Minősített Fogyasztóbarát termék | H87: 0.0669 | I87: 0.0669 | J87: 0.0669 | K87: 0.06986749984 | L87: 0
A88: Piaci kamatozású lakáscélú hitel | B88: nincs közszférás kedvezmény | C88: 3. kedvezmény kategória | D88: 10 ÉVES kamatperiódus | E88: 20.000.000 - 29.999.999 | F88: Minősített Fogyasztóbarát termék | G88: Piaci kamatozású lakáscélú hitelnincs közszférás kedvezmény3. kedvezmény kategória10 ÉVES kamatperiódus20.000.000 - 29.999.999Minősített Fogyasztóbarát termék | H88: 0.0689 | I88: 0.0689 | J88: 0.0689 | K88: 0.07199624128 | L88: 0
A89: Piaci kamatozású lakáscélú hitel | B89: nincs közszférás kedvezmény | C89: Standard, kedvezmény nélkül | D89: 10 ÉVES kamatperiódus | E89: 20.000.000 - 29.999.999 | F89: Minősített Fogyasztóbarát termék | G89: Piaci kamatozású lakáscélú hitelnincs közszférás kedvezményStandard, kedvezmény nélkül10 ÉVES kamatperiódus20.000.000 - 29.999.999Minősített Fogyasztóbarát termék | H89: 0.0689 | I89: 0.0689 | J89: 0.0689 | K89: 0.07199624128 | L89: 0
A90: Piaci kamatozású lakáscélú hitel | B90: nincs közszférás kedvezmény | C90: Extra kedvezmény kategória | D90: 10 ÉVES kamatperiódus | E90: 30.000.000 - | F90: Minősített Fogyasztóbarát termék | G90: Piaci kamatozású lakáscélú hitelnincs közszférás kedvezményExtra kedvezmény kategória10 ÉVES kamatperiódus30.000.000 -Minősített Fogyasztóbarát termék | H90: 0.0654 | I90: 0.0654 | K90: 0.06827347917 | L90: 0
A91: Piaci kamatozású lakáscélú hitel | B91: nincs közszférás kedvezmény | C91: Extra ERE kedvezmény kategória | D91: 10 ÉVES kamatperiódus | E91: 30.000.000 - | F91: Minősített Fogyasztóbarát termék | G91: Piaci kamatozású lakáscélú hitelnincs közszférás kedvezményExtra ERE kedvezmény kategória10 ÉVES kamatperiódus30.000.000 -Minősített Fogyasztóbarát termék | H91: 0.0654 | I91: 0.0654 | K91: 0.06827347917 | L91: 0
A92: Piaci kamatozású lakáscélú hitel | B92: nincs közszférás kedvezmény | C92: Prémium kedvezmény kategória | D92: 10 ÉVES kamatperiódus | E92: 30.000.000 - | F92: Minősített Fogyasztóbarát termék | G92: Piaci kamatozású lakáscélú hitelnincs közszférás kedvezményPrémium kedvezmény kategória10 ÉVES kamatperiódus30.000.000 -Minősített Fogyasztóbarát termék | H92: 0.0654 | I92: 0.0654 | K92: 0.06827347917 | L92: 0
A93: Piaci kamatozású lakáscélú hitel | B93: nincs közszférás kedvezmény | C93: 1. kedvezmény kategória | D93: 10 ÉVES kamatperiódus | E93: 30.000.000 - | F93: Minősített Fogyasztóbarát termék | G93: Piaci kamatozású lakáscélú hitelnincs közszférás kedvezmény1. kedvezmény kategória10 ÉVES kamatperiódus30.000.000 -Minősített Fogyasztóbarát termék | H93: 0.0664 | I93: 0.0664 | K93: 0.06933593031 | L93: 0
A94: Piaci kamatozású lakáscélú hitel | B94: nincs közszférás kedvezmény | C94: 2. kedvezmény kategória | D94: 10 ÉVES kamatperiódus | E94: 30.000.000 - | F94: Minősített Fogyasztóbarát termék | G94: Piaci kamatozású lakáscélú hitelnincs közszférás kedvezmény2. kedvezmény kategória10 ÉVES kamatperiódus30.000.000 -Minősített Fogyasztóbarát termék | H94: 0.0664 | I94: 0.0664 | K94: 0.06933593031 | L94: 0
A95: Piaci kamatozású lakáscélú hitel | B95: nincs közszférás kedvezmény | C95: 3. kedvezmény kategória | D95: 10 ÉVES kamatperiódus | E95: 30.000.000 - | F95: Minősített Fogyasztóbarát termék | G95: Piaci kamatozású lakáscélú hitelnincs közszférás kedvezmény3. kedvezmény kategória10 ÉVES kamatperiódus30.000.000 -Minősített Fogyasztóbarát termék | H95: 0.0689 | I95: 0.0689 | K95: 0.07199624128 | L95: 0
A96: Piaci kamatozású lakáscélú hitel | B96: nincs közszférás kedvezmény | C96: Standard, kedvezmény nélkül | D96: 10 ÉVES kamatperiódus | E96: 30.000.000 - | F96: Minősített Fogyasztóbarát termék | G96: Piaci kamatozású lakáscélú hitelnincs közszférás kedvezményStandard, kedvezmény nélkül10 ÉVES kamatperiódus30.000.000 -Minősített Fogyasztóbarát termék | H96: 0.0689 | I96: 0.0689 | K96: 0.07199624128 | L96: 0
A97: =cellTermekNevePiaciLakashitel -> Piaci kamatozású lakáscélú hitel | B97: közszférás kedvezmény | C97: Extra kedvezmény kategória | D97: 10 ÉVES kamatperiódus | E97: 4.000.000 - 4.999.999 | F97: Minősített Fogyasztóbarát termék | G97: Piaci kamatozású lakáscélú hitelközszférás kedvezményExtra kedvezmény kategória10 ÉVES kamatperiódus4.000.000 - 4.999.999Minősített Fogyasztóbarát termék | H97: 0.0664 | I97: 0.0664 | K97: 0.07001045451 | L97: 0
A98: =cellTermekNevePiaciLakashitel -> Piaci kamatozású lakáscélú hitel | B98: közszférás kedvezmény | C98: 1. kedvezmény kategória | D98: 10 ÉVES kamatperiódus | E98: 4.000.000 - 4.999.999 | F98: Minősített Fogyasztóbarát termék | G98: Piaci kamatozású lakáscélú hitelközszférás kedvezmény1. kedvezmény kategória10 ÉVES kamatperiódus4.000.000 - 4.999.999Minősített Fogyasztóbarát termék | H98: 0.0664 | I98: 0.0664 | K98: 0.07001045451 | L98: 0
A99: =cellTermekNevePiaciLakashitel -> Piaci kamatozású lakáscélú hitel | B99: közszférás kedvezmény | C99: 2. kedvezmény kategória | D99: 10 ÉVES kamatperiódus | E99: 4.000.000 - 4.999.999 | F99: Minősített Fogyasztóbarát termék | G99: Piaci kamatozású lakáscélú hitelközszférás kedvezmény2. kedvezmény kategória10 ÉVES kamatperiódus4.000.000 - 4.999.999Minősített Fogyasztóbarát termék | H99: 0.0664 | I99: 0.0664 | K99: 0.07001045451 | L99: 0
A100: Piaci kamatozású lakáscélú hitel | B100: közszférás kedvezmény | C100: 3. kedvezmény kategória | D100: 10 ÉVES kamatperiódus | E100: 4.000.000 - 4.999.999 | F100: Minősített Fogyasztóbarát termék | G100: Piaci kamatozású lakáscélú hitelközszférás kedvezmény3. kedvezmény kategória10 ÉVES kamatperiódus4.000.000 - 4.999.999Minősített Fogyasztóbarát termék | H100: 0.0664 | I100: 0.0664 | K100: 0.07001045451 | L100: 0
A101: Piaci kamatozású lakáscélú hitel | B101: közszférás kedvezmény | C101: Standard, kedvezmény nélkül | D101: 10 ÉVES kamatperiódus | E101: 4.000.000 - 4.999.999 | F101: Minősített Fogyasztóbarát termék | G101: Piaci kamatozású lakáscélú hitelközszférás kedvezményStandard, kedvezmény nélkül10 ÉVES kamatperiódus4.000.000 - 4.999.999Minősített Fogyasztóbarát termék | H101: 0.0664 | I101: 0.0664 | K101: 0.07001045451 | L101: 0
A102: Piaci kamatozású lakáscélú hitel | B102: közszférás kedvezmény | C102: Extra kedvezmény kategória | D102: 10 ÉVES kamatperiódus | E102: 5.000.000 - 9.999.999 | F102: Minősített Fogyasztóbarát termék | G102: Piaci kamatozású lakáscélú hitelközszférás kedvezményExtra kedvezmény kategória10 ÉVES kamatperiódus5.000.000 - 9.999.999Minősített Fogyasztóbarát termék | H102: 0.066 | I102: 0.066 | K102: 0.06958569535 | L102: 0
A103: Piaci kamatozású lakáscélú hitel | B103: közszférás kedvezmény | C103: 1. kedvezmény kategória | D103: 10 ÉVES kamatperiódus | E103: 5.000.000 - 9.999.999 | F103: Minősített Fogyasztóbarát termék | G103: Piaci kamatozású lakáscélú hitelközszférás kedvezmény1. kedvezmény kategória10 ÉVES kamatperiódus5.000.000 - 9.999.999Minősített Fogyasztóbarát termék | H103: 0.0664 | I103: 0.0664 | K103: 0.07001043426 | L103: 0
A104: Piaci kamatozású lakáscélú hitel | B104: közszférás kedvezmény | C104: 2. kedvezmény kategória | D104: 10 ÉVES kamatperiódus | E104: 5.000.000 - 9.999.999 | F104: Minősített Fogyasztóbarát termék | G104: Piaci kamatozású lakáscélú hitelközszférás kedvezmény2. kedvezmény kategória10 ÉVES kamatperiódus5.000.000 - 9.999.999Minősített Fogyasztóbarát termék | H104: 0.0664 | I104: 0.0664 | K104: 0.07001043426 | L104: 0
A105: Piaci kamatozású lakáscélú hitel | B105: közszférás kedvezmény | C105: 3. kedvezmény kategória | D105: 10 ÉVES kamatperiódus | E105: 5.000.000 - 9.999.999 | F105: Minősített Fogyasztóbarát termék | G105: Piaci kamatozású lakáscélú hitelközszférás kedvezmény3. kedvezmény kategória10 ÉVES kamatperiódus5.000.000 - 9.999.999Minősített Fogyasztóbarát termék | H105: 0.0664 | I105: 0.0664 | K105: 0.07001043426 | L105: 0
A106: Piaci kamatozású lakáscélú hitel | B106: közszférás kedvezmény | C106: Standard, kedvezmény nélkül | D106: 10 ÉVES kamatperiódus | E106: 5.000.000 - 9.999.999 | F106: Minősített Fogyasztóbarát termék | G106: Piaci kamatozású lakáscélú hitelközszférás kedvezményStandard, kedvezmény nélkül10 ÉVES kamatperiódus5.000.000 - 9.999.999Minősített Fogyasztóbarát termék | H106: 0.0664 | I106: 0.0664 | K106: 0.07001043426 | L106: 0
A107: Piaci kamatozású lakáscélú hitel | B107: közszférás kedvezmény | C107: Extra kedvezmény kategória | D107: 10 ÉVES kamatperiódus | E107: 10.000.000 - 19.999.999 | F107: Minősített Fogyasztóbarát termék | G107: Piaci kamatozású lakáscélú hitelközszférás kedvezményExtra kedvezmény kategória10 ÉVES kamatperiódus10.000.000 - 19.999.999Minősített Fogyasztóbarát termék | H107: 0.0654 | I107: 0.0654 | K107: 0.06827347917 | L107: 0
A108: Piaci kamatozású lakáscélú hitel | B108: közszférás kedvezmény | C108: 1. kedvezmény kategória | D108: 10 ÉVES kamatperiódus | E108: 10.000.000 - 19.999.999 | F108: Minősített Fogyasztóbarát termék | G108: Piaci kamatozású lakáscélú hitelközszférás kedvezmény1. kedvezmény kategória10 ÉVES kamatperiódus10.000.000 - 19.999.999Minősített Fogyasztóbarát termék | H108: 0.0654 | I108: 0.0654 | K108: 0.06827347917 | L108: 0
A109: Piaci kamatozású lakáscélú hitel | B109: közszférás kedvezmény | C109: 2. kedvezmény kategória | D109: 10 ÉVES kamatperiódus | E109: 10.000.000 - 19.999.999 | F109: Minősített Fogyasztóbarát termék | G109: Piaci kamatozású lakáscélú hitelközszférás kedvezmény2. kedvezmény kategória10 ÉVES kamatperiódus10.000.000 - 19.999.999Minősített Fogyasztóbarát termék | H109: 0.0654 | I109: 0.0654 | K109: 0.06827347917 | L109: 0
A110: Piaci kamatozású lakáscélú hitel | B110: közszférás kedvezmény | C110: 3. kedvezmény kategória | D110: 10 ÉVES kamatperiódus | E110: 10.000.000 - 19.999.999 | F110: Minősített Fogyasztóbarát termék | G110: Piaci kamatozású lakáscélú hitelközszférás kedvezmény3. kedvezmény kategória10 ÉVES kamatperiódus10.000.000 - 19.999.999Minősített Fogyasztóbarát termék | H110: 0.0664 | I110: 0.0664 | K110: 0.06933593031 | L110: 0
A111: Piaci kamatozású lakáscélú hitel | B111: közszférás kedvezmény | C111: Standard, kedvezmény nélkül | D111: 10 ÉVES kamatperiódus | E111: 10.000.000 - 19.999.999 | F111: Minősített Fogyasztóbarát termék | G111: Piaci kamatozású lakáscélú hitelközszférás kedvezményStandard, kedvezmény nélkül10 ÉVES kamatperiódus10.000.000 - 19.999.999Minősített Fogyasztóbarát termék | H111: 0.0664 | I111: 0.0664 | K111: 0.06933593031 | L111: 0
A112: Piaci kamatozású lakáscélú hitel | B112: közszférás kedvezmény | C112: Extra kedvezmény kategória | D112: 10 ÉVES kamatperiódus | E112: 20.000.000 - 29.999.999 | F112: Minősített Fogyasztóbarát termék | G112: Piaci kamatozású lakáscélú hitelközszférás kedvezményExtra kedvezmény kategória10 ÉVES kamatperiódus20.000.000 - 29.999.999Minősített Fogyasztóbarát termék | H112: 0.0654 | I112: 0.0654 | K112: 0.06827347917 | L112: 0
A113: Piaci kamatozású lakáscélú hitel | B113: közszférás kedvezmény | C113: 1. kedvezmény kategória | D113: 10 ÉVES kamatperiódus | E113: 20.000.000 - 29.999.999 | F113: Minősített Fogyasztóbarát termék | G113: Piaci kamatozású lakáscélú hitelközszférás kedvezmény1. kedvezmény kategória10 ÉVES kamatperiódus20.000.000 - 29.999.999Minősített Fogyasztóbarát termék | H113: 0.0654 | I113: 0.0654 | K113: 0.06827347917 | L113: 0
A114: Piaci kamatozású lakáscélú hitel | B114: közszférás kedvezmény | C114: 2. kedvezmény kategória | D114: 10 ÉVES kamatperiódus | E114: 20.000.000 - 29.999.999 | F114: Minősített Fogyasztóbarát termék | G114: Piaci kamatozású lakáscélú hitelközszférás kedvezmény2. kedvezmény kategória10 ÉVES kamatperiódus20.000.000 - 29.999.999Minősített Fogyasztóbarát termék | H114: 0.0654 | I114: 0.0654 | K114: 0.06827347917 | L114: 0
A115: Piaci kamatozású lakáscélú hitel | B115: közszférás kedvezmény | C115: 3. kedvezmény kategória | D115: 10 ÉVES kamatperiódus | E115: 20.000.000 - 29.999.999 | F115: Minősített Fogyasztóbarát termék | G115: Piaci kamatozású lakáscélú hitelközszférás kedvezmény3. kedvezmény kategória10 ÉVES kamatperiódus20.000.000 - 29.999.999Minősített Fogyasztóbarát termék | H115: 0.0664 | I115: 0.0664 | K115: 0.06933593031 | L115: 0
A116: Piaci kamatozású lakáscélú hitel | B116: közszférás kedvezmény | C116: Standard, kedvezmény nélkül | D116: 10 ÉVES kamatperiódus | E116: 20.000.000 - 29.999.999 | F116: Minősített Fogyasztóbarát termék | G116: Piaci kamatozású lakáscélú hitelközszférás kedvezményStandard, kedvezmény nélkül10 ÉVES kamatperiódus20.000.000 - 29.999.999Minősített Fogyasztóbarát termék | H116: 0.0664 | I116: 0.0664 | K116: 0.06933593031 | L116: 0
A117: Piaci kamatozású lakáscélú hitel | B117: közszférás kedvezmény | C117: Extra kedvezmény kategória | D117: 10 ÉVES kamatperiódus | E117: 30.000.000 - | F117: Minősített Fogyasztóbarát termék | G117: Piaci kamatozású lakáscélú hitelközszférás kedvezményExtra kedvezmény kategória10 ÉVES kamatperiódus30.000.000 -Minősített Fogyasztóbarát termék | H117: 0.0654 | I117: 0.0654 | K117: 0.06827347917 | L117: 0
A118: Piaci kamatozású lakáscélú hitel | B118: közszférás kedvezmény | C118: 1. kedvezmény kategória | D118: 10 ÉVES kamatperiódus | E118: 30.000.000 - | F118: Minősített Fogyasztóbarát termék | G118: Piaci kamatozású lakáscélú hitelközszférás kedvezmény1. kedvezmény kategória10 ÉVES kamatperiódus30.000.000 -Minősített Fogyasztóbarát termék | H118: 0.0654 | I118: 0.0654 | K118: 0.06827347917 | L118: 0
A119: Piaci kamatozású lakáscélú hitel | B119: közszférás kedvezmény | C119: 2. kedvezmény kategória | D119: 10 ÉVES kamatperiódus | E119: 30.000.000 - | F119: Minősített Fogyasztóbarát termék | G119: Piaci kamatozású lakáscélú hitelközszférás kedvezmény2. kedvezmény kategória10 ÉVES kamatperiódus30.000.000 -Minősített Fogyasztóbarát termék | H119: 0.0654 | I119: 0.0654 | K119: 0.06827347917 | L119: 0
A120: Piaci kamatozású lakáscélú hitel | B120: közszférás kedvezmény | C120: 3. kedvezmény kategória | D120: 10 ÉVES kamatperiódus | E120: 30.000.000 - | F120: Minősített Fogyasztóbarát termék | G120: Piaci kamatozású lakáscélú hitelközszférás kedvezmény3. kedvezmény kategória10 ÉVES kamatperiódus30.000.000 -Minősített Fogyasztóbarát termék | H120: 0.0664 | I120: 0.0664 | K120: 0.06933593031 | L120: 0
A121: Piaci kamatozású lakáscélú hitel | B121: közszférás kedvezmény | C121: Standard, kedvezmény nélkül | D121: 10 ÉVES kamatperiódus | E121: 30.000.000 - | F121: Minősített Fogyasztóbarát termék | G121: Piaci kamatozású lakáscélú hitelközszférás kedvezményStandard, kedvezmény nélkül10 ÉVES kamatperiódus30.000.000 -Minősített Fogyasztóbarát termék | H121: 0.0664 | I121: 0.0664 | K121: 0.06933593031 | L121: 0
A122: =cellTermekNevePiaciLakashitel -> Piaci kamatozású lakáscélú hitel | B122: nincs közszférás kedvezmény | C122: Extra kedvezmény kategória | D122: 15 ÉVES FIX | E122: 4.000.000 - 4.999.999 | F122: Minősített Fogyasztóbarát termék | G122: Piaci kamatozású lakáscélú hitelnincs közszférás kedvezményExtra kedvezmény kategória15 ÉVES FIX4.000.000 - 4.999.999Minősített Fogyasztóbarát termék | H122: 0.1018 | I122: 0.0739 | K122: 0.07800629127 | L122: 0.0279
A123: Piaci kamatozású lakáscélú hitel | B123: nincs közszférás kedvezmény | C123: Extra ERE kedvezmény kategória | D123: 15 ÉVES FIX | E123: 4.000.000 - 4.999.999 | F123: Minősített Fogyasztóbarát termék | G123: Piaci kamatozású lakáscélú hitelnincs közszférás kedvezményExtra ERE kedvezmény kategória15 ÉVES FIX4.000.000 - 4.999.999Minősített Fogyasztóbarát termék | H123: 0.1018 | I123: 0.0739 | K123: 0.07800629127 | L123: 0.0279
A124: Piaci kamatozású lakáscélú hitel | B124: nincs közszférás kedvezmény | C124: Prémium kedvezmény kategória | D124: 15 ÉVES FIX | E124: 4.000.000 - 4.999.999 | F124: Minősített Fogyasztóbarát termék | G124: Piaci kamatozású lakáscélú hitelnincs közszférás kedvezményPrémium kedvezmény kategória15 ÉVES FIX4.000.000 - 4.999.999Minősített Fogyasztóbarát termék | H124: 0.1018 | I124: 0.0739 | K124: 0.07800629127 | L124: 0.0279
A125: Piaci kamatozású lakáscélú hitel | B125: nincs közszférás kedvezmény | C125: 1. kedvezmény kategória | D125: 15 ÉVES FIX | E125: 4.000.000 - 4.999.999 | F125: Minősített Fogyasztóbarát termék | G125: Piaci kamatozású lakáscélú hitelnincs közszférás kedvezmény1. kedvezmény kategória15 ÉVES FIX4.000.000 - 4.999.999Minősített Fogyasztóbarát termék | H125: 0.1018 | I125: 0.0739 | K125: 0.07800629127 | L125: 0.0279
A126: Piaci kamatozású lakáscélú hitel | B126: nincs közszférás kedvezmény | C126: 2. kedvezmény kategória | D126: 15 ÉVES FIX | E126: 4.000.000 - 4.999.999 | F126: Minősített Fogyasztóbarát termék | G126: Piaci kamatozású lakáscélú hitelnincs közszférás kedvezmény2. kedvezmény kategória15 ÉVES FIX4.000.000 - 4.999.999Minősített Fogyasztóbarát termék | H126: 0.1018 | I126: 0.0739 | K126: 0.07800629127 | L126: 0.0279
A127: Piaci kamatozású lakáscélú hitel | B127: nincs közszférás kedvezmény | C127: 3. kedvezmény kategória | D127: 15 ÉVES FIX | E127: 4.000.000 - 4.999.999 | F127: Minősített Fogyasztóbarát termék | G127: Piaci kamatozású lakáscélú hitelnincs közszférás kedvezmény3. kedvezmény kategória15 ÉVES FIX4.000.000 - 4.999.999Minősített Fogyasztóbarát termék | H127: 0.1018 | I127: 0.0739 | K127: 0.07800629127 | L127: 0.0279
A128: Piaci kamatozású lakáscélú hitel | B128: nincs közszférás kedvezmény | C128: Standard, kedvezmény nélkül | D128: 15 ÉVES FIX | E128: 4.000.000 - 4.999.999 | F128: Minősített Fogyasztóbarát termék | G128: Piaci kamatozású lakáscélú hitelnincs közszférás kedvezményStandard, kedvezmény nélkül15 ÉVES FIX4.000.000 - 4.999.999Minősített Fogyasztóbarát termék | H128: 0.1018 | I128: 0.0739 | K128: 0.07800629127 | L128: 0.0279
A129: Piaci kamatozású lakáscélú hitel | B129: nincs közszférás kedvezmény | C129: Extra kedvezmény kategória | D129: 15 ÉVES FIX | E129: 5.000.000 - 9.999.999 | F129: Minősített Fogyasztóbarát termék | G129: Piaci kamatozású lakáscélú hitelnincs közszférás kedvezményExtra kedvezmény kategória15 ÉVES FIX5.000.000 - 9.999.999Minősített Fogyasztóbarát termék | H129: 0.1018 | I129: 0.0735 | K129: 0.07757839753 | L129: 0.0283
A130: Piaci kamatozású lakáscélú hitel | B130: nincs közszférás kedvezmény | C130: Extra ERE kedvezmény kategória | D130: 15 ÉVES FIX | E130: 5.000.000 - 9.999.999 | F130: Minősített Fogyasztóbarát termék | G130: Piaci kamatozású lakáscélú hitelnincs közszférás kedvezményExtra ERE kedvezmény kategória15 ÉVES FIX5.000.000 - 9.999.999Minősített Fogyasztóbarát termék | H130: 0.1018 | I130: 0.0735 | K130: 0.07757839753 | L130: 0.0283
A131: Piaci kamatozású lakáscélú hitel | B131: nincs közszférás kedvezmény | C131: Prémium kedvezmény kategória | D131: 15 ÉVES FIX | E131: 5.000.000 - 9.999.999 | F131: Minősített Fogyasztóbarát termék | G131: =CONCATENATE(A131,B131,C131,D131,E131,F131) -> Piaci kamatozású lakáscélú hitelnincs közszférás kedvezményPrémium kedvezmény kategória15 ÉVES FIX5.000.000 - 9.999.999Minősített Fogyasztóbarát termék | H131: 0.1018 | I131: 0.0735 | K131: 0.07757839753 | L131: 0.0283
A132: Piaci kamatozású lakáscélú hitel | B132: nincs közszférás kedvezmény | C132: 1. kedvezmény kategória | D132: 15 ÉVES FIX | E132: 5.000.000 - 9.999.999 | F132: Minősített Fogyasztóbarát termék | G132: Piaci kamatozású lakáscélú hitelnincs közszférás kedvezmény1. kedvezmény kategória15 ÉVES FIX5.000.000 - 9.999.999Minősített Fogyasztóbarát termék | H132: 0.1018 | I132: 0.0739 | K132: 0.07800627557 | L132: 0.0279
A133: Piaci kamatozású lakáscélú hitel | B133: nincs közszférás kedvezmény | C133: 2. kedvezmény kategória | D133: 15 ÉVES FIX | E133: 5.000.000 - 9.999.999 | F133: Minősített Fogyasztóbarát termék | G133: Piaci kamatozású lakáscélú hitelnincs közszférás kedvezmény2. kedvezmény kategória15 ÉVES FIX5.000.000 - 9.999.999Minősített Fogyasztóbarát termék | H133: 0.1018 | I133: 0.0739 | K133: 0.07800627557 | L133: 0.0279
A134: Piaci kamatozású lakáscélú hitel | B134: nincs közszférás kedvezmény | C134: 3. kedvezmény kategória | D134: 15 ÉVES FIX | E134: 5.000.000 - 9.999.999 | F134: Minősített Fogyasztóbarát termék | G134: Piaci kamatozású lakáscélú hitelnincs közszférás kedvezmény3. kedvezmény kategória15 ÉVES FIX5.000.000 - 9.999.999Minősített Fogyasztóbarát termék | H134: 0.1018 | I134: 0.0739 | K134: 0.07800627557 | L134: 0.0279
A135: Piaci kamatozású lakáscélú hitel | B135: nincs közszférás kedvezmény | C135: Standard, kedvezmény nélkül | D135: 15 ÉVES FIX | E135: 5.000.000 - 9.999.999 | F135: Minősített Fogyasztóbarát termék | G135: Piaci kamatozású lakáscélú hitelnincs közszférás kedvezményStandard, kedvezmény nélkül15 ÉVES FIX5.000.000 - 9.999.999Minősített Fogyasztóbarát termék | H135: 0.1018 | I135: 0.0739 | K135: 0.07800627557 | L135: 0.0279
A136: Piaci kamatozású lakáscélú hitel | B136: nincs közszférás kedvezmény | C136: Extra kedvezmény kategória | D136: 15 ÉVES FIX | E136: 10.000.000 - 19.999.999 | F136: Minősített Fogyasztóbarát termék | G136: Piaci kamatozású lakáscélú hitelnincs közszférás kedvezményExtra kedvezmény kategória15 ÉVES FIX10.000.000 - 19.999.999Minősített Fogyasztóbarát termék | H136: 0.0984 | I136: 0.0709 | K136: 0.07412904661 | L136: 0.0275
A137: Piaci kamatozású lakáscélú hitel | B137: nincs közszférás kedvezmény | C137: Extra ERE kedvezmény kategória | D137: 15 ÉVES FIX | E137: 10.000.000 - 19.999.999 | F137: Minősített Fogyasztóbarát termék | G137: Piaci kamatozású lakáscélú hitelnincs közszférás kedvezményExtra ERE kedvezmény kategória15 ÉVES FIX10.000.000 - 19.999.999Minősített Fogyasztóbarát termék | H137: 0.0984 | I137: 0.0709 | K137: 0.07412904661 | L137: 0.0275
A138: Piaci kamatozású lakáscélú hitel | B138: nincs közszférás kedvezmény | C138: Prémium kedvezmény kategória | D138: 15 ÉVES FIX | E138: 10.000.000 - 19.999.999 | F138: Minősített Fogyasztóbarát termék | G138: Piaci kamatozású lakáscélú hitelnincs közszférás kedvezményPrémium kedvezmény kategória15 ÉVES FIX10.000.000 - 19.999.999Minősített Fogyasztóbarát termék | H138: 0.0984 | I138: 0.0709 | K138: 0.07412904661 | L138: 0.0275
A139: Piaci kamatozású lakáscélú hitel | B139: nincs közszférás kedvezmény | C139: 1. kedvezmény kategória | D139: 15 ÉVES FIX | E139: 10.000.000 - 19.999.999 | F139: Minősített Fogyasztóbarát termék | G139: Piaci kamatozású lakáscélú hitelnincs közszférás kedvezmény1. kedvezmény kategória15 ÉVES FIX10.000.000 - 19.999.999Minősített Fogyasztóbarát termék | H139: 0.1002 | I139: 0.0719 | K139: 0.07519695189 | L139: 0.0283
A140: Piaci kamatozású lakáscélú hitel | B140: nincs közszférás kedvezmény | C140: 2. kedvezmény kategória | D140: 15 ÉVES FIX | E140: 10.000.000 - 19.999.999 | F140: Minősített Fogyasztóbarát termék | G140: Piaci kamatozású lakáscélú hitelnincs közszférás kedvezmény2. kedvezmény kategória15 ÉVES FIX10.000.000 - 19.999.999Minősített Fogyasztóbarát termék | H140: 0.1002 | I140: 0.0719 | K140: 0.07519695189 | L140: 0.0283
A141: Piaci kamatozású lakáscélú hitel | B141: nincs közszférás kedvezmény | C141: 3. kedvezmény kategória | D141: 15 ÉVES FIX | E141: 10.000.000 - 19.999.999 | F141: Minősített Fogyasztóbarát termék | G141: Piaci kamatozású lakáscélú hitelnincs közszférás kedvezmény3. kedvezmény kategória15 ÉVES FIX10.000.000 - 19.999.999Minősített Fogyasztóbarát termék | H141: 0.1018 | I141: 0.0739 | K141: 0.0773357382 | L141: 0.0279
A142: Piaci kamatozású lakáscélú hitel | B142: nincs közszférás kedvezmény | C142: Standard, kedvezmény nélkül | D142: 15 ÉVES FIX | E142: 10.000.000 - 19.999.999 | F142: Minősített Fogyasztóbarát termék | G142: Piaci kamatozású lakáscélú hitelnincs közszférás kedvezményStandard, kedvezmény nélkül15 ÉVES FIX10.000.000 - 19.999.999Minősített Fogyasztóbarát termék | H142: 0.1018 | I142: 0.0739 | K142: 0.0773357382 | L142: 0.0279
A143: Piaci kamatozású lakáscélú hitel | B143: nincs közszférás kedvezmény | C143: Extra kedvezmény kategória | D143: 15 ÉVES FIX | E143: 20.000.000 - 29.999.999 | F143: Minősített Fogyasztóbarát termék | G143: Piaci kamatozású lakáscélú hitelnincs közszférás kedvezményExtra kedvezmény kategória15 ÉVES FIX20.000.000 - 29.999.999Minősített Fogyasztóbarát termék | H143: 0.0964 | I143: 0.0704 | K143: 0.07359545239 | L143: 0.026
A144: Piaci kamatozású lakáscélú hitel | B144: nincs közszférás kedvezmény | C144: Extra ERE kedvezmény kategória | D144: 15 ÉVES FIX | E144: 20.000.000 - 29.999.999 | F144: Minősített Fogyasztóbarát termék | G144: Piaci kamatozású lakáscélú hitelnincs közszférás kedvezményExtra ERE kedvezmény kategória15 ÉVES FIX20.000.000 - 29.999.999Minősített Fogyasztóbarát termék | H144: 0.0964 | I144: 0.0704 | K144: 0.07359545239 | L144: 0.026
A145: Piaci kamatozású lakáscélú hitel | B145: nincs közszférás kedvezmény | C145: Prémium kedvezmény kategória | D145: 15 ÉVES FIX | E145: 20.000.000 - 29.999.999 | F145: Minősített Fogyasztóbarát termék | G145: Piaci kamatozású lakáscélú hitelnincs közszférás kedvezményPrémium kedvezmény kategória15 ÉVES FIX20.000.000 - 29.999.999Minősített Fogyasztóbarát termék | H145: 0.0964 | I145: 0.0704 | K145: 0.07359545239 | L145: 0.026
A146: Piaci kamatozású lakáscélú hitel | B146: nincs közszférás kedvezmény | C146: 1. kedvezmény kategória | D146: 15 ÉVES FIX | E146: 20.000.000 - 29.999.999 | F146: Minősített Fogyasztóbarát termék | G146: Piaci kamatozású lakáscélú hitelnincs közszférás kedvezmény1. kedvezmény kategória15 ÉVES FIX20.000.000 - 29.999.999Minősített Fogyasztóbarát termék | H146: 0.0979 | I146: 0.0714 | K146: 0.0746629317 | L146: 0.0265
A147: Piaci kamatozású lakáscélú hitel | B147: nincs közszférás kedvezmény | C147: 2. kedvezmény kategória | D147: 15 ÉVES FIX | E147: 20.000.000 - 29.999.999 | F147: Minősített Fogyasztóbarát termék | G147: Piaci kamatozású lakáscélú hitelnincs közszférás kedvezmény2. kedvezmény kategória15 ÉVES FIX20.000.000 - 29.999.999Minősített Fogyasztóbarát termék | H147: 0.0979 | I147: 0.0714 | K147: 0.0746629317 | L147: 0.0265
A148: Piaci kamatozású lakáscélú hitel | B148: nincs közszférás kedvezmény | C148: 3. kedvezmény kategória | D148: 15 ÉVES FIX | E148: 20.000.000 - 29.999.999 | F148: Minősített Fogyasztóbarát termék | G148: Piaci kamatozású lakáscélú hitelnincs közszférás kedvezmény3. kedvezmény kategória15 ÉVES FIX20.000.000 - 29.999.999Minősített Fogyasztóbarát termék | H148: 0.1018 | I148: 0.0739 | K148: 0.0773357382 | L148: 0.0279
A149: Piaci kamatozású lakáscélú hitel | B149: nincs közszférás kedvezmény | C149: Standard, kedvezmény nélkül | D149: 15 ÉVES FIX | E149: 20.000.000 - 29.999.999 | F149: Minősített Fogyasztóbarát termék | G149: Piaci kamatozású lakáscélú hitelnincs közszférás kedvezményStandard, kedvezmény nélkül15 ÉVES FIX20.000.000 - 29.999.999Minősített Fogyasztóbarát termék | H149: 0.1018 | I149: 0.0739 | K149: 0.0773357382 | L149: 0.0279
A150: Piaci kamatozású lakáscélú hitel | B150: nincs közszférás kedvezmény | C150: Extra kedvezmény kategória | D150: 15 ÉVES FIX | E150: 30.000.000 - | F150: Minősített Fogyasztóbarát termék | G150: Piaci kamatozású lakáscélú hitelnincs közszférás kedvezményExtra kedvezmény kategória15 ÉVES FIX30.000.000 -Minősített Fogyasztóbarát termék | H150: 0.0954 | I150: 0.0699 | K150: 0.0730621099 | L150: 0.0255
A151: Piaci kamatozású lakáscélú hitel | B151: nincs közszférás kedvezmény | C151: Extra ERE kedvezmény kategória | D151: 15 ÉVES FIX | E151: 30.000.000 - | F151: Minősített Fogyasztóbarát termék | G151: Piaci kamatozású lakáscélú hitelnincs közszférás kedvezményExtra ERE kedvezmény kategória15 ÉVES FIX30.000.000 -Minősített Fogyasztóbarát termék | H151: 0.0954 | I151: 0.0699 | K151: 0.0730621099 | L151: 0.0255
A152: Piaci kamatozású lakáscélú hitel | B152: nincs közszférás kedvezmény | C152: Prémium kedvezmény kategória | D152: 15 ÉVES FIX | E152: 30.000.000 - | F152: Minősített Fogyasztóbarát termék | G152: Piaci kamatozású lakáscélú hitelnincs közszférás kedvezményPrémium kedvezmény kategória15 ÉVES FIX30.000.000 -Minősített Fogyasztóbarát termék | H152: 0.0954 | I152: 0.0699 | K152: 0.0730621099 | L152: 0.0255
A153: Piaci kamatozású lakáscélú hitel | B153: nincs közszférás kedvezmény | C153: 1. kedvezmény kategória | D153: 15 ÉVES FIX | E153: 30.000.000 - | F153: Minősített Fogyasztóbarát termék | G153: Piaci kamatozású lakáscélú hitelnincs közszférás kedvezmény1. kedvezmény kategória15 ÉVES FIX30.000.000 -Minősített Fogyasztóbarát termék | H153: 0.0969 | I153: 0.0709 | K153: 0.07412904661 | L153: 0.026
A154: Piaci kamatozású lakáscélú hitel | B154: nincs közszférás kedvezmény | C154: 2. kedvezmény kategória | D154: 15 ÉVES FIX | E154: 30.000.000 - | F154: Minősített Fogyasztóbarát termék | G154: Piaci kamatozású lakáscélú hitelnincs közszférás kedvezmény2. kedvezmény kategória15 ÉVES FIX30.000.000 -Minősített Fogyasztóbarát termék | H154: 0.0969 | I154: 0.0709 | K154: 0.07412904661 | L154: 0.026
A155: Piaci kamatozású lakáscélú hitel | B155: nincs közszférás kedvezmény | C155: 3. kedvezmény kategória | D155: 15 ÉVES FIX | E155: 30.000.000 - | F155: Minősített Fogyasztóbarát termék | G155: Piaci kamatozású lakáscélú hitelnincs közszférás kedvezmény3. kedvezmény kategória15 ÉVES FIX30.000.000 -Minősített Fogyasztóbarát termék | H155: 0.1018 | I155: 0.0739 | K155: 0.0773357382 | L155: 0.0279
A156: Piaci kamatozású lakáscélú hitel | B156: nincs közszférás kedvezmény | C156: Standard, kedvezmény nélkül | D156: 15 ÉVES FIX | E156: 30.000.000 - | F156: Minősített Fogyasztóbarát termék | G156: Piaci kamatozású lakáscélú hitelnincs közszférás kedvezményStandard, kedvezmény nélkül15 ÉVES FIX30.000.000 -Minősített Fogyasztóbarát termék | H156: 0.1018 | I156: 0.0739 | K156: 0.0773357382 | L156: 0.0279
A157: Piaci kamatozású lakáscélú hitel | B157: közszférás kedvezmény | C157: Extra kedvezmény kategória | D157: 15 ÉVES FIX | E157: 4.000.000 - 4.999.999 | F157: Minősített Fogyasztóbarát termék | G157: Piaci kamatozású lakáscélú hitelközszférás kedvezményExtra kedvezmény kategória15 ÉVES FIX4.000.000 - 4.999.999Minősített Fogyasztóbarát termék | H157: 0.1018 | I157: 0.0714 | K157: 0.07533452185 | L157: 0.0304
A158: Piaci kamatozású lakáscélú hitel | B158: közszférás kedvezmény | C158: 1. kedvezmény kategória | D158: 15 ÉVES FIX | E158: 4.000.000 - 4.999.999 | F158: Minősített Fogyasztóbarát termék | G158: Piaci kamatozású lakáscélú hitelközszférás kedvezmény1. kedvezmény kategória15 ÉVES FIX4.000.000 - 4.999.999Minősített Fogyasztóbarát termék | H158: 0.1018 | I158: 0.0714 | K158: 0.07533452185 | L158: 0.0304
A159: Piaci kamatozású lakáscélú hitel | B159: közszférás kedvezmény | C159: 2. kedvezmény kategória | D159: 15 ÉVES FIX | E159: 4.000.000 - 4.999.999 | F159: Minősített Fogyasztóbarát termék | G159: Piaci kamatozású lakáscélú hitelközszférás kedvezmény2. kedvezmény kategória15 ÉVES FIX4.000.000 - 4.999.999Minősített Fogyasztóbarát termék | H159: 0.1018 | I159: 0.0714 | K159: 0.07533452185 | L159: 0.0304
A160: Piaci kamatozású lakáscélú hitel | B160: közszférás kedvezmény | C160: 3. kedvezmény kategória | D160: 15 ÉVES FIX | E160: 4.000.000 - 4.999.999 | F160: Minősített Fogyasztóbarát termék | G160: Piaci kamatozású lakáscélú hitelközszférás kedvezmény3. kedvezmény kategória15 ÉVES FIX4.000.000 - 4.999.999Minősített Fogyasztóbarát termék | H160: 0.1018 | I160: 0.0714 | K160: 0.07533452185 | L160: 0.0304
A161: Piaci kamatozású lakáscélú hitel | B161: közszférás kedvezmény | C161: Standard, kedvezmény nélkül | D161: 15 ÉVES FIX | E161: 4.000.000 - 4.999.999 | F161: Minősített Fogyasztóbarát termék | G161: Piaci kamatozású lakáscélú hitelközszférás kedvezményStandard, kedvezmény nélkül15 ÉVES FIX4.000.000 - 4.999.999Minősített Fogyasztóbarát termék | H161: 0.1018 | I161: 0.0714 | J161: =IF(AND(A161=cellHitelCel, B161=cellKozszferas, D161=cellKamatPeriodus),I161,"") ->  | K161: 0.07533452185 | L161: 0.0304
A162: Piaci kamatozású lakáscélú hitel | B162: közszférás kedvezmény | C162: Extra kedvezmény kategória | D162: 15 ÉVES FIX | E162: 5.000.000 - 9.999.999 | F162: Minősített Fogyasztóbarát termék | G162: Piaci kamatozású lakáscélú hitelközszférás kedvezményExtra kedvezmény kategória15 ÉVES FIX5.000.000 - 9.999.999Minősített Fogyasztóbarát termék | H162: 0.1018 | I162: 0.071 | K162: 0.07490762542 | L162: =+H162-I162 -> 0.0308
A163: Piaci kamatozású lakáscélú hitel | B163: közszférás kedvezmény | C163: 1. kedvezmény kategória | D163: 15 ÉVES FIX | E163: 5.000.000 - 9.999.999 | F163: Minősített Fogyasztóbarát termék | G163: Piaci kamatozású lakáscélú hitelközszférás kedvezmény1. kedvezmény kategória15 ÉVES FIX5.000.000 - 9.999.999Minősített Fogyasztóbarát termék | H163: 0.1018 | I163: 0.0714 | K163: 0.07533457913 | L163: 0.0304
A164: Piaci kamatozású lakáscélú hitel | B164: közszférás kedvezmény | C164: 2. kedvezmény kategória | D164: 15 ÉVES FIX | E164: 5.000.000 - 9.999.999 | F164: Minősített Fogyasztóbarát termék | G164: Piaci kamatozású lakáscélú hitelközszférás kedvezmény2. kedvezmény kategória15 ÉVES FIX5.000.000 - 9.999.999Minősített Fogyasztóbarát termék | H164: 0.1018 | I164: 0.0714 | K164: 0.07533457913 | L164: 0.0304
A165: Piaci kamatozású lakáscélú hitel | B165: közszférás kedvezmény | C165: 3. kedvezmény kategória | D165: 15 ÉVES FIX | E165: 5.000.000 - 9.999.999 | F165: Minősített Fogyasztóbarát termék | G165: Piaci kamatozású lakáscélú hitelközszférás kedvezmény3. kedvezmény kategória15 ÉVES FIX5.000.000 - 9.999.999Minősített Fogyasztóbarát termék | H165: 0.1018 | I165: 0.0714 | K165: 0.07533457913 | L165: 0.0304
A166: Piaci kamatozású lakáscélú hitel | B166: közszférás kedvezmény | C166: Standard, kedvezmény nélkül | D166: 15 ÉVES FIX | E166: 5.000.000 - 9.999.999 | F166: Minősített Fogyasztóbarát termék | G166: Piaci kamatozású lakáscélú hitelközszférás kedvezményStandard, kedvezmény nélkül15 ÉVES FIX5.000.000 - 9.999.999Minősített Fogyasztóbarát termék | H166: 0.1018 | I166: 0.0714 | K166: 0.07533457913 | L166: 0.0304
A167: Piaci kamatozású lakáscélú hitel | B167: közszférás kedvezmény | C167: Extra kedvezmény kategória | D167: 15 ÉVES FIX | E167: 10.000.000 - 19.999.999 | F167: Minősített Fogyasztóbarát termék | G167: Piaci kamatozású lakáscélú hitelközszférás kedvezményExtra kedvezmény kategória15 ÉVES FIX10.000.000 - 19.999.999Minősített Fogyasztóbarát termék | H167: 0.0984 | I167: 0.0699 | K167: 0.0730621099 | L167: 0.0285
A168: Piaci kamatozású lakáscélú hitel | B168: közszférás kedvezmény | C168: 1. kedvezmény kategória | D168: 15 ÉVES FIX | E168: 10.000.000 - 19.999.999 | F168: Minősített Fogyasztóbarát termék | G168: Piaci kamatozású lakáscélú hitelközszférás kedvezmény1. kedvezmény kategória15 ÉVES FIX10.000.000 - 19.999.999Minősített Fogyasztóbarát termék | H168: 0.0984 | I168: 0.0699 | K168: 0.0730621099 | L168: 0.0285
A169: Piaci kamatozású lakáscélú hitel | B169: közszférás kedvezmény | C169: 2. kedvezmény kategória | D169: 15 ÉVES FIX | E169: 10.000.000 - 19.999.999 | F169: Minősített Fogyasztóbarát termék | G169: Piaci kamatozású lakáscélú hitelközszférás kedvezmény2. kedvezmény kategória15 ÉVES FIX10.000.000 - 19.999.999Minősített Fogyasztóbarát termék | H169: 0.0984 | I169: 0.0699 | K169: 0.0730621099 | L169: 0.0285
A170: Piaci kamatozású lakáscélú hitel | B170: közszférás kedvezmény | C170: 3. kedvezmény kategória | D170: 15 ÉVES FIX | E170: 10.000.000 - 19.999.999 | F170: Minősített Fogyasztóbarát termék | G170: Piaci kamatozású lakáscélú hitelközszférás kedvezmény3. kedvezmény kategória15 ÉVES FIX10.000.000 - 19.999.999Minősített Fogyasztóbarát termék | H170: 0.1018 | I170: 0.0714 | K170: 0.0746629317 | L170: 0.0304
A171: Piaci kamatozású lakáscélú hitel | B171: közszférás kedvezmény | C171: Standard, kedvezmény nélkül | D171: 15 ÉVES FIX | E171: 10.000.000 - 19.999.999 | F171: Minősített Fogyasztóbarát termék | G171: Piaci kamatozású lakáscélú hitelközszférás kedvezményStandard, kedvezmény nélkül15 ÉVES FIX10.000.000 - 19.999.999Minősített Fogyasztóbarát termék | H171: 0.1018 | I171: 0.0714 | K171: 0.0746629317 | L171: 0.0304
A172: Piaci kamatozású lakáscélú hitel | B172: közszférás kedvezmény | C172: Extra kedvezmény kategória | D172: 15 ÉVES FIX | E172: 20.000.000 - 29.999.999 | F172: Minősített Fogyasztóbarát termék | G172: Piaci kamatozású lakáscélú hitelközszférás kedvezményExtra kedvezmény kategória15 ÉVES FIX20.000.000 - 29.999.999Minősített Fogyasztóbarát termék | H172: 0.0964 | I172: 0.0699 | K172: 0.0730621099 | L172: 0.0265
A173: Piaci kamatozású lakáscélú hitel | B173: közszférás kedvezmény | C173: 1. kedvezmény kategória | D173: 15 ÉVES FIX | E173: 20.000.000 - 29.999.999 | F173: Minősített Fogyasztóbarát termék | G173: Piaci kamatozású lakáscélú hitelközszférás kedvezmény1. kedvezmény kategória15 ÉVES FIX20.000.000 - 29.999.999Minősített Fogyasztóbarát termék | H173: 0.0964 | I173: 0.0699 | K173: 0.0730621099 | L173: 0.0265
A174: Piaci kamatozású lakáscélú hitel | B174: közszférás kedvezmény | C174: 2. kedvezmény kategória | D174: 15 ÉVES FIX | E174: 20.000.000 - 29.999.999 | F174: Minősített Fogyasztóbarát termék | G174: Piaci kamatozású lakáscélú hitelközszférás kedvezmény2. kedvezmény kategória15 ÉVES FIX20.000.000 - 29.999.999Minősített Fogyasztóbarát termék | H174: 0.0964 | I174: 0.0699 | K174: 0.0730621099 | L174: 0.0265
A175: Piaci kamatozású lakáscélú hitel | B175: közszférás kedvezmény | C175: 3. kedvezmény kategória | D175: 15 ÉVES FIX | E175: 20.000.000 - 29.999.999 | F175: Minősített Fogyasztóbarát termék | G175: Piaci kamatozású lakáscélú hitelközszférás kedvezmény3. kedvezmény kategória15 ÉVES FIX20.000.000 - 29.999.999Minősített Fogyasztóbarát termék | H175: 0.1018 | I175: 0.0714 | K175: 0.0746629317 | L175: 0.0304
A176: Piaci kamatozású lakáscélú hitel | B176: közszférás kedvezmény | C176: Standard, kedvezmény nélkül | D176: 15 ÉVES FIX | E176: 20.000.000 - 29.999.999 | F176: Minősített Fogyasztóbarát termék | G176: Piaci kamatozású lakáscélú hitelközszférás kedvezményStandard, kedvezmény nélkül15 ÉVES FIX20.000.000 - 29.999.999Minősített Fogyasztóbarát termék | H176: 0.1018 | I176: 0.0714 | K176: 0.0746629317 | L176: 0.0304
A177: Piaci kamatozású lakáscélú hitel | B177: közszférás kedvezmény | C177: Extra kedvezmény kategória | D177: 15 ÉVES FIX | E177: 30.000.000 - | F177: Minősített Fogyasztóbarát termék | G177: Piaci kamatozású lakáscélú hitelközszférás kedvezményExtra kedvezmény kategória15 ÉVES FIX30.000.000 -Minősített Fogyasztóbarát termék | H177: 0.0954 | I177: 0.0699 | K177: 0.0730621099 | L177: 0.0255
A178: Piaci kamatozású lakáscélú hitel | B178: közszférás kedvezmény | C178: 1. kedvezmény kategória | D178: 15 ÉVES FIX | E178: 30.000.000 - | F178: Minősített Fogyasztóbarát termék | G178: Piaci kamatozású lakáscélú hitelközszférás kedvezmény1. kedvezmény kategória15 ÉVES FIX30.000.000 -Minősített Fogyasztóbarát termék | H178: 0.0954 | I178: 0.0699 | K178: 0.0730621099 | L178: 0.0255
A179: Piaci kamatozású lakáscélú hitel | B179: közszférás kedvezmény | C179: 2. kedvezmény kategória | D179: 15 ÉVES FIX | E179: 30.000.000 - | F179: Minősített Fogyasztóbarát termék | G179: Piaci kamatozású lakáscélú hitelközszférás kedvezmény2. kedvezmény kategória15 ÉVES FIX30.000.000 -Minősített Fogyasztóbarát termék | H179: 0.0954 | I179: 0.0699 | K179: 0.0730621099 | L179: 0.0255
A180: Piaci kamatozású lakáscélú hitel | B180: közszférás kedvezmény | C180: 3. kedvezmény kategória | D180: 15 ÉVES FIX | E180: 30.000.000 - | F180: Minősített Fogyasztóbarát termék | G180: Piaci kamatozású lakáscélú hitelközszférás kedvezmény3. kedvezmény kategória15 ÉVES FIX30.000.000 -Minősített Fogyasztóbarát termék | H180: 0.1018 | I180: 0.0714 | K180: 0.0746629317 | L180: 0.0304
A181: Piaci kamatozású lakáscélú hitel | B181: közszférás kedvezmény | C181: Standard, kedvezmény nélkül | D181: 15 ÉVES FIX | E181: 30.000.000 - | F181: Minősített Fogyasztóbarát termék | G181: Piaci kamatozású lakáscélú hitelközszférás kedvezményStandard, kedvezmény nélkül15 ÉVES FIX30.000.000 -Minősített Fogyasztóbarát termék | H181: 0.1018 | I181: 0.0714 | K181: 0.0746629317 | L181: 0.0304
A182: Piaci kamatozású lakáscélú hitel | B182: nincs közszférás kedvezmény | C182: Extra kedvezmény kategória | D182: 20 ÉVES FIX | E182: 4.000.000 - 4.999.999 | F182: Minősített Fogyasztóbarát termék | G182: Piaci kamatozású lakáscélú hitelnincs közszférás kedvezményExtra kedvezmény kategória20 ÉVES FIX4.000.000 - 4.999.999Minősített Fogyasztóbarát termék | H182: 0.069 | I182: 0.069 | K182: 0.07277577269 | L182: 0
A183: Piaci kamatozású lakáscélú hitel | B183: nincs közszférás kedvezmény | C183: Extra ERE kedvezmény kategória | D183: 20 ÉVES FIX | E183: 4.000.000 - 4.999.999 | F183: Minősített Fogyasztóbarát termék | G183: Piaci kamatozású lakáscélú hitelnincs közszférás kedvezményExtra ERE kedvezmény kategória20 ÉVES FIX4.000.000 - 4.999.999Minősített Fogyasztóbarát termék | H183: 0.069 | I183: 0.069 | K183: 0.07277577269 | L183: 0
A184: Piaci kamatozású lakáscélú hitel | B184: nincs közszférás kedvezmény | C184: Prémium kedvezmény kategória | D184: 20 ÉVES FIX | E184: 4.000.000 - 4.999.999 | F184: Minősített Fogyasztóbarát termék | G184: Piaci kamatozású lakáscélú hitelnincs közszférás kedvezményPrémium kedvezmény kategória20 ÉVES FIX4.000.000 - 4.999.999Minősített Fogyasztóbarát termék | H184: 0.069 | I184: 0.069 | K184: 0.07277577269 | L184: 0
A185: Piaci kamatozású lakáscélú hitel | B185: nincs közszférás kedvezmény | C185: 1. kedvezmény kategória | D185: 20 ÉVES FIX | E185: 4.000.000 - 4.999.999 | F185: Minősített Fogyasztóbarát termék | G185: Piaci kamatozású lakáscélú hitelnincs közszférás kedvezmény1. kedvezmény kategória20 ÉVES FIX4.000.000 - 4.999.999Minősített Fogyasztóbarát termék | H185: 0.069 | I185: 0.069 | K185: 0.07277577269 | L185: 0
A186: Piaci kamatozású lakáscélú hitel | B186: nincs közszférás kedvezmény | C186: 2. kedvezmény kategória | D186: 20 ÉVES FIX | E186: 4.000.000 - 4.999.999 | F186: Minősített Fogyasztóbarát termék | G186: Piaci kamatozású lakáscélú hitelnincs közszférás kedvezmény2. kedvezmény kategória20 ÉVES FIX4.000.000 - 4.999.999Minősített Fogyasztóbarát termék | H186: 0.069 | I186: 0.069 | K186: 0.07277577269 | L186: 0
A187: Piaci kamatozású lakáscélú hitel | B187: nincs közszférás kedvezmény | C187: 3. kedvezmény kategória | D187: 20 ÉVES FIX | E187: 4.000.000 - 4.999.999 | F187: Minősített Fogyasztóbarát termék | G187: Piaci kamatozású lakáscélú hitelnincs közszférás kedvezmény3. kedvezmény kategória20 ÉVES FIX4.000.000 - 4.999.999Minősített Fogyasztóbarát termék | H187: 0.069 | I187: 0.069 | K187: 0.07277577269 | L187: 0
A188: Piaci kamatozású lakáscélú hitel | B188: nincs közszférás kedvezmény | C188: Standard, kedvezmény nélkül | D188: 20 ÉVES FIX | E188: 4.000.000 - 4.999.999 | F188: Minősített Fogyasztóbarát termék | G188: Piaci kamatozású lakáscélú hitelnincs közszférás kedvezményStandard, kedvezmény nélkül20 ÉVES FIX4.000.000 - 4.999.999Minősített Fogyasztóbarát termék | H188: 0.069 | I188: 0.069 | K188: 0.07277577269 | L188: 0
A189: Piaci kamatozású lakáscélú hitel | B189: nincs közszférás kedvezmény | C189: Extra kedvezmény kategória | D189: 20 ÉVES FIX | E189: 5.000.000 - 9.999.999 | F189: Minősített Fogyasztóbarát termék | G189: Piaci kamatozású lakáscélú hitelnincs közszférás kedvezményExtra kedvezmény kategória20 ÉVES FIX5.000.000 - 9.999.999Minősített Fogyasztóbarát termék | H189: 0.069 | I189: 0.069 | K189: 0.07277577902 | L189: 0
A190: Piaci kamatozású lakáscélú hitel | B190: nincs közszférás kedvezmény | C190: Extra ERE kedvezmény kategória | D190: 20 ÉVES FIX | E190: 5.000.000 - 9.999.999 | F190: Minősített Fogyasztóbarát termék | G190: Piaci kamatozású lakáscélú hitelnincs közszférás kedvezményExtra ERE kedvezmény kategória20 ÉVES FIX5.000.000 - 9.999.999Minősített Fogyasztóbarát termék | H190: 0.069 | I190: 0.069 | K190: 0.07277577902 | L190: 0
A191: Piaci kamatozású lakáscélú hitel | B191: nincs közszférás kedvezmény | C191: Prémium kedvezmény kategória | D191: 20 ÉVES FIX | E191: 5.000.000 - 9.999.999 | F191: Minősített Fogyasztóbarát termék | G191: Piaci kamatozású lakáscélú hitelnincs közszférás kedvezményPrémium kedvezmény kategória20 ÉVES FIX5.000.000 - 9.999.999Minősített Fogyasztóbarát termék | H191: 0.069 | I191: 0.069 | K191: 0.07277577902 | L191: 0
A192: Piaci kamatozású lakáscélú hitel | B192: nincs közszférás kedvezmény | C192: 1. kedvezmény kategória | D192: 20 ÉVES FIX | E192: 5.000.000 - 9.999.999 | F192: Minősített Fogyasztóbarát termék | G192: Piaci kamatozású lakáscélú hitelnincs közszférás kedvezmény1. kedvezmény kategória20 ÉVES FIX5.000.000 - 9.999.999Minősített Fogyasztóbarát termék | H192: 0.069 | I192: 0.069 | K192: 0.07277577902 | L192: 0
A193: Piaci kamatozású lakáscélú hitel | B193: nincs közszférás kedvezmény | C193: 2. kedvezmény kategória | D193: 20 ÉVES FIX | E193: 5.000.000 - 9.999.999 | F193: Minősített Fogyasztóbarát termék | G193: Piaci kamatozású lakáscélú hitelnincs közszférás kedvezmény2. kedvezmény kategória20 ÉVES FIX5.000.000 - 9.999.999Minősített Fogyasztóbarát termék | H193: 0.069 | I193: 0.069 | K193: 0.07277577902 | L193: 0
A194: Piaci kamatozású lakáscélú hitel | B194: nincs közszférás kedvezmény | C194: 3. kedvezmény kategória | D194: 20 ÉVES FIX | E194: 5.000.000 - 9.999.999 | F194: Minősített Fogyasztóbarát termék | G194: Piaci kamatozású lakáscélú hitelnincs közszférás kedvezmény3. kedvezmény kategória20 ÉVES FIX5.000.000 - 9.999.999Minősített Fogyasztóbarát termék | H194: 0.069 | I194: 0.069 | K194: 0.07277577902 | L194: 0
A195: Piaci kamatozású lakáscélú hitel | B195: nincs közszférás kedvezmény | C195: Standard, kedvezmény nélkül | D195: 20 ÉVES FIX | E195: 5.000.000 - 9.999.999 | F195: Minősített Fogyasztóbarát termék | G195: =CONCATENATE(A195,B195,C195,D195,E195,F195) -> Piaci kamatozású lakáscélú hitelnincs közszférás kedvezményStandard, kedvezmény nélkül20 ÉVES FIX5.000.000 - 9.999.999Minősített Fogyasztóbarát termék | H195: 0.069 | I195: 0.069 | K195: 0.07277577902 | L195: 0
A196: Piaci kamatozású lakáscélú hitel | B196: nincs közszférás kedvezmény | C196: Extra kedvezmény kategória | D196: 20 ÉVES FIX | E196: 10.000.000 - 19.999.999 | F196: Minősített Fogyasztóbarát termék | G196: Piaci kamatozású lakáscélú hitelnincs közszférás kedvezményExtra kedvezmény kategória20 ÉVES FIX10.000.000 - 19.999.999Minősített Fogyasztóbarát termék | H196: 0.0677 | I196: 0.0677 | K196: 0.0707185415 | L196: 0
A197: Piaci kamatozású lakáscélú hitel | B197: nincs közszférás kedvezmény | C197: Extra ERE kedvezmény kategória | D197: 20 ÉVES FIX | E197: 10.000.000 - 19.999.999 | F197: Minősített Fogyasztóbarát termék | G197: Piaci kamatozású lakáscélú hitelnincs közszférás kedvezményExtra ERE kedvezmény kategória20 ÉVES FIX10.000.000 - 19.999.999Minősített Fogyasztóbarát termék | H197: 0.0677 | I197: 0.0677 | K197: 0.0707185415 | L197: 0
A198: Piaci kamatozású lakáscélú hitel | B198: nincs közszférás kedvezmény | C198: Prémium kedvezmény kategória | D198: 20 ÉVES FIX | E198: 10.000.000 - 19.999.999 | F198: Minősített Fogyasztóbarát termék | G198: Piaci kamatozású lakáscélú hitelnincs közszférás kedvezményPrémium kedvezmény kategória20 ÉVES FIX10.000.000 - 19.999.999Minősített Fogyasztóbarát termék | H198: 0.0677 | I198: 0.0677 | K198: 0.0707185415 | L198: 0
A199: Piaci kamatozású lakáscélú hitel | B199: nincs közszférás kedvezmény | C199: 1. kedvezmény kategória | D199: 20 ÉVES FIX | E199: 10.000.000 - 19.999.999 | F199: Minősített Fogyasztóbarát termék | G199: Piaci kamatozású lakáscélú hitelnincs közszférás kedvezmény1. kedvezmény kategória20 ÉVES FIX10.000.000 - 19.999.999Minősített Fogyasztóbarát termék | H199: 0.0687 | I199: 0.0687 | K199: 0.07178323149 | L199: 0
A200: Piaci kamatozású lakáscélú hitel | B200: nincs közszférás kedvezmény | C200: 2. kedvezmény kategória | D200: 20 ÉVES FIX | E200: 10.000.000 - 19.999.999 | F200: Minősített Fogyasztóbarát termék | G200: Piaci kamatozású lakáscélú hitelnincs közszférás kedvezmény2. kedvezmény kategória20 ÉVES FIX10.000.000 - 19.999.999Minősített Fogyasztóbarát termék | H200: 0.0687 | I200: 0.0687 | K200: 0.07178323149 | L200: 0
... 1281 more rows

Sheet Calc2_tőkelefutáshoz (hidden)
A5: Hitelösszeg | C5: =+cellHitelOsszeg -> 12000000 | E5: THM % | H5: ='THM-Calc'!F15 -> 0.07014912521
A6: Futamidő (hónap) | C6: =+cellFutamido -> 240
A7: Ügylet alapkamata | C7: =Árazás!$N$8 -> 0.0674
A8: HITEL PLUSZ (visszatérített költségek kamatfelára) | C8: 0
A9: Teljes kamat (éves) | C9: =+Calc!C9 -> 0.0674
A10: Folyósítási jutalék (egyszeri) | C10: =+cellFolyositasiJutalek -> 0 | E10: Törlesztőrészlet | H10: =VLOOKUP(C23+1,A35:G378,7,0) -> 91172
A11: min. | C11: 0
A12: max. | C12: =+IF(C10=0.15%,100000,0) -> 0 | E12: Hiteltörlesztés hitelfedezeti biztosítással A csomag esetén | H12: =$H$10+($C$5*0.0008366) -> 101211.2
A13: összege | C13: =MIN(IF(C5*C10<C11,C11,IF(OR(C12=0,C12="",C12=" "),C5*C10,IF(C5*C10>C12,C12,C5*C10))),100000) -> 0 | E13: Hiteltörlesztés hitelfedezeti biztosítással B csomag esetén | H13: =$H$10+($C$5*0.0005082) -> 97270.4
A14: fizetendő összege | C14: =IF(C5*C10<C11,C11,IF(OR(C12=0,C12="",C12=" "),C5*C10,IF(C5*C10>C12,C12,C5*C10))) -> 0 | E14: Hiteltörlesztés hitelfedezeti biztosítással C csomag esetén | H14: =$H$10+($C$5*0.0003738) -> 95657.6
A15: Értékbecslés díja | C15: =+Calc!C15 -> 0
A16: Helyszíni szemle díja | C16: =+Calc!C16 -> 0 | E16: Esemény | F16: =+Segéd!B8 -> Tájékoztatás
A17: Ingatlan-nyilvántartási eljárás díja | C17: =+Calc!C17 -> 12600 | E17: Hitel célja: | F17: =+Segéd!B9 -> Piaci kamatozású lakáscélú hitel
A18: Tulajdoni lap lekérdezés díja | C18: =+Calc!C18 -> 0 | E18: Hitel típusa: | F18: =+Segéd!B11 -> Minősített Fogyasztóbarát termék - vásárlásra
A19: Térképmásolat lekérdezés díja | C19: =+Calc!C19 -> 0 | E19: Közszféra: | F19: =+Segéd!B13 -> nincs közszférás kedvezmény
A20: Hitelbírálati díj | C20: =+Calc!C20 -> 0 | E20: Kedvezménykategória: | F20: =+Segéd!B14 -> 2. kedvezmény kategória
A21: Számlavezetés használati költség | C21: =+Calc!C21 -> 325 | E21: Kamatperiódus: | F21: =+Segéd!B10 -> 10 ÉVES kamatperiódus
A23: Rendelkezésre tartási idő | C23: =+Calc!C23 -> 0
A24: Rendelkezésre tartási jutalék | C24: 0.01
A25: Fizetési gyakoriság | C25: havi
A27: Hitel teljes díja | C27: =C14+C15+C16+C17+C18+C19+(C21*C6)+D456+F456 -> 9972056
A28: Teljes visszafizetendő összeg | C28: =C5+C27 -> 21972056
H29: Törlesztőrészlet alakulása kamatváltozás esetén
A30: A kedvezmény kategóriák részletes feltételei a Lakossági Hitel Hirdetményben és az Ügyféltájékoztatókban olvashatók.
D31: 1 | H31: Kamatváltozás: | I31: 0.02
E32: =IF(F31>C5*0.1,"Figyelem! A teljes visszatérített összeg nem haladhatja meg a hitelösszeg 10%-át! Kérem csökkentse valamely visszatérített összeget!"," ") ->  | H32: Új kamat | I32: =C9+I31 -> 0.0874
H33: Új THM | I33: ='THM-Calc'!L22 -> 0.09514912521
A34: Időszak | B34: Tőkeegyenleg | C34: Tőke törlesztés | D34: Kamat törlesztés | E34: Kamat + tőke összege | F34: Rendelkezésre tartási jutalék | G34: Teljes törlesztő-részlet | H34: Törlesztő-részlet kamatváltozás esetén | J34: Kamat törlesztés évente | K34: Törlesztőrészlet kamatváltozás esetén évente
A35: 0 | B35: =C5 -> 12000000
A36: 1 | B36: =B35-C36 -> 11976228 | C36: =E36-D36 -> 23772 | D36: =ROUND(IF(A36>$C$23,B35*$C$9*30/360,0),0) -> 67400 | E36: =ROUND(IF(A36>$C$23,(IF(A36>=$C$6,B35+D36,PMT($C$9/12,$C$6-$C$23,-$B$35))),D36),0) -> 91172 | F36: =ROUND(IF(A36>$C$23,0,$B$35*$C$24/360*30),0) -> 0 | G36: =E36+F36 -> 91172 | I36: =ROUND(IF(A36>$C$23,(IF(A36>$C$6,0,PMT($I$32/12,$C$6-$C$23,-$B$35))),G36),0) -> 105969
A37: 2 | B37: 11952322 | C37: =E37-D37 -> 23906 | D37: =ROUND(IF(A37>$C$23,B36*$C$9*30/360,0),0) -> 67266 | E37: 91172 | F37: =ROUND(IF(A37>$C$23,0,$B$35*$C$24/360*30),0) -> 0 | G37: =E37+F37 -> 91172 | I37: =ROUND(IF(A37>$C$23,(IF(A37>$C$6,0,PMT($I$32/12,$C$6-$C$23,-$B$35))),G37),0) -> 105969
A38: 3 | B38: 11928282 | C38: 24040 | D38: 67132 | E38: 91172 | F38: 0 | G38: 91172 | I38: 105969
A39: 4 | B39: 11904107 | C39: 24175 | D39: 66997 | E39: 91172 | F39: 0 | G39: 91172 | I39: 105969
A40: 5 | B40: 11879796 | C40: 24311 | D40: 66861 | E40: 91172 | F40: 0 | G40: 91172 | I40: 105969
A41: 6 | B41: 11855349 | C41: 24447 | D41: 66725 | E41: 91172 | F41: 0 | G41: 91172 | I41: 105969
A42: 7 | B42: 11830765 | C42: 24584 | D42: 66588 | E42: 91172 | F42: 0 | G42: 91172 | I42: 105969
A43: 8 | B43: 11806042 | C43: 24723 | D43: 66449 | E43: 91172 | F43: 0 | G43: 91172 | I43: 105969
A44: 9 | B44: 11781181 | C44: 24861 | D44: 66311 | E44: 91172 | F44: 0 | G44: 91172 | I44: 105969
A45: 10 | B45: 11756180 | C45: 25001 | D45: 66171 | E45: 91172 | F45: 0 | G45: 91172 | I45: 105969
A46: 11 | B46: 11731039 | C46: 25141 | D46: 66031 | E46: 91172 | F46: 0 | G46: 91172 | I46: 105969
A47: 12 | B47: 11705756 | C47: 25283 | D47: 65889 | E47: 91172 | F47: 0 | G47: 91172 | I47: 105969 | J47: =SUM(D36:D47) -> 799820 | K47: =SUM(I36:I47) -> 1271628
A48: 13 | B48: 11680331 | C48: 25425 | D48: 65747 | E48: 91172 | F48: 0 | G48: 91172 | I48: 105969
A49: 14 | B49: 11654764 | C49: 25567 | D49: 65605 | E49: 91172 | F49: 0 | G49: 91172 | I49: 105969
A50: 15 | B50: 11629053 | C50: 25711 | D50: 65461 | E50: 91172 | F50: 0 | G50: 91172 | I50: 105969
A51: 16 | B51: 11603198 | C51: 25855 | D51: 65317 | E51: 91172 | F51: 0 | G51: 91172 | I51: 105969
A52: 17 | B52: 11577197 | C52: 26001 | D52: 65171 | E52: 91172 | F52: 0 | G52: 91172 | I52: 105969
A53: 18 | B53: 11551050 | C53: 26147 | D53: 65025 | E53: 91172 | F53: 0 | G53: 91172 | I53: 105969
A54: 19 | B54: 11524756 | C54: 26294 | D54: 64878 | E54: 91172 | F54: 0 | G54: 91172 | I54: 105969
A55: 20 | B55: 11498315 | C55: 26441 | D55: 64731 | E55: 91172 | F55: 0 | G55: 91172 | I55: 105969
A56: 21 | B56: 11471725 | C56: 26590 | D56: 64582 | E56: 91172 | F56: 0 | G56: 91172 | I56: 105969
A57: 22 | B57: 11444986 | C57: 26739 | D57: 64433 | E57: 91172 | F57: 0 | G57: 91172 | I57: 105969
A58: 23 | B58: 11418097 | C58: 26889 | D58: 64283 | E58: 91172 | F58: 0 | G58: 91172 | I58: 105969
A59: 24 | B59: 11391057 | C59: 27040 | D59: 64132 | E59: 91172 | F59: 0 | G59: 91172 | I59: 105969 | J59: =SUM(D48:D59) -> 779365 | K59: =SUM(I48:I59) -> 1271628
A60: 25 | B60: 11363865 | C60: 27192 | D60: 63980 | E60: 91172 | F60: 0 | G60: 91172 | I60: 105969
A61: 26 | B61: 11336520 | C61: 27345 | D61: 63827 | E61: 91172 | F61: 0 | G61: 91172 | I61: 105969
A62: 27 | B62: 11309021 | C62: 27499 | D62: 63673 | E62: 91172 | F62: 0 | G62: 91172 | I62: 105969
A63: 28 | B63: 11281368 | C63: 27653 | D63: 63519 | E63: 91172 | F63: 0 | G63: 91172 | I63: 105969
A64: 29 | B64: 11253560 | C64: 27808 | D64: 63364 | E64: 91172 | F64: 0 | G64: 91172 | I64: 105969
A65: 30 | B65: 11225595 | C65: 27965 | D65: 63207 | E65: 91172 | F65: 0 | G65: 91172 | I65: 105969
A66: 31 | B66: 11197473 | C66: 28122 | D66: 63050 | E66: 91172 | F66: 0 | G66: 91172 | I66: 105969
A67: 32 | B67: 11169193 | C67: 28280 | D67: 62892 | E67: 91172 | F67: 0 | G67: 91172 | I67: 105969
A68: 33 | B68: 11140755 | C68: 28438 | D68: 62734 | E68: 91172 | F68: 0 | G68: 91172 | I68: 105969
A69: 34 | B69: 11112157 | C69: 28598 | D69: 62574 | E69: 91172 | F69: 0 | G69: 91172 | I69: 105969
A70: 35 | B70: 11083398 | C70: 28759 | D70: 62413 | E70: 91172 | F70: 0 | G70: 91172 | I70: 105969
A71: 36 | B71: 11054478 | C71: 28920 | D71: 62252 | E71: 91172 | F71: 0 | G71: 91172 | I71: 105969 | J71: =SUM(D60:D71) -> 757485 | K71: =SUM(I60:I71) -> 1271628
A72: 37 | B72: 11025395 | C72: 29083 | D72: 62089 | E72: 91172 | F72: 0 | G72: 91172 | I72: 105969
A73: 38 | B73: 10996149 | C73: 29246 | D73: 61926 | E73: 91172 | F73: 0 | G73: 91172 | I73: 105969
A74: 39 | B74: 10966739 | C74: 29410 | D74: 61762 | E74: 91172 | F74: 0 | G74: 91172 | I74: 105969
A75: 40 | B75: 10937164 | C75: 29575 | D75: 61597 | E75: 91172 | F75: 0 | G75: 91172 | I75: 105969
A76: 41 | B76: 10907422 | C76: 29742 | D76: 61430 | E76: 91172 | F76: 0 | G76: 91172 | I76: 105969
A77: 42 | B77: 10877513 | C77: 29909 | D77: 61263 | E77: 91172 | F77: 0 | G77: 91172 | I77: 105969
A78: 43 | B78: 10847436 | C78: 30077 | D78: 61095 | E78: 91172 | F78: 0 | G78: 91172 | I78: 105969
A79: 44 | B79: 10817190 | C79: 30246 | D79: 60926 | E79: 91172 | F79: 0 | G79: 91172 | I79: 105969
A80: 45 | B80: 10786775 | C80: 30415 | D80: 60757 | E80: 91172 | F80: 0 | G80: 91172 | I80: 105969
A81: 46 | B81: 10756189 | C81: 30586 | D81: 60586 | E81: 91172 | F81: 0 | G81: 91172 | I81: 105969
A82: 47 | B82: 10725431 | C82: 30758 | D82: 60414 | E82: 91172 | F82: 0 | G82: 91172 | I82: 105969
A83: 48 | B83: 10694500 | C83: 30931 | D83: 60241 | E83: 91172 | F83: 0 | G83: 91172 | I83: 105969 | J83: =SUM(D72:D83) -> 734086 | K83: =SUM(I72:I83) -> 1271628
A84: 49 | B84: 10663395 | C84: 31105 | D84: 60067 | E84: 91172 | F84: 0 | G84: 91172 | I84: 105969
A85: 50 | B85: 10632116 | C85: 31279 | D85: 59893 | E85: 91172 | F85: 0 | G85: 91172 | I85: 105969
A86: 51 | B86: 10600661 | C86: 31455 | D86: 59717 | E86: 91172 | F86: 0 | G86: 91172 | I86: 105969
A87: 52 | B87: 10569029 | C87: 31632 | D87: 59540 | E87: 91172 | F87: 0 | G87: 91172 | I87: 105969
A88: 53 | B88: 10537220 | C88: 31809 | D88: 59363 | E88: 91172 | F88: 0 | G88: 91172 | I88: 105969
A89: 54 | B89: 10505232 | C89: 31988 | D89: 59184 | E89: 91172 | F89: 0 | G89: 91172 | I89: 105969
A90: 55 | B90: 10473064 | C90: 32168 | D90: 59004 | E90: 91172 | F90: 0 | G90: 91172 | I90: 105969
A91: 56 | B91: 10440716 | C91: 32348 | D91: 58824 | E91: 91172 | F91: 0 | G91: 91172 | I91: 105969
A92: 57 | B92: 10408186 | C92: 32530 | D92: 58642 | E92: 91172 | F92: 0 | G92: 91172 | I92: 105969
A93: 58 | B93: 10375473 | C93: 32713 | D93: 58459 | E93: 91172 | F93: 0 | G93: 91172 | I93: 105969
A94: 59 | B94: 10342577 | C94: 32896 | D94: 58276 | E94: 91172 | F94: 0 | G94: 91172 | I94: 105969
A95: 60 | B95: 10309496 | C95: 33081 | D95: 58091 | E95: 91172 | F95: 0 | G95: 91172 | I95: 105969 | J95: =SUM(D84:D95) -> 709060 | K95: =SUM(I84:I95) -> 1271628
A96: 61 | B96: 10276229 | C96: 33267 | D96: 57905 | E96: 91172 | F96: 0 | G96: 91172 | I96: 105969
A97: 62 | B97: 10242775 | C97: 33454 | D97: 57718 | E97: 91172 | F97: 0 | G97: 91172 | I97: 105969
A98: 63 | B98: 10209133 | C98: 33642 | D98: 57530 | E98: 91172 | F98: 0 | G98: 91172 | I98: 105969
A99: 64 | B99: 10175302 | C99: 33831 | D99: 57341 | E99: 91172 | F99: 0 | G99: 91172 | I99: 105969
A100: 65 | B100: =B99-C100 -> 10141281 | C100: 34021 | D100: 57151 | E100: =ROUND(IF(A100>$C$23,(IF(A100>=$C$6,B99+D100,PMT($C$9/12,$C$6-$C$23,-$B$35))),D100),0) -> 91172 | F100: 0 | G100: 91172 | I100: 105969
A101: 66 | B101: 10107069 | C101: =E101-D101 -> 34212 | D101: =ROUND(IF(A101>$C$23,B100*$C$9*30/360,0),0) -> 56960 | E101: 91172 | F101: =ROUND(IF(A101>$C$23,0,$B$35*$C$24/360*30),0) -> 0 | G101: =E101+F101 -> 91172 | I101: =ROUND(IF(A101>$C$23,(IF(A101>$C$6,0,PMT($I$32/12,$C$6-$C$23,-$B$35))),G101),0) -> 105969
A102: 67 | B102: 10072665 | C102: 34404 | D102: 56768 | E102: 91172 | F102: 0 | G102: 91172 | I102: 105969
A103: 68 | B103: 10038068 | C103: 34597 | D103: 56575 | E103: 91172 | F103: 0 | G103: 91172 | I103: 105969
A104: 69 | B104: 10003276 | C104: 34792 | D104: 56380 | E104: 91172 | F104: 0 | G104: 91172 | I104: 105969
A105: 70 | B105: 9968289 | C105: 34987 | D105: 56185 | E105: 91172 | F105: 0 | G105: 91172 | I105: 105969
A106: 71 | B106: 9933106 | C106: 35183 | D106: 55989 | E106: 91172 | F106: 0 | G106: 91172 | I106: 105969
A107: 72 | B107: 9897725 | C107: 35381 | D107: 55791 | E107: 91172 | F107: 0 | G107: 91172 | I107: 105969 | J107: =SUM(D96:D107) -> 682293 | K107: =SUM(I96:I107) -> 1271628
A108: 73 | B108: 9862145 | C108: 35580 | D108: 55592 | E108: 91172 | F108: 0 | G108: 91172 | I108: 105969
A109: 74 | B109: 9826365 | C109: 35780 | D109: 55392 | E109: 91172 | F109: 0 | G109: 91172 | I109: 105969
A110: 75 | B110: 9790384 | C110: 35981 | D110: 55191 | E110: 91172 | F110: 0 | G110: 91172 | I110: 105969
A111: 76 | B111: 9754201 | C111: 36183 | D111: 54989 | E111: 91172 | F111: 0 | G111: 91172 | I111: 105969
A112: 77 | B112: 9717815 | C112: 36386 | D112: 54786 | E112: 91172 | F112: 0 | G112: 91172 | I112: 105969
A113: 78 | B113: 9681225 | C113: 36590 | D113: 54582 | E113: 91172 | F113: 0 | G113: 91172 | I113: 105969
A114: 79 | B114: 9644429 | C114: 36796 | D114: 54376 | E114: 91172 | F114: 0 | G114: 91172 | I114: 105969
A115: 80 | B115: 9607427 | C115: 37002 | D115: 54170 | E115: 91172 | F115: 0 | G115: 91172 | I115: 105969
A116: 81 | B116: 9570217 | C116: 37210 | D116: 53962 | E116: 91172 | F116: 0 | G116: 91172 | I116: 105969
A117: 82 | B117: 9532798 | C117: 37419 | D117: 53753 | E117: 91172 | F117: 0 | G117: 91172 | I117: 105969
A118: 83 | B118: 9495169 | C118: 37629 | D118: 53543 | E118: 91172 | F118: 0 | G118: 91172 | I118: 105969
A119: 84 | B119: 9457328 | C119: 37841 | D119: 53331 | E119: 91172 | F119: 0 | G119: 91172 | I119: 105969 | J119: =SUM(D108:D119) -> 653667 | K119: =SUM(I108:I119) -> 1271628
A120: 85 | B120: 9419275 | C120: 38053 | D120: 53119 | E120: 91172 | F120: 0 | G120: 91172 | I120: 105969
A121: 86 | B121: 9381008 | C121: 38267 | D121: 52905 | E121: 91172 | F121: 0 | G121: 91172 | I121: 105969
A122: 87 | B122: 9342526 | C122: 38482 | D122: 52690 | E122: 91172 | F122: 0 | G122: 91172 | I122: 105969
A123: 88 | B123: 9303828 | C123: 38698 | D123: 52474 | E123: 91172 | F123: 0 | G123: 91172 | I123: 105969
A124: 89 | B124: 9264913 | C124: 38915 | D124: 52257 | E124: 91172 | F124: 0 | G124: 91172 | I124: 105969
A125: 90 | B125: 9225779 | C125: 39134 | D125: 52038 | E125: 91172 | F125: 0 | G125: 91172 | I125: 105969
A126: 91 | B126: 9186425 | C126: 39354 | D126: 51818 | E126: 91172 | F126: 0 | G126: 91172 | I126: 105969
A127: 92 | B127: 9146850 | C127: 39575 | D127: 51597 | E127: 91172 | F127: 0 | G127: 91172 | I127: 105969
A128: 93 | B128: 9107053 | C128: 39797 | D128: 51375 | E128: 91172 | F128: 0 | G128: 91172 | I128: 105969
A129: 94 | B129: 9067032 | C129: 40021 | D129: 51151 | E129: 91172 | F129: 0 | G129: 91172 | I129: 105969
A130: 95 | B130: 9026786 | C130: 40246 | D130: 50926 | E130: 91172 | F130: 0 | G130: 91172 | I130: 105969
A131: 96 | B131: 8986314 | C131: 40472 | D131: 50700 | E131: 91172 | F131: 0 | G131: 91172 | I131: 105969 | J131: =SUM(D120:D131) -> 623050 | K131: =SUM(I120:I131) -> 1271628
A132: 97 | B132: 8945615 | C132: 40699 | D132: 50473 | E132: 91172 | F132: 0 | G132: 91172 | I132: 105969
A133: 98 | B133: 8904688 | C133: 40927 | D133: 50245 | E133: 91172 | F133: 0 | G133: 91172 | I133: 105969
A134: 99 | B134: 8863531 | C134: 41157 | D134: 50015 | E134: 91172 | F134: 0 | G134: 91172 | I134: 105969
A135: 100 | B135: 8822142 | C135: 41389 | D135: 49783 | E135: 91172 | F135: 0 | G135: 91172 | I135: 105969
A136: 101 | B136: 8780521 | C136: 41621 | D136: 49551 | E136: 91172 | F136: 0 | G136: 91172 | I136: 105969
A137: 102 | B137: 8738666 | C137: 41855 | D137: 49317 | E137: 91172 | F137: 0 | G137: 91172 | I137: 105969
A138: 103 | B138: 8696576 | C138: 42090 | D138: 49082 | E138: 91172 | F138: 0 | G138: 91172 | I138: 105969
A139: 104 | B139: 8654250 | C139: 42326 | D139: 48846 | E139: 91172 | F139: 0 | G139: 91172 | I139: 105969
A140: 105 | B140: 8611686 | C140: 42564 | D140: 48608 | E140: 91172 | F140: 0 | G140: 91172 | I140: 105969
A141: 106 | B141: 8568883 | C141: 42803 | D141: 48369 | E141: 91172 | F141: 0 | G141: 91172 | I141: 105969
A142: 107 | B142: 8525840 | C142: 43043 | D142: 48129 | E142: 91172 | F142: 0 | G142: 91172 | I142: 105969
A143: 108 | B143: 8482555 | C143: 43285 | D143: 47887 | E143: 91172 | F143: 0 | G143: 91172 | I143: 105969 | J143: =SUM(D132:D143) -> 590305 | K143: =SUM(I132:I143) -> 1271628
A144: 109 | B144: 8439027 | C144: 43528 | D144: 47644 | E144: 91172 | F144: 0 | G144: 91172 | I144: 105969
A145: 110 | B145: 8395254 | C145: 43773 | D145: 47399 | E145: 91172 | F145: 0 | G145: 91172 | I145: 105969
A146: 111 | B146: 8351235 | C146: 44019 | D146: 47153 | E146: 91172 | F146: 0 | G146: 91172 | I146: 105969
A147: 112 | B147: 8306969 | C147: 44266 | D147: 46906 | E147: 91172 | F147: 0 | G147: 91172 | I147: 105969
A148: 113 | B148: 8262454 | C148: 44515 | D148: 46657 | E148: 91172 | F148: 0 | G148: 91172 | I148: 105969
A149: 114 | B149: 8217689 | C149: 44765 | D149: 46407 | E149: 91172 | F149: 0 | G149: 91172 | I149: 105969
A150: 115 | B150: 8172673 | C150: 45016 | D150: 46156 | E150: 91172 | F150: 0 | G150: 91172 | I150: 105969
A151: 116 | B151: 8127404 | C151: 45269 | D151: 45903 | E151: 91172 | F151: 0 | G151: 91172 | I151: 105969
A152: 117 | B152: 8081881 | C152: 45523 | D152: 45649 | E152: 91172 | F152: 0 | G152: 91172 | I152: 105969
A153: 118 | B153: 8036102 | C153: 45779 | D153: 45393 | E153: 91172 | F153: 0 | G153: 91172 | I153: 105969
A154: 119 | B154: 7990066 | C154: 46036 | D154: 45136 | E154: 91172 | F154: 0 | G154: 91172 | I154: 105969
A155: 120 | B155: 7943772 | C155: 46294 | D155: 44878 | E155: 91172 | F155: 0 | G155: 91172 | I155: 105969 | J155: =SUM(D144:D155) -> 555281 | K155: =SUM(I144:I155) -> 1271628
A156: 121 | B156: 7897218 | C156: 46554 | D156: 44618 | E156: 91172 | F156: 0 | G156: 91172 | I156: 105969
A157: 122 | B157: 7850402 | C157: 46816 | D157: 44356 | E157: 91172 | F157: 0 | G157: 91172 | I157: 105969
A158: 123 | B158: 7803323 | C158: 47079 | D158: 44093 | E158: 91172 | F158: 0 | G158: 91172 | I158: 105969
A159: 124 | B159: 7755980 | C159: 47343 | D159: 43829 | E159: 91172 | F159: 0 | G159: 91172 | I159: 105969
A160: 125 | B160: 7708371 | C160: 47609 | D160: 43563 | E160: 91172 | F160: 0 | G160: 91172 | I160: 105969
A161: 126 | B161: 7660494 | C161: 47877 | D161: 43295 | E161: 91172 | F161: 0 | G161: 91172 | I161: 105969
A162: 127 | B162: 7612348 | C162: 48146 | D162: 43026 | E162: 91172 | F162: 0 | G162: 91172 | I162: 105969
A163: 128 | B163: 7563932 | C163: 48416 | D163: 42756 | E163: 91172 | F163: 0 | G163: 91172 | I163: 105969
A164: 129 | B164: =B163-C164 -> 7515244 | C164: 48688 | D164: 42484 | E164: =ROUND(IF(A164>$C$23,(IF(A164>=$C$6,B163+D164,PMT($C$9/12,$C$6-$C$23,-$B$35))),D164),0) -> 91172 | F164: 0 | G164: 91172 | I164: 105969
A165: 130 | B165: 7466283 | C165: =E165-D165 -> 48961 | D165: =ROUND(IF(A165>$C$23,B164*$C$9*30/360,0),0) -> 42211 | E165: 91172 | F165: =ROUND(IF(A165>$C$23,0,$B$35*$C$24/360*30),0) -> 0 | G165: =E165+F165 -> 91172 | I165: =ROUND(IF(A165>$C$23,(IF(A165>$C$6,0,PMT($I$32/12,$C$6-$C$23,-$B$35))),G165),0) -> 105969
A166: 131 | B166: 7417047 | C166: 49236 | D166: 41936 | E166: 91172 | F166: 0 | G166: 91172 | I166: 105969
A167: 132 | B167: 7367534 | C167: 49513 | D167: 41659 | E167: 91172 | F167: 0 | G167: 91172 | I167: 105969 | J167: =SUM(D156:D167) -> 517826 | K167: =SUM(I156:I167) -> 1271628
A168: 133 | B168: 7317743 | C168: 49791 | D168: 41381 | E168: 91172 | F168: 0 | G168: 91172 | I168: 105969
A169: 134 | B169: 7267672 | C169: 50071 | D169: 41101 | E169: 91172 | F169: 0 | G169: 91172 | I169: 105969
A170: 135 | B170: 7217320 | C170: 50352 | D170: 40820 | E170: 91172 | F170: 0 | G170: 91172 | I170: 105969
A171: 136 | B171: 7166685 | C171: 50635 | D171: 40537 | E171: 91172 | F171: 0 | G171: 91172 | I171: 105969
A172: 137 | B172: 7115766 | C172: 50919 | D172: 40253 | E172: 91172 | F172: 0 | G172: 91172 | I172: 105969
A173: 138 | B173: 7064561 | C173: 51205 | D173: 39967 | E173: 91172 | F173: 0 | G173: 91172 | I173: 105969
A174: 139 | B174: 7013068 | C174: 51493 | D174: 39679 | E174: 91172 | F174: 0 | G174: 91172 | I174: 105969
A175: 140 | B175: 6961286 | C175: 51782 | D175: 39390 | E175: 91172 | F175: 0 | G175: 91172 | I175: 105969
A176: 141 | B176: 6909213 | C176: 52073 | D176: 39099 | E176: 91172 | F176: 0 | G176: 91172 | I176: 105969
A177: 142 | B177: 6856848 | C177: 52365 | D177: 38807 | E177: 91172 | F177: 0 | G177: 91172 | I177: 105969
A178: 143 | B178: 6804189 | C178: 52659 | D178: 38513 | E178: 91172 | F178: 0 | G178: 91172 | I178: 105969
A179: 144 | B179: 6751234 | C179: 52955 | D179: 38217 | E179: 91172 | F179: 0 | G179: 91172 | I179: 105969 | J179: =SUM(D168:D179) -> 477764 | K179: =SUM(I168:I179) -> 1271628
A180: 145 | B180: 6697981 | C180: 53253 | D180: 37919 | E180: 91172 | F180: 0 | G180: 91172 | I180: 105969
A181: 146 | B181: 6644429 | C181: 53552 | D181: 37620 | E181: 91172 | F181: 0 | G181: 91172 | I181: 105969
A182: 147 | B182: 6590577 | C182: 53852 | D182: 37320 | E182: 91172 | F182: 0 | G182: 91172 | I182: 105969
A183: 148 | B183: 6536422 | C183: 54155 | D183: 37017 | E183: 91172 | F183: 0 | G183: 91172 | I183: 105969
A184: 149 | B184: 6481963 | C184: 54459 | D184: 36713 | E184: 91172 | F184: 0 | G184: 91172 | I184: 105969
A185: 150 | B185: 6427198 | C185: 54765 | D185: 36407 | E185: 91172 | F185: 0 | G185: 91172 | I185: 105969
A186: 151 | B186: 6372125 | C186: 55073 | D186: 36099 | E186: 91172 | F186: 0 | G186: 91172 | I186: 105969
A187: 152 | B187: 6316743 | C187: 55382 | D187: 35790 | E187: 91172 | F187: 0 | G187: 91172 | I187: 105969
A188: 153 | B188: 6261050 | C188: 55693 | D188: 35479 | E188: 91172 | F188: 0 | G188: 91172 | I188: 105969
A189: 154 | B189: 6205044 | C189: 56006 | D189: 35166 | E189: 91172 | F189: 0 | G189: 91172 | I189: 105969
A190: 155 | B190: 6148724 | C190: 56320 | D190: 34852 | E190: 91172 | F190: 0 | G190: 91172 | I190: 105969
A191: 156 | B191: 6092087 | C191: 56637 | D191: 34535 | E191: 91172 | F191: 0 | G191: 91172 | I191: 105969 | J191: =SUM(D180:D191) -> 434917 | K191: =SUM(I180:I191) -> 1271628
A192: 157 | B192: 6035132 | C192: 56955 | D192: 34217 | E192: 91172 | F192: 0 | G192: 91172 | I192: 105969
A193: 158 | B193: 5977857 | C193: 57275 | D193: 33897 | E193: 91172 | F193: 0 | G193: 91172 | I193: 105969
A194: 159 | B194: 5920261 | C194: 57596 | D194: 33576 | E194: 91172 | F194: 0 | G194: 91172 | I194: 105969
A195: 160 | B195: 5862341 | C195: 57920 | D195: 33252 | E195: 91172 | F195: 0 | G195: 91172 | I195: 105969
A196: 161 | B196: 5804096 | C196: 58245 | D196: 32927 | E196: 91172 | F196: 0 | G196: 91172 | I196: 105969
A197: 162 | B197: 5745524 | C197: 58572 | D197: 32600 | E197: 91172 | F197: 0 | G197: 91172 | I197: 105969
A198: 163 | B198: 5686623 | C198: 58901 | D198: 32271 | E198: 91172 | F198: 0 | G198: 91172 | I198: 105969
A199: 164 | B199: 5627391 | C199: 59232 | D199: 31940 | E199: 91172 | F199: 0 | G199: 91172 | I199: 105969
A200: 165 | B200: 5567826 | C200: 59565 | D200: 31607 | E200: 91172 | F200: 0 | G200: 91172 | I200: 105969
A201: 166 | B201: 5507927 | C201: 59899 | D201: 31273 | E201: 91172 | F201: 0 | G201: 91172 | I201: 105969
A202: 167 | B202: 5447691 | C202: 60236 | D202: 30936 | E202: 91172 | F202: 0 | G202: 91172 | I202: 105969
A203: 168 | B203: 5387117 | C203: 60574 | D203: 30598 | E203: 91172 | F203: 0 | G203: 91172 | I203: 105969 | J203: =SUM(D192:D203) -> 389094 | K203: =SUM(I192:I203) -> 1271628
A204: 169 | B204: 5326203 | C204: 60914 | D204: 30258 | E204: 91172 | F204: 0 | G204: 91172 | I204: 105969
A205: 170 | B205: 5264947 | C205: 61256 | D205: 29916 | E205: 91172 | F205: 0 | G205: 91172 | I205: 105969
A206: 171 | B206: 5203346 | C206: 61601 | D206: 29571 | E206: 91172 | F206: 0 | G206: 91172 | I206: 105969
... 250 more rows
